Ref No,Fund Type,Dept,Cost Centre Description    ,Description    ,Creditor Name    ,GL Code Net Amount,Payment date        
2,Revenue,CAHD,Bed Purchasing - South,Permanent Residential,.,2112.00, 14-Mar-2017
3,Revenue,CAHD,South Glos Users in South Glos Homes,Permanent Nursing,.,625.00, 14-Mar-2017
4,Revenue,CAHD,Bed Purchasing - North,Permanent Nursing,.,3252.00, 14-Mar-2017
5,Revenue,CAHD,Bed Purchasing - South,Permanent Nursing,.,3252.00, 14-Mar-2017
6,Revenue,CAHD,South Glos Users in South Glos Homes,Permanent Nursing,.,625.00, 14-Mar-2017
7,Revenue,CAHD,Bed Purchasing - North,Permanent Nursing,.,3252.00, 14-Mar-2017
8,Revenue,CAHD,South Glos Users in South Glos Homes,Permanent Nursing,.,625.00, 14-Mar-2017
9,Revenue,CAHD,Bed Purchasing - South,Permanent Nursing,.,3252.00, 14-Mar-2017
10,Revenue,CAHD,South Glos Users in South Glos Homes,Permanent Nursing,.,625.00, 14-Mar-2017
11,Revenue,CAHD,South Glos Users in South Glos Homes,Permanent Nursing,.,625.00, 14-Mar-2017
12,Revenue,CAHD,Bed Purchasing - North,Permanent Residential,.,4200.00, 14-Mar-2017
13,Revenue,CAHD,South Glos Users in South Glos Homes,Permanent Nursing,.,625.00, 14-Mar-2017
14,Revenue,CAHD,Bed Purchasing - South,Permanent Nursing,.,3575.00, 14-Mar-2017
15,Revenue,CAHD,South Glos Users in South Glos Homes,Permanent Nursing,.,625.00, 14-Mar-2017
16,Revenue,CAHD,Bed Purchasing - North,Permanent Nursing,.,4975.00, 14-Mar-2017
17,Revenue,CAHD,South Glos Users in South Glos Homes,Permanent Nursing,.,625.00, 14-Mar-2017
18,Revenue,CAHD,Bed Purchasing - Southmead Hospital,Permanent Nursing,.,3775.00, 14-Mar-2017
19,Revenue,CAHD,South Glos Users in South Glos Homes,Permanent Nursing,.,625.00, 14-Mar-2017
20,Revenue,CAHD,South Glos Users in South Glos Homes,Permanent Nursing,.,625.00, 14-Mar-2017
21,Revenue,CAHD,South Glos Users in South Glos Homes,Permanent Nursing,.,625.00, 14-Mar-2017
22,Revenue,CAHD,Bed Purchasing - North,Permanent Nursing,.,4174.28, 14-Mar-2017
23,Revenue,CAHD,Bed Purchasing - North,Permanent Nursing,.,1490.81, 14-Mar-2017
24,Revenue,CAHD,South Glos Users in South Glos Homes,Permanent Nursing,.,625.00, 14-Mar-2017
25,Revenue,CAHD,South Glos Users in South Glos Homes,Permanent Nursing,.,625.00, 14-Mar-2017
26,Revenue,CAHD,South Glos Users in South Glos Homes,Permanent Nursing,.,625.00, 14-Mar-2017
27,Revenue,CAHD,South Glos Users in South Glos Homes,Permanent Nursing,.,625.00, 14-Mar-2017
28,Revenue,CAHD,South Glos Users in South Glos Homes,Permanent Nursing,.,625.00, 14-Mar-2017
29,Revenue,CAHD,South Glos Users in South Glos Homes,Permanent Nursing,.,625.00, 14-Mar-2017
30,Revenue,CAHD,South Glos Users in South Glos Homes,Permanent Nursing,.,625.00, 14-Mar-2017
31,Revenue,CAHD,South Glos Users in South Glos Homes,Permanent Nursing,.,625.00, 14-Mar-2017
32,Revenue,CAHD,South Glos Users in South Glos Homes,Permanent Nursing,.,625.00, 14-Mar-2017
33,Revenue,CAHD,South Glos Users in South Glos Homes,Permanent Nursing,.,625.00, 14-Mar-2017
34,Revenue,CAHD,South Glos Users in South Glos Homes,Permanent Nursing,.,625.00, 14-Mar-2017
35,Revenue,CAHD,South Glos Users in South Glos Homes,Permanent Nursing,.,625.00, 14-Mar-2017
36,Revenue,CAHD,South Glos Users in South Glos Homes,Permanent Nursing,.,625.00, 14-Mar-2017
37,Revenue,CAHD,South Glos Users in South Glos Homes,Permanent Nursing,.,625.00, 14-Mar-2017
38,Revenue,CAHD,South Glos Users in South Glos Homes,Permanent Nursing,.,625.00, 14-Mar-2017
39,Revenue,CAHD,South Glos Users in South Glos Homes,Permanent Nursing,.,4375.00, 14-Mar-2017
40,Revenue,CAHD,South Glos Users in South Glos Homes,Permanent Nursing,.,625.00, 14-Mar-2017
41,Revenue,CAHD,South Glos Users in South Glos Homes,Permanent Nursing,.,535.71, 14-Mar-2017
42,Revenue,CAHD,Bed Purchasing - North,Permanent Nursing,.,3075.00, 14-Mar-2017
43,Revenue,CAHD,South Glos Users in South Glos Homes,Permanent Nursing,.,625.00, 14-Mar-2017
44,Revenue,CAHD,Bed Purchasing - North,Permanent Nursing,.,3252.00, 14-Mar-2017
45,Revenue,CAHD,South Glos Users in South Glos Homes,Permanent Nursing,.,625.00, 14-Mar-2017
46,Revenue,CAHD,South Glos Users in South Glos Homes,Permanent Nursing,.,625.00, 14-Mar-2017
47,Revenue,CAHD,Bed Purchasing - North,Permanent Residential,.,3500.00, 14-Mar-2017
48,Revenue,CAHD,18-25 Year Olds,Permanent Residential,1 St Georges House,13858.04, 14-Mar-2017
49,Revenue,CAHD,CSC - Asylum Seekers - Unaccompanied,Client Transport,1625 Independent People,66.00, 16-Mar-2017
50,Revenue,CAHD,CSC - Asylum Seekers - Unaccompanied,Uniforms & Clothing,1625 Independent People,120.00, 16-Mar-2017
51,Revenue,CAHD,CSC - Asylum Seekers - Unaccompanied,Radio Pager/Mobile Phones,1625 Independent People,80.00, 16-Mar-2017
52,Revenue,CAHD,CSC - Asylum Seekers - Unaccompanied,Leaving Care,1625 Independent People,250.05, 16-Mar-2017
53,Revenue,CAHD,CSC - Asylum Seekers - Unaccompanied,Client Transport,1625 Independent People,66.00, 16-Mar-2017
54,Revenue,CAHD,CSC - Asylum Seekers - Unaccompanied,Uniforms & Clothing,1625 Independent People,120.00, 16-Mar-2017
55,Revenue,CAHD,CSC - Asylum Seekers - Unaccompanied,Radio Pager/Mobile Phones,1625 Independent People,80.00, 16-Mar-2017
56,Revenue,CAHD,CSC - Asylum Seekers - Unaccompanied,Leaving Care,1625 Independent People,250.05, 16-Mar-2017
57,Revenue,CAHD,CSC - Asylum Seekers - Unaccompanied,Client Transport,1625 Independent People,66.00, 16-Mar-2017
58,Revenue,CAHD,CSC - Asylum Seekers - Unaccompanied,Uniforms & Clothing,1625 Independent People,120.00, 16-Mar-2017
59,Revenue,CAHD,CSC - Asylum Seekers - Unaccompanied,Radio Pager/Mobile Phones,1625 Independent People,105.00, 16-Mar-2017
60,Revenue,CAHD,CSC - Asylum Seekers - Unaccompanied,Leaving Care,1625 Independent People,234.75, 16-Mar-2017
61,Revenue,CAHD,CSC - Asylum Seekers - Unaccompanied,Client Transport,1625 Independent People,66.00, 22-Mar-2017
62,Revenue,CAHD,CSC - Asylum Seekers - Unaccompanied,Uniforms & Clothing,1625 Independent People,120.00, 22-Mar-2017
63,Revenue,CAHD,CSC - Asylum Seekers - Unaccompanied,Radio Pager/Mobile Phones,1625 Independent People,105.00, 22-Mar-2017
64,Revenue,CAHD,CSC - Asylum Seekers - Unaccompanied,Leaving Care,1625 Independent People,234.75, 22-Mar-2017
65,Revenue,CAHD,CSC - Asylum Seekers - Unaccompanied,Client Transport,1625 Independent People,66.00, 22-Mar-2017
66,Revenue,CAHD,CSC - Asylum Seekers - Unaccompanied,Furniture & Fittings Loose,1625 Independent People,80.00, 22-Mar-2017
67,Revenue,CAHD,CSC - Asylum Seekers - Unaccompanied,Uniforms & Clothing,1625 Independent People,188.00, 22-Mar-2017
68,Revenue,CAHD,CSC - Asylum Seekers - Unaccompanied,Radio Pager/Mobile Phones,1625 Independent People,159.99, 22-Mar-2017
69,Revenue,CAHD,CSC - Asylum Seekers - Unaccompanied,Leaving Care,1625 Independent People,200.04, 22-Mar-2017
70,Revenue,CAHD,CSC - Asylum Seekers - Unaccompanied,Client Transport,1625 Independent People,66.00, 23-Mar-2017
71,Revenue,CAHD,CSC - Asylum Seekers - Unaccompanied,Personal Needs of Clients,1625 Independent People,159.98, 23-Mar-2017
72,Revenue,CAHD,CSC - Asylum Seekers - Unaccompanied,Radio Pager/Mobile Phones,1625 Independent People,40.00, 23-Mar-2017
73,Revenue,CAHD,CSC - Asylum Seekers - Unaccompanied,Interpreting & Translation,1625 Independent People,74.64, 23-Mar-2017
74,Revenue,CAHD,CSC - Asylum Seekers - Unaccompanied,Leaving Care,1625 Independent People,229.40, 23-Mar-2017
75,Revenue,CAHD,CSC - Asylum Seekers - Unaccompanied,Client Transport,1625 Independent People,132.00, 23-Mar-2017
76,Revenue,CAHD,CSC - Asylum Seekers - Unaccompanied,Radio Pager/Mobile Phones,1625 Independent People,80.00, 23-Mar-2017
77,Revenue,CAHD,CSC - Asylum Seekers - Unaccompanied,Leaving Care,1625 Independent People,375.60, 23-Mar-2017
78,Revenue,CAHD,CSC - Asylum Seekers - Unaccompanied,Client Transport,1625 Independent People,183.20, 23-Mar-2017
79,Revenue,CAHD,CSC - Asylum Seekers - Unaccompanied,Radio Pager/Mobile Phones,1625 Independent People,80.00, 23-Mar-2017
80,Revenue,CAHD,CSC - Asylum Seekers - Unaccompanied,Leaving Care,1625 Independent People,375.60, 23-Mar-2017
81,Revenue,CAHD,CSC - Asylum Seekers - Unaccompanied,Client Transport,1625 Independent People,132.00, 23-Mar-2017
82,Revenue,CAHD,CSC - Asylum Seekers - Unaccompanied,Radio Pager/Mobile Phones,1625 Independent People,80.00, 23-Mar-2017
83,Revenue,CAHD,CSC - Asylum Seekers - Unaccompanied,Leaving Care,1625 Independent People,400.08, 23-Mar-2017
84,Revenue,CAHD,CSC - Asylum Seekers - Unaccompanied,Client Transport,1625 Independent People,132.00, 23-Mar-2017
85,Revenue,CAHD,CSC - Asylum Seekers - Unaccompanied,Radio Pager/Mobile Phones,1625 Independent People,80.00, 23-Mar-2017
86,Revenue,CAHD,CSC - Asylum Seekers - Unaccompanied,Leaving Care,1625 Independent People,400.08, 23-Mar-2017
87,Revenue,CAHD,Supporting People Programme,Grants to Voluntary Bodies,1625 Independent People,17102.16, 01-Mar-2017
88,Revenue,CAHD,Home Care - Elderly - North,Supported Living,2430 The Quadrant,5041.76, 14-Mar-2017
89,Revenue,CAHD,Home Care - Elderly - North,Supported Living,2430 The Quadrant,5041.76, 14-Mar-2017
90,Revenue,CAHD,Home Care - Elderly - South,Day Care / Social Activities,3 Trees Community Support Ltd,92.20, 06-Mar-2017
91,Revenue,CAHD,Home Care - Elderly - North,Day Care / Social Activities,3 Trees Community Support Ltd,1359.95, 06-Mar-2017
92,Revenue,CAHD,Home Care - Elderly - North,Other Small Contracts,3 Trees Community Support Ltd,700.72, 06-Mar-2017
93,Revenue,CAHD,Home Care - Elderly - North,Supported Living,3 Trees Community Support Ltd,8612.19, 06-Mar-2017
94,Revenue,CAHD,Home Care - Elderly - South,Day Care / Social Activities,3 Trees Community Support Ltd,92.20, 13-Mar-2017
95,Revenue,CAHD,Home Care - Elderly - North,Day Care / Social Activities,3 Trees Community Support Ltd,1355.34, 13-Mar-2017
96,Revenue,CAHD,Home Care - Elderly - North,Other Small Contracts,3 Trees Community Support Ltd,700.72, 13-Mar-2017
97,Revenue,CAHD,Home Care - Elderly - North,Supported Living,3 Trees Community Support Ltd,8637.90, 13-Mar-2017
98,Revenue,CAHD,Home Care - Elderly - South,Day Care / Social Activities,3 Trees Community Support Ltd,92.20, 13-Mar-2017
99,Revenue,CAHD,Home Care - Elderly - North,Day Care / Social Activities,3 Trees Community Support Ltd,1364.56, 13-Mar-2017
100,Revenue,CAHD,Home Care - Elderly - North,Other Small Contracts,3 Trees Community Support Ltd,700.72, 13-Mar-2017
101,Revenue,CAHD,Home Care - Elderly - North,Supported Living,3 Trees Community Support Ltd,8498.85, 13-Mar-2017
102,Revenue,CAHD,Home Care - Elderly - South,Day Care / Social Activities,3 Trees Community Support Ltd,92.20, 13-Mar-2017
103,Revenue,CAHD,Home Care - Elderly - North,Day Care / Social Activities,3 Trees Community Support Ltd,1359.95, 13-Mar-2017
104,Revenue,CAHD,Home Care - Elderly - North,Other Small Contracts,3 Trees Community Support Ltd,700.72, 13-Mar-2017
105,Revenue,CAHD,Home Care - Elderly - North,Supported Living,3 Trees Community Support Ltd,8067.18, 13-Mar-2017
106,Revenue,CAHD,Home Care - Elderly - South,Day Care / Social Activities,3 Trees Community Support Ltd,92.20, 13-Mar-2017
107,Revenue,CAHD,Home Care - Elderly - North,Day Care / Social Activities,3 Trees Community Support Ltd,1359.95, 13-Mar-2017
108,Revenue,CAHD,Home Care - Elderly - North,Other Small Contracts,3 Trees Community Support Ltd,700.72, 13-Mar-2017
109,Revenue,CAHD,Home Care - Elderly - North,Supported Living,3 Trees Community Support Ltd,8348.13, 13-Mar-2017
110,Revenue,CAHD,Home Care - Elderly - South,Day Care / Social Activities,3 Trees Community Support Ltd,92.20, 23-Mar-2017
111,Revenue,CAHD,Home Care - Elderly - North,Day Care / Social Activities,3 Trees Community Support Ltd,1364.56, 23-Mar-2017
112,Revenue,CAHD,Home Care - Elderly - North,Other Small Contracts,3 Trees Community Support Ltd,691.50, 23-Mar-2017
113,Revenue,CAHD,Home Care - Elderly - North,Supported Living,3 Trees Community Support Ltd,8626.77, 23-Mar-2017
114,Revenue,CAHD,Home Care - Elderly - South,Day Care / Social Activities,3 Trees Community Support Ltd,92.20, 24-Mar-2017
115,Revenue,CAHD,Home Care - Elderly - North,Day Care / Social Activities,3 Trees Community Support Ltd,1230.87, 24-Mar-2017
116,Revenue,CAHD,Home Care - Elderly - North,Other Small Contracts,3 Trees Community Support Ltd,700.72, 24-Mar-2017
117,Revenue,CAHD,Home Care - Elderly - North,Supported Living,3 Trees Community Support Ltd,8643.13, 24-Mar-2017
118,Revenue,CAHD,Add cost non-residential care contracts,Other L.A.'s - General,3 Trees Community Support Ltd,3290.00, 07-Mar-2017
119,Revenue,CAHD,Bed Purchasing - South,Permanent Residential,5Th Floor Harlech Court,16863.44, 14-Mar-2017
120,Revenue,CAHD,Bed Purchasing - South,Permanent Residential,5Th Floor Harlech Court,189713.70, 14-Mar-2017
121,Revenue,CAHD,18-25 Year Olds,Permanent Residential,5Th Floor Harlech Court,14432.04, 14-Mar-2017
122,Revenue,CAHD,18-25 Year Olds,Permanent Residential,5Th Floor Harlech Court,162360.45, 14-Mar-2017
123,Revenue,CAHD,18-25 Year Olds,Permanent Residential,5Th Floor Harlech Court,14570.60, 14-Mar-2017
124,Revenue,CAHD,18-25 Year Olds,Permanent Residential,5Th Floor Harlech Court,163919.25, 14-Mar-2017
125,Revenue,CAHD,18-25 Year Olds,Permanent Residential,5Th Floor Harlech Court,12962.24, 14-Mar-2017
126,Revenue,CAHD,18-25 Year Olds,Permanent Residential,5Th Floor Harlech Court,145825.20, 14-Mar-2017
127,Revenue,CAHD,Bed Purchasing - North,Permanent Residential,5Th Floor Harlech Court,15666.92, 14-Mar-2017
128,Revenue,CAHD,18-25 Year Olds,Respite Planned - Residential,5Th Floor Harlech Court,21752.22, 14-Mar-2017
129,Revenue,CAHD,18-25 Year Olds,Respite Planned - Residential,5Th Floor Harlech Court,20333.59, 14-Mar-2017
130,Revenue,CAHD,18-25 Year Olds,Respite Planned - Residential,5Th Floor Harlech Court,17969.22, 14-Mar-2017
131,Revenue,CAHD,18-25 Year Olds,Respite Planned - Residential,5Th Floor Harlech Court,13240.48, 14-Mar-2017
132,Revenue,CAHD,Bed Purchasing - North,Permanent Residential,5Th Floor Harlech Court,13923.28, 14-Mar-2017
133,Revenue,CAHD,Jointly Funded H&SC Packages,Permanent Residential,5Th Floor Harlech Court,3445.36, 14-Mar-2017
134,Revenue,CAHD,18-25 Year Olds,Permanent Residential,5Th Floor Harlech Court,16489.68, 14-Mar-2017
135,Revenue,CAHD,18-25 Year Olds,Permanent Residential,5Th Floor Harlech Court,185508.90, 14-Mar-2017
136,Revenue,CAHD,Bed Purchasing - South,Permanent Residential,5Th Floor Harlech Court,9857.44, 14-Mar-2017
137,Revenue,CAHD,Bed purchasing - S28A Under 65 - South,Permanent Residential,5Th Floor Harlech Court,10316.44, 14-Mar-2017
138,Revenue,CAHD,Bed Purchasing - South,Permanent Residential,5Th Floor Harlech Court,10819.48, 14-Mar-2017
139,Revenue,CAHD,CSC - Section 17 - NORTH,Interpreting & Translation,A G Family Support Ltd,720.50, 27-Mar-2017
140,Revenue,CAHD,Bed Purchasing - North,Permanent Nursing,ABI Development Limited,7494.40, 14-Mar-2017
141,Revenue,CAHD,CSC - Fostering General,Advertising - General,Access Point Ltd,1025.00, 27-Mar-2017
142,Revenue,CAHD,Training - Adult Services,Training Expenses,Acorn Health & Safety Limited,465.00, 15-Mar-2017
143,Revenue,CAHD,Training - Adult Services,Training Expenses,Acorn Health & Safety Limited,465.00, 22-Mar-2017
144,Revenue,CAHD,CSC - Agency Fostering,Foster Parent Allowances,Action for Children,3352.43, 17-Mar-2017
145,Revenue,CAHD,CSC - Agency Fostering,Foster Parent Allowances,Action for Children,9450.00, 24-Mar-2017
146,Revenue,CAHD,CSC - Agency Fostering,Foster Parent Allowances,Action for Children,3352.43, 17-Mar-2017
147,Revenue,CAHD,CSC - Agency Fostering,Foster Parent Allowances,Action for Children,3352.43, 17-Mar-2017
148,Revenue,CAHD,CSC - Vinney Green Secure Unit,Professional Fees,Action for Children,3677.62, 07-Mar-2017
149,Revenue,CAHD,CSC - Allowances,Membership Fees,Adoption UK,1250.00, 13-Mar-2017
150,Revenue,CAHD,Bed and Breakfast,Storage & Removal,Advanced Removals and Storage,512.50, 22-Mar-2017
151,Revenue,CAHD,Health Inequalities,Other Small Contracts,Age Concern South Gloucestershire,36000.00, 09-Mar-2017
152,Revenue,CAHD,Home Care - Elderly - South,Other Small Contracts,Agincare UK Limited,1720.00, 16-Mar-2017
153,Revenue,CAHD,Home Care - Elderly - North,Other Small Contracts,Agincare UK Limited,645.00, 16-Mar-2017
154,Revenue,CAHD,Home Care - Elderly - South,Other Small Contracts,Agincare UK Limited,1874.80, 16-Mar-2017
155,Revenue,CAHD,Home Care - Elderly - North,Other Small Contracts,Agincare UK Limited,649.30, 16-Mar-2017
156,Revenue,CAHD,Home Care - Elderly - South,Other Small Contracts,Agincare UK Limited,1887.70, 16-Mar-2017
157,Revenue,CAHD,Home Care - Elderly - North,Other Small Contracts,Agincare UK Limited,812.70, 16-Mar-2017
158,Revenue,CAHD,Home Care - Elderly - South,Other Small Contracts,Agincare UK Nutfield,12.90, 23-Mar-2017
159,Revenue,CAHD,Home Care - Elderly - North,Day Care / Social Activities,Agincare UK Nutfield,184.90, 23-Mar-2017
160,Revenue,CAHD,Home Care - Elderly - North,Other Small Contracts,Agincare UK Nutfield,1788.80, 23-Mar-2017
161,Revenue,CAHD,Home care - Elderly MH - South,Other Small Contracts,Agincare UK Nutfield,68.80, 23-Mar-2017
162,Revenue,CAHD,Home Care - Elderly - South,Other Small Contracts,Agincare UK Nutfield,12.90, 23-Mar-2017
163,Revenue,CAHD,Home Care - Elderly - North,Day Care / Social Activities,Agincare UK Nutfield,176.30, 23-Mar-2017
164,Revenue,CAHD,Home Care - Elderly - North,Other Small Contracts,Agincare UK Nutfield,2180.10, 23-Mar-2017
165,Revenue,CAHD,Home care - Elderly MH - South,Other Small Contracts,Agincare UK Nutfield,68.80, 23-Mar-2017
166,Revenue,CAHD,Home Care - Elderly - South,Other Small Contracts,Agincare UK Nutfield,12.90, 23-Mar-2017
167,Revenue,CAHD,Home Care - Elderly - North,Day Care / Social Activities,Agincare UK Nutfield,180.60, 23-Mar-2017
168,Revenue,CAHD,Home Care - Elderly - North,Other Small Contracts,Agincare UK Nutfield,1935.00, 23-Mar-2017
169,Revenue,CAHD,Home care - Elderly MH - South,Other Small Contracts,Agincare UK Nutfield,68.80, 23-Mar-2017
170,Revenue,CAHD,Home Care - Elderly - South,Supported Living,Alexandra Homes (Bristol) Limited,1466.25, 14-Mar-2017
171,Revenue,CAHD,Home Care - Elderly - South,Other Small Contracts,AliMo Care Ltd,1365.78, 03-Mar-2017
172,Revenue,CAHD,Home Care - Elderly - South,Other Small Contracts,AliMo Care Ltd,1414.40, 10-Mar-2017
173,Revenue,CAHD,Home Care - Elderly - South,Other Small Contracts,AliMo Care Ltd,1582.36, 23-Mar-2017
174,Revenue,CAHD,Home Care - Elderly - South,Other Small Contracts,AliMo Care Ltd,1533.74, 24-Mar-2017
175,Revenue,CAHD,Bed Purchasing - South,Permanent Nursing,Ambleside Nusing Home,2098.88, 14-Mar-2017
176,Revenue,CAHD,Bed Purchasing - Southmead Hospital,Permanent Nursing,Amerind Grove Nursing Home,2537.76, 14-Mar-2017
177,Revenue,CAHD,Bed Purchasing - Southmead Hospital,Permanent Nursing,Amerind Grove Nursing Home,2234.08, 14-Mar-2017
178,Revenue,CAHD,CSC - Agency Fostering,Foster Parent Allowances,Amicus Foster Care Ltd,4907.40, 06-Mar-2017
179,Revenue,CAHD,CSC - Agency Fostering,Foster Parent Allowances,Amicus Foster Care Ltd,5398.14, 24-Mar-2017
180,Revenue,CAHD,CSC - Agency Fostering,Foster Parent Allowances,Amicus Foster Care Ltd,4805.31, 22-Mar-2017
181,Revenue,CAHD,Children Centres - South Locality,Other Premises Costs,Amy Flooring Limited,1524.60, 22-Mar-2017
182,Revenue,CAHD,Supporting People Programme,Grants to Voluntary Bodies,Anchor Housing,812.50, 01-Mar-2017
183,Revenue,CAHD,Tenancy Start Up Scheme,Other Supplies & Services,Andrews Letting & Management,1967.00, 31-Mar-2017
184,Revenue,CAHD,Tenancy Start Up Scheme,Fees & Charges Income - General,Andrews letting & Management Ltd,600.00, 27-Mar-2017
185,Revenue,CAHD,CSC - Adoption Support Fund,Post Adoption,Anna Binnie-Dawson,624.00, 10-Mar-2017
186,Revenue,CAHD,Direct Payments - Phys Dis - North,Grants to Voluntary Bodies,Aquarium Card Management Solutions Ltd,2294.00, 02-Mar-2017
187,Revenue,CAHD,Bed Purchasing - North,Permanent Residential,Ark Care Homes Ltd,10895.08, 14-Mar-2017
188,Revenue,CAHD,Bed Purchasing - South,Permanent Nursing,Ash Grove House,10500.00, 27-Mar-2017
189,Revenue,CAHD,Bed Purchasing - South,Fees & Charges Income - General,Ash Grove House,-1960.50, 27-Mar-2017
190,Revenue,CAHD,Bed Purchasing - South,Permanent Residential,Ash View House,9049.29, 14-Mar-2017
191,Revenue,CAHD,Bed Purchasing - South,Permanent Residential,Ash View House,6180.00, 14-Mar-2017
192,Revenue,CAHD,S117 Placements PCT,Permanent Residential,Ash View House,7148.68, 14-Mar-2017
193,Revenue,CAHD,18-25 Year Olds,Permanent Residential,Ash View House,6716.52, 14-Mar-2017
194,Revenue,CAHD,Section 117 Placements MH Younger,Permanent Residential,Ash View House,4658.52, 14-Mar-2017
195,Revenue,CAHD,Jointly Funded H&SC Packages,Permanent Residential,Ash View House,1996.52, 14-Mar-2017
196,Revenue,CAHD,Bed purchasing - Elderly S117 - South,Permanent Residential,Ash View House,6331.72, 14-Mar-2017
197,Revenue,CAHD,DAT Treatment,Rent,Ashville Asset Management Limited,862.48, 31-Mar-2017
198,Revenue,CAHD,DAT Treatment,Rent,Ashville Asset Management Limited,2327.96, 31-Mar-2017
199,Revenue,CAHD,DAT Treatment,Rent,Ashville Asset Management Limited,2294.86, 31-Mar-2017
200,Revenue,CAHD,DAT Treatment,Rent,Ashville Asset Management Limited,6159.00, 31-Mar-2017
201,Revenue,CAHD,Bed Purchasing - North,Permanent Residential,Aspects 2 Limited,6841.76, 14-Mar-2017
202,Revenue,CAHD,Supporting People Programme,Grants to Voluntary Bodies,Aspects and Milestones Trust,3298.58, 01-Mar-2017
203,Revenue,CAHD,Supporting People Programme,Grants to Voluntary Bodies,Aspects and Milestones Trust,1653.75, 01-Mar-2017
204,Revenue,CAHD,Supporting People Programme,Grants to Voluntary Bodies,Aspects and Milestones Trust,2014.33, 01-Mar-2017
205,Revenue,CAHD,CSC - Vinney Green Secure Unit,R & M by Departments,ASSA Abloy Ltd,528.90, 29-Mar-2017
206,Revenue,CAHD,"Strategy, Advice and Public Protection",Radio Pager/Mobile Phones,AST Connections Limited,795.00, 02-Mar-2017
207,Revenue,CAHD,Shared Lives,Other Supplies & Services,Ategi Limited,52705.75, 31-Mar-2017
208,Revenue,CAHD,Bed Purchasing - South,Permanent Residential,Autism Specialised Care Homes,6155.84, 14-Mar-2017
209,Revenue,CAHD,Younger Adult Mental Health,Health Services (Third Party Payments),Avon & Wiltshire Mental Health,1666.00, 03-Mar-2017
210,Revenue,CAHD,Mental Health and Emotional Wellbeing,Project Funding,Avon & Wiltshire Mental Health,3500.00, 30-Mar-2017
211,Revenue,CAHD,Younger Adult Mental Health,Health Services (Third Party Payments),Avon & Wiltshire Mental Health,1666.00, 31-Mar-2017
212,Revenue,CAHD,Grange School Holding Account,Redundancy/Early Retirement,Avon Pension Fund,14155.33, 30-Mar-2017
213,Revenue,CAHD,Purchase of RAC places,Other L.A.'s - General,Bath & North East Somerset Council,966.08, 22-Mar-2017
214,Revenue,CAHD,Purchase of RAC places,Other L.A.'s - General,Bath & North East Somerset Council,1417.60, 22-Mar-2017
215,Revenue,CAHD,Purchase of RAC places,Other L.A.'s - General,Bath & North East Somerset Council,531.60, 16-Mar-2017
216,Revenue,CAHD,CSC - Agency Fostering,Other Supplies & Services,Bath & North East Somerset Council,4000.00, 10-Mar-2017
217,Revenue,CAHD,"Education, Learning and Skills",Other L.A.'s - General,Bath & North East Somerset Council,4000.00, 23-Mar-2017
218,Revenue,CAHD,Purchase of RAC places,Other L.A.'s - General,Bath & North East Somerset Council,966.08, 27-Mar-2017
219,Revenue,CAHD,Purchase of RAC places,Other L.A.'s - General,Bath & North East Somerset Council,1417.60, 27-Mar-2017
220,Revenue,CAHD,Pensions - Non DSG,Annual Pension,Bath & North East Somerset Council,5860.45, 30-Mar-2017
221,Revenue,CAHD,Pensions - Non DSG,Annual Pension,Bath & North East Somerset Council,111813.68, 29-Mar-2017
222,Revenue,CAHD,Mental Health and Emotional Wellbeing,Rent,Bawa Healthcare & Leisure,1531.67, 03-Mar-2017
223,Revenue,CAHD,ASSIST - Health Promotion in Schools,Rent,Bawa Healthcare & Leisure,1268.75, 07-Mar-2017
224,Revenue,CAHD,"Education, Learning and Skills",Catering,Bawa Healthcare & Leisure,983.75, 02-Mar-2017
225,Revenue,CAHD,"Education, Learning and Skills",Premises Hire,Bawa Healthcare & Leisure,285.00, 02-Mar-2017
226,Revenue,CAHD,Bed Purchasing - Southmead Hospital,Permanent Nursing,Bayview Nursing & Residential Home,2026.76, 14-Mar-2017
227,Revenue,CAHD,Pathway 3 - (Complex Beds),Permanent Nursing,Beaufort Care Ltd,5271.00, 21-Mar-2017
228,Revenue,CAHD,South Glos Users in South Glos Homes,Permanent Nursing,Beaufort Grange Care Home,625.00, 14-Mar-2017
229,Revenue,CAHD,South Glos Users in South Glos Homes,Permanent Nursing,Beaufort Grange Care Home,625.00, 14-Mar-2017
230,Revenue,CAHD,South Glos Users in South Glos Homes,Permanent Nursing,Beaufort Grange Care Home,625.00, 14-Mar-2017
231,Revenue,CAHD,Bed Purchasing - North,Permanent Nursing,Beaufort Grange Care Home,4175.00, 14-Mar-2017
232,Revenue,CAHD,Bed Purchasing - North,Permanent Nursing,Beaufort Grange Care Home,3876.79, 14-Mar-2017
233,Revenue,CAHD,South Glos Users in South Glos Homes,Permanent Nursing,Beaufort Grange Care Home,625.00, 14-Mar-2017
234,Revenue,CAHD,South Glos Users in South Glos Homes,Permanent Nursing,Beaufort Grange Care Home,625.00, 14-Mar-2017
235,Revenue,CAHD,South Glos Users in South Glos Homes,Permanent Nursing,Beaufort Grange Care Home,625.00, 14-Mar-2017
236,Revenue,CAHD,South Glos Users in South Glos Homes,Permanent Nursing,Beaufort Grange Care Home,625.00, 14-Mar-2017
237,Revenue,CAHD,South Glos Users in South Glos Homes,Permanent Nursing,Beaufort Grange Care Home,625.00, 14-Mar-2017
238,Revenue,CAHD,South Glos Users in South Glos Homes,Permanent Nursing,Beaufort Grange Care Home,625.00, 14-Mar-2017
239,Revenue,CAHD,South Glos Users in South Glos Homes,Permanent Nursing,Beaufort Grange Care Home,625.00, 14-Mar-2017
240,Revenue,CAHD,South Glos Users in South Glos Homes,Permanent Nursing,Beaufort Grange Care Home,625.00, 14-Mar-2017
241,Revenue,CAHD,South Glos Users in South Glos Homes,Permanent Nursing,Beaufort Grange Care Home,625.00, 14-Mar-2017
242,Revenue,CAHD,South Glos Users in South Glos Homes,Permanent Nursing,Beaufort Grange Care Home,625.00, 14-Mar-2017
243,Revenue,CAHD,South Glos Users in South Glos Homes,Permanent Nursing,Beaufort Grange Care Home,625.00, 14-Mar-2017
244,Revenue,CAHD,Bed Purchasing - Elderly S117- North,Permanent Nursing,Beaufort Grange Care Home,4411.20, 14-Mar-2017
245,Revenue,CAHD,South Glos Users in South Glos Homes,Permanent Nursing,Beaufort Grange Care Home,625.00, 14-Mar-2017
246,Revenue,CAHD,South Glos Users in South Glos Homes,Permanent Nursing,Beaufort Grange Care Home,625.00, 14-Mar-2017
247,Revenue,CAHD,Bed Purchasing - Elderly S117- North,Permanent Nursing,Beaufort Grange Care Home,4613.92, 14-Mar-2017
248,Revenue,CAHD,South Glos Users in South Glos Homes,Permanent Nursing,Beaufort Grange Care Home,625.00, 14-Mar-2017
249,Revenue,CAHD,South Glos Users in South Glos Homes,Permanent Nursing,Beaufort Grange Care Home,625.00, 14-Mar-2017
250,Revenue,CAHD,South Glos Users in South Glos Homes,Permanent Nursing,Beaufort Grange Care Home,625.00, 14-Mar-2017
251,Revenue,CAHD,South Glos Users in South Glos Homes,Permanent Nursing,Beaufort Grange Care Home,625.00, 14-Mar-2017
252,Revenue,CAHD,South Glos Users in South Glos Homes,Permanent Nursing,Beaufort Grange Care Home,625.00, 14-Mar-2017
253,Revenue,CAHD,South Glos Users in South Glos Homes,Permanent Nursing,Beaufort Grange Care Home,625.00, 14-Mar-2017
254,Revenue,CAHD,South Glos Users in South Glos Homes,Permanent Nursing,Beaufort Grange Care Home,625.00, 14-Mar-2017
255,Revenue,CAHD,South Glos Users in South Glos Homes,Permanent Nursing,Beaufort Grange Care Home,625.00, 14-Mar-2017
256,Revenue,CAHD,Bed Purchasing - North,Permanent Residential,Beaufort House,2412.00, 14-Mar-2017
257,Revenue,CAHD,Bed Purchasing - North,Permanent Residential,Beaufort House,2432.64, 14-Mar-2017
258,Revenue,CAHD,Bed Purchasing - South,Permanent Residential,Beaufort House,2400.00, 14-Mar-2017
259,Revenue,CAHD,Bed Purchasing - South,Permanent Residential,Beaufort House,2309.36, 14-Mar-2017
260,Revenue,CAHD,Bed Purchasing - Southmead Hospital,Permanent Residential,Beaufort House,2432.64, 14-Mar-2017
261,Revenue,CAHD,Bed Purchasing - North,Permanent Residential,Beaufort House,2376.92, 14-Mar-2017
262,Revenue,CAHD,Bed Purchasing - North,Permanent Residential,Beaufort House,2376.92, 14-Mar-2017
263,Revenue,CAHD,Bed Purchasing - North,Permanent Residential,Beaufort House,2554.28, 14-Mar-2017
264,Revenue,CAHD,Bed Purchasing - Southmead Hospital,Permanent Residential,Beaufort House,2432.64, 14-Mar-2017
265,Revenue,CAHD,Bed Purchasing - South,Permanent Residential,Bedrock Lodge,1196.22, 14-Mar-2017
266,Revenue,CAHD,Bed Purchasing - South,Permanent Residential,Bedrock Lodge,3527.36, 14-Mar-2017
267,Revenue,CAHD,Section 117 Placements MH Younger,Permanent Residential,Bedrock Lodge,1925.00, 14-Mar-2017
268,Revenue,CAHD,South Glos Users in South Glos Homes,Permanent Nursing,Beech House,625.00, 14-Mar-2017
269,Revenue,CAHD,Bed Purchasing - South,Permanent Residential,Beech House,2800.00, 14-Mar-2017
270,Revenue,CAHD,South Glos Users in South Glos Homes,Permanent Nursing,Beech House,625.00, 14-Mar-2017
271,Revenue,CAHD,Bed Purchasing - North,Permanent Nursing,Beech House,2675.00, 14-Mar-2017
272,Revenue,CAHD,South Glos Users in South Glos Homes,Permanent Nursing,Beech House,625.00, 14-Mar-2017
273,Revenue,CAHD,South Glos Users in South Glos Homes,Permanent Nursing,Beech House,625.00, 14-Mar-2017
274,Revenue,CAHD,South Glos Users in South Glos Homes,Permanent Nursing,Beech House,625.00, 14-Mar-2017
275,Revenue,CAHD,Bed Purchasing - North,Permanent Nursing,Beech House,2992.16, 14-Mar-2017
276,Revenue,CAHD,South Glos Users in South Glos Homes,Permanent Nursing,Beech House,625.00, 14-Mar-2017
277,Revenue,CAHD,Bed Purchasing - North,Permanent Residential,Beech House,2800.00, 14-Mar-2017
278,Revenue,CAHD,South Glos Users in South Glos Homes,Permanent Nursing,Beech House,625.00, 14-Mar-2017
279,Revenue,CAHD,South Glos Users in South Glos Homes,Permanent Nursing,Beech House,625.00, 14-Mar-2017
280,Revenue,CAHD,South Glos Users in South Glos Homes,Permanent Nursing,Beech House,625.00, 14-Mar-2017
281,Revenue,CAHD,South Glos Users in South Glos Homes,Permanent Nursing,Beech House,625.00, 14-Mar-2017
282,Revenue,CAHD,South Glos Users in South Glos Homes,Permanent Nursing,Beech House,625.00, 14-Mar-2017
283,Revenue,CAHD,South Glos Users in South Glos Homes,Permanent Nursing,Beech House,625.00, 14-Mar-2017
284,Revenue,CAHD,South Glos Users in South Glos Homes,Permanent Nursing,Beech House,625.00, 14-Mar-2017
285,Revenue,CAHD,South Glos Users in South Glos Homes,Permanent Nursing,Beech House,625.00, 14-Mar-2017
286,Revenue,CAHD,Bed Purchasing - North,Permanent Residential,Beech House,3400.00, 14-Mar-2017
287,Revenue,CAHD,South Glos Users in South Glos Homes,Permanent Nursing,Beech House,625.00, 14-Mar-2017
288,Revenue,CAHD,South Glos Users in South Glos Homes,Permanent Nursing,Beech House,625.00, 14-Mar-2017
289,Revenue,CAHD,Bed Purchasing - North,Permanent Nursing,Beech House,3129.00, 14-Mar-2017
290,Revenue,CAHD,South Glos Users in South Glos Homes,Permanent Nursing,Beech House,625.00, 14-Mar-2017
291,Revenue,CAHD,South Glos Users in South Glos Homes,Permanent Nursing,Beech House,625.00, 14-Mar-2017
292,Revenue,CAHD,Bed Purchasing - North,Fees & Charges Income - General,Beech House,738.57, 14-Mar-2017
293,Revenue,CAHD,Bed Purchasing - North,Fees & Charges Income - General,Beech House,703.24, 14-Mar-2017
294,Revenue,CAHD,South Glos Users in South Glos Homes,Permanent Nursing,Beech House,625.00, 14-Mar-2017
295,Revenue,CAHD,South Glos Users in South Glos Homes,Permanent Nursing,Beech House,625.00, 14-Mar-2017
296,Revenue,CAHD,South Glos Users in South Glos Homes,Permanent Nursing,Beech House,625.00, 14-Mar-2017
297,Revenue,CAHD,South Glos Users in South Glos Homes,Permanent Nursing,Beech House,625.00, 14-Mar-2017
298,Revenue,CAHD,South Glos Users in South Glos Homes,Permanent Nursing,Beech House,625.00, 14-Mar-2017
299,Revenue,CAHD,Statemented Support Payments to OLAs,Other L.A.'s - General,Beechen Cliff School,716.64, 29-Mar-2017
300,Revenue,CAHD,Post 16 High Needs Placements,Other Private Contractors,Beechwood Court Ltd,12066.21, 14-Mar-2017
301,Revenue,CAHD,Home Care - Elderly - North,Other Small Contracts,Bibby Factors Bristol Limited,7088.06, 29-Mar-2017
302,Revenue,CAHD,Home Care - Elderly - North,Other Small Contracts,Bibby Factors Bristol Limited,5708.30, 03-Mar-2017
303,Revenue,CAHD,Home Care - Elderly - North,Other Small Contracts,Bibby Factors Bristol Limited,6001.36, 09-Mar-2017
304,Revenue,CAHD,Home Care - Elderly - North,Other Small Contracts,Bibby Factors Bristol Limited,5931.76, 20-Mar-2017
305,Revenue,CAHD,Home Care - Elderly - North,Other Small Contracts,Bibby Factors Bristol Limited,5774.90, 22-Mar-2017
306,Revenue,CAHD,Home Care - Elderly - North,Other Small Contracts,Bibby Factors Bristol Limited,5966.56, 31-Mar-2017
307,Revenue,CAHD,Add cost non-residential care contracts,Other L.A.'s - General,Bibby Factors Bristol Limited,910.00, 07-Mar-2017
308,Revenue,CAHD,Bed Purchasing - Southmead Hospital,Permanent Nursing,Blossom Field,1915.00, 14-Mar-2017
309,Revenue,CAHD,Bed Purchasing - Southmead Hospital,Permanent Nursing,Blossom Field,1860.00, 14-Mar-2017
310,Revenue,CAHD,Bed Purchasing - Southmead Hospital,Permanent Nursing,Blossom Field,889.11, 14-Mar-2017
311,Revenue,CAHD,Bed Purchasing - Southmead Hospital,Permanent Nursing,Blossom Field,863.57, 14-Mar-2017
312,Revenue,CAHD,Bed Purchasing - North,Permanent Nursing,Blossom Field,3478.68, 14-Mar-2017
313,Revenue,CAHD,South Glos Users in South Glos Homes,Permanent Nursing,Blossom Field,625.00, 14-Mar-2017
314,Revenue,CAHD,Bed Purchasing - Elderly S117- North,Permanent Nursing,Blossom Field,3494.32, 14-Mar-2017
315,Revenue,CAHD,South Glos Users in South Glos Homes,Permanent Nursing,Blossom Field,625.00, 14-Mar-2017
316,Revenue,CAHD,South Glos Users in South Glos Homes,Permanent Nursing,Blossom Field,625.00, 14-Mar-2017
317,Revenue,CAHD,Bed Purchasing - North,Permanent Nursing,Blossom Field,3775.00, 14-Mar-2017
318,Revenue,CAHD,South Glos Users in South Glos Homes,Permanent Nursing,Blossom Field,1540.18, 14-Mar-2017
319,Revenue,CAHD,South Glos Users in South Glos Homes,Permanent Nursing,Blossom Field,625.00, 14-Mar-2017
320,Revenue,CAHD,Bed Purchasing - Southmead Hospital,Permanent Nursing,Blossom Field,4800.00, 14-Mar-2017
321,Revenue,CAHD,South Glos Users in South Glos Homes,Permanent Nursing,Blossom Field,625.00, 14-Mar-2017
322,Revenue,CAHD,Bed Purchasing - North,Permanent Nursing,Blossom Field,3762.48, 14-Mar-2017
323,Revenue,CAHD,South Glos Users in South Glos Homes,Permanent Nursing,Blossom Field,625.00, 14-Mar-2017
324,Revenue,CAHD,South Glos Users in South Glos Homes,Permanent Nursing,Blossom Field,625.00, 14-Mar-2017
325,Revenue,CAHD,South Glos Users in South Glos Homes,Permanent Nursing,Blossom Field,625.00, 14-Mar-2017
326,Revenue,CAHD,South Glos Users in South Glos Homes,Permanent Nursing,Blossom Field,625.00, 14-Mar-2017
327,Revenue,CAHD,South Glos Users in South Glos Homes,Permanent Nursing,Blossom Field,625.00, 14-Mar-2017
328,Revenue,CAHD,South Glos Users in South Glos Homes,Permanent Nursing,Blossom Field,625.00, 14-Mar-2017
329,Revenue,CAHD,South Glos Users in South Glos Homes,Permanent Nursing,Blossom Field,625.00, 14-Mar-2017
330,Revenue,CAHD,Bed purchasing - Elderly S117 - South,Permanent Nursing,Blossom Field,4411.20, 14-Mar-2017
331,Revenue,CAHD,South Glos Users in South Glos Homes,Permanent Nursing,Blossom Field,625.00, 14-Mar-2017
332,Revenue,CAHD,South Glos Users in South Glos Homes,Permanent Nursing,Blossom Field,625.00, 14-Mar-2017
333,Revenue,CAHD,Bed Purchasing - South,Permanent Nursing,Blossom Field,4175.00, 14-Mar-2017
334,Revenue,CAHD,Bed Purchasing - South,Permanent Nursing,Blossom Field,2087.50, 14-Mar-2017
335,Revenue,CAHD,South Glos Users in South Glos Homes,Permanent Nursing,Blossom Field,625.00, 14-Mar-2017
336,Revenue,CAHD,South Glos Users in South Glos Homes,Permanent Nursing,Blossom Field,625.00, 14-Mar-2017
337,Revenue,CAHD,Bed Purchasing - Southmead Hospital,Permanent Nursing,Blossom Field,3775.00, 14-Mar-2017
338,Revenue,CAHD,Bed Purchasing - Southmead Hospital,Permanent Nursing,Blossom Field,1887.50, 14-Mar-2017
339,Revenue,CAHD,Bed Purchasing - Southmead Hospital,Permanent Nursing,Blossom Field,2040.00, 14-Mar-2017
340,Revenue,CAHD,Bed Purchasing - Southmead Hospital,Permanent Nursing,Blossom Field,2760.00, 14-Mar-2017
341,Revenue,CAHD,Bed Purchasing - Southmead Hospital,Permanent Nursing,Blossom Field,1020.00, 14-Mar-2017
342,Revenue,CAHD,Bed Purchasing - Southmead Hospital,Permanent Nursing,Blossom Field,1380.00, 14-Mar-2017
343,Revenue,CAHD,South Glos Users in South Glos Homes,Permanent Nursing,Blossom Field,625.00, 14-Mar-2017
344,Revenue,CAHD,South Glos Users in South Glos Homes,Permanent Nursing,Blossom Field,1562.50, 14-Mar-2017
345,Revenue,CAHD,South Glos Users in South Glos Homes,Permanent Nursing,Blossom Field,513.39, 14-Mar-2017
346,Revenue,CAHD,South Glos Users in South Glos Homes,Permanent Nursing,Blossom Field,625.00, 14-Mar-2017
347,Revenue,CAHD,South Glos Users in South Glos Homes,Permanent Nursing,Blossom Field,625.00, 14-Mar-2017
348,Revenue,CAHD,South Glos Users in South Glos Homes,Permanent Nursing,Blossom Field,625.00, 14-Mar-2017
349,Revenue,CAHD,Bed Purchasing - North,Permanent Nursing,Blossom Field,3775.00, 14-Mar-2017
350,Revenue,CAHD,Bed Purchasing - North,Permanent Nursing,Blossom Field,3100.89, 14-Mar-2017
351,Revenue,CAHD,South Glos Users in South Glos Homes,Permanent Nursing,Blossom Field,2477.68, 14-Mar-2017
352,Revenue,CAHD,Bed Purchasing - North,Permanent Nursing,Blossom Field,3494.32, 14-Mar-2017
353,Revenue,CAHD,South Glos Users in South Glos Homes,Permanent Nursing,Blossom Field,625.00, 14-Mar-2017
354,Revenue,CAHD,Bed Purchasing - North,Permanent Nursing,Blossom Field,3438.84, 14-Mar-2017
355,Revenue,CAHD,South Glos Users in South Glos Homes,Permanent Nursing,Blossom Field,625.00, 14-Mar-2017
356,Revenue,CAHD,South Glos Users in South Glos Homes,Permanent Nursing,Blossom Field,625.00, 14-Mar-2017
357,Revenue,CAHD,South Glos Users in South Glos Homes,Permanent Nursing,Blossom Fields,625.00, 02-Mar-2017
358,Revenue,CAHD,South Glos Users in South Glos Homes,Permanent Nursing,Blossom Fields,625.00, 02-Mar-2017
359,Revenue,CAHD,South Glos Users in South Glos Homes,Permanent Nursing,Blossom Fields,625.00, 02-Mar-2017
360,Revenue,CAHD,Bed Purchasing - North,Permanent Nursing,Blossom Fields,1860.16, 02-Mar-2017
361,Revenue,CAHD,Bed Purchasing - Southmead Hospital,Permanent Nursing,Blossom Fields,2129.20, 02-Mar-2017
362,Revenue,CAHD,Bed Purchasing - North,Permanent Nursing,Blossom Fields,2652.00, 02-Mar-2017
363,Revenue,CAHD,CSC - Agency Fostering,Foster Parent Allowances,Blue Sky Fostering Limited,3996.93, 09-Mar-2017
364,Revenue,CAHD,CSC - Agency Fostering,Foster Parent Allowances,Blue Sky Fostering Limited,5709.90, 13-Mar-2017
365,Revenue,CAHD,CSC - Agency Fostering,Foster Parent Allowances,Blue Sky Fostering Limited,2475.00, 16-Mar-2017
366,Revenue,CAHD,Home Care - Elderly - South,Other Small Contracts,Bluebird Care (South Gloucestershire),597.38, 14-Mar-2017
367,Revenue,CAHD,Home Care - Elderly - North,Other Small Contracts,Bluebird Care (South Gloucestershire),639.74, 14-Mar-2017
368,Revenue,CAHD,Home Care - Elderly - South,Other Small Contracts,Bluebird Care (South Gloucestershire),592.36, 14-Mar-2017
369,Revenue,CAHD,Home Care - Elderly - North,Other Small Contracts,Bluebird Care (South Gloucestershire),480.22, 14-Mar-2017
370,Revenue,CAHD,Home Care - Elderly - South,Other Small Contracts,Bluebird Care (South Gloucestershire),597.38, 14-Mar-2017
371,Revenue,CAHD,Home Care - Elderly - North,Other Small Contracts,Bluebird Care (South Gloucestershire),433.92, 14-Mar-2017
372,Revenue,CAHD,Home Care - Elderly - South,Other Small Contracts,Bluebird Care (South Gloucestershire),597.38, 16-Mar-2017
373,Revenue,CAHD,Home Care - Elderly - North,Other Small Contracts,Bluebird Care (South Gloucestershire),556.64, 16-Mar-2017
374,Revenue,CAHD,Training - Adult Services,Training Expenses,Bob Dawson,1150.00, 13-Mar-2017
375,Revenue,CAHD,SEN High Needs - Not at School Base,Other Private Contractors,Bobath Children`s Therapy Centre Wales,4044.00, 13-Mar-2017
376,Revenue,CAHD,Sexual Health,Other Small Contracts,Boots UK Ltd,638.23, 24-Mar-2017
377,Revenue,CAHD,Sexual Health,Other Small Contracts,Boots UK Ltd,698.25, 24-Mar-2017
378,Revenue,CAHD,Bed purchasing - S28A Under 65 - South,Permanent Residential,Bradbury House,4791.88, 14-Mar-2017
379,Revenue,CAHD,Bed Purchasing - South,Permanent Residential,Bradbury House,8267.72, 14-Mar-2017
380,Revenue,CAHD,Bed purchasing - S28A Under 65 - South,Permanent Residential,Bradbury House,7061.04, 14-Mar-2017
381,Revenue,CAHD,18-25 Year Olds,Permanent Residential,Bradbury House,9382.12, 14-Mar-2017
382,Revenue,CAHD,Bed purchasing - Elderly S117 - South,Permanent Residential,Bradbury House,8462.56, 14-Mar-2017
383,Revenue,CAHD,Jointly Funded H&SC Packages,Permanent Residential,Bradbury House,3144.08, 14-Mar-2017
384,Revenue,CAHD,Bed Purchasing - North,Permanent Residential,Bradbury House,7345.55, 14-Mar-2017
385,Revenue,CAHD,Jointly Funded H&SC Packages,Permanent Residential,Bradbury House,10147.05, 14-Mar-2017
386,Revenue,CAHD,Bed Purchasing - North,Permanent Residential,Bradbury House,5876.44, 14-Mar-2017
387,Revenue,CAHD,Jointly Funded H&SC Packages,Permanent Residential,Bradbury House,8117.64, 14-Mar-2017
388,Revenue,CAHD,Home Care - Elderly - North,Other Small Contracts,Bramble Home Care Limited,866.32, 08-Mar-2017
389,Revenue,CAHD,Home Care - Elderly - North,Other Small Contracts,Bramble Home Care Limited,919.36, 10-Mar-2017
390,Revenue,CAHD,CSC - Residential Placements,Permanent Residential,Branas ISAF Ltd,18000.00, 17-Mar-2017
391,Revenue,CAHD,CSC - Residential Placements,Permanent Residential,Branas ISAF Ltd,19000.00, 24-Mar-2017
392,Revenue,CAHD,South Glos Users in South Glos Homes,Permanent Nursing,Brandon Trust,625.00, 14-Mar-2017
393,Revenue,CAHD,South Glos Users in South Glos Homes,Permanent Nursing,Brandon Trust,625.00, 14-Mar-2017
394,Revenue,CAHD,Bed Purchasing - South,Permanent Nursing,Brandon Trust,5537.76, 14-Mar-2017
395,Revenue,CAHD,South Glos Users in South Glos Homes,Permanent Nursing,Brandon Trust,625.00, 14-Mar-2017
396,Revenue,CAHD,Bed Purchasing - South,Permanent Residential,Brandon Trust,10847.76, 14-Mar-2017
397,Revenue,CAHD,Bed Purchasing - Southmead Hospital,Permanent Nursing,Brandon Trust,5487.72, 14-Mar-2017
398,Revenue,CAHD,South Glos Users in South Glos Homes,Permanent Nursing,Brandon Trust,625.00, 14-Mar-2017
399,Revenue,CAHD,Bed Purchasing - South,Permanent Nursing,Brandon Trust,5487.72, 14-Mar-2017
400,Revenue,CAHD,South Glos Users in South Glos Homes,Permanent Nursing,Brandon Trust,625.00, 14-Mar-2017
401,Revenue,CAHD,Bed purchasing - S28A Under 65 - South,Permanent Nursing,Brandon Trust,5817.92, 14-Mar-2017
402,Revenue,CAHD,South Glos Users in South Glos Homes,Permanent Nursing,Brandon Trust,625.00, 14-Mar-2017
403,Revenue,CAHD,Bed purchasing - S28A Under 65 - South,Permanent Residential,Brandon Trust,5714.96, 14-Mar-2017
404,Revenue,CAHD,Bed Purchasing - LD S28A- Over 65- South,Permanent Nursing,Brandon Trust,5817.92, 14-Mar-2017
405,Revenue,CAHD,South Glos Users in South Glos Homes,Permanent Nursing,Brandon Trust,625.00, 14-Mar-2017
406,Revenue,CAHD,Bed Purchasing - LD S28A- Over 65- South,Permanent Nursing,Brandon Trust,5487.72, 14-Mar-2017
407,Revenue,CAHD,South Glos Users in South Glos Homes,Permanent Nursing,Brandon Trust,625.00, 14-Mar-2017
408,Revenue,CAHD,Bed Purchasing - South,Permanent Residential,Brandon Trust,3708.68, 14-Mar-2017
409,Revenue,CAHD,Bed purchasing - S28A Under 65 - South,Permanent Residential,Brandon Trust,65063.78, 14-Mar-2017
410,Revenue,CAHD,Bed purchasing - S28A Under 65 - South,Permanent Residential,Brandon Trust,5597.72, 14-Mar-2017
411,Revenue,CAHD,Bed purchasing - S28A Under 65 - South,Fees & Charges Income - General,Brandon Trust,3689.21, 14-Mar-2017
412,Revenue,CAHD,Bed purchasing - S28A Under 65 - South,Permanent Residential,Brandon Trust,5714.76, 14-Mar-2017
413,Revenue,CAHD,Bed purchasing - S28A Under 65 - South,Fees & Charges Income - General,Brandon Trust,1413.62, 14-Mar-2017
414,Revenue,CAHD,Bed Purchasing - North,Permanent Nursing,Brandon Trust,34928.26, 14-Mar-2017
415,Revenue,CAHD,Bed Purchasing - North,Permanent Nursing,Brandon Trust,5482.04, 14-Mar-2017
416,Revenue,CAHD,South Glos Users in South Glos Homes,Permanent Nursing,Brandon Trust,625.00, 14-Mar-2017
417,Revenue,CAHD,Bed purchasing - S28A Under 65 - South,Permanent Nursing,Brandon Trust,5817.92, 14-Mar-2017
418,Revenue,CAHD,South Glos Users in South Glos Homes,Permanent Nursing,Brandon Trust,625.00, 14-Mar-2017
419,Revenue,CAHD,Bed purchasing -S28A  Under 65 - North,Permanent Nursing,Brandon Trust,5267.04, 14-Mar-2017
420,Revenue,CAHD,Bed purchasing - S28A Under 65 - South,Permanent Residential,Brandon Trust,5714.76, 14-Mar-2017
421,Revenue,CAHD,Bed Purchasing - LD S28A- Over 65- South,Permanent Residential,Brandon Trust,5372.72, 14-Mar-2017
422,Revenue,CAHD,Social Lettings Agency,Fees - General,Individual,11.41, 03-Mar-2017
423,Revenue,CAHD,Social Lettings Agency,Other Supplies & Services,Individual,746.54, 03-Mar-2017
424,Revenue,CAHD,Bed Purchasing - Southmead Hospital,Permanent Residential,Bridge House Care Home,2392.00, 14-Mar-2017
425,Revenue,CAHD,Bed Purchasing - North,Permanent Residential,Bridge House Care Home,2351.56, 14-Mar-2017
426,Revenue,CAHD,Home Care - Elderly - North,Day Care / Social Activities,Bridge House Care Home,520.00, 14-Mar-2017
427,Revenue,CAHD,Bed Purchasing - North,Respite Planned - Residential,Bridge House Care Home,1196.00, 14-Mar-2017
428,Revenue,CAHD,Bed purchasing - Elderly S117 - South,Permanent Residential,Bridge House Care Home,2392.00, 14-Mar-2017
429,Revenue,CAHD,Bed purchasing - Elderly S117 - South,Permanent Residential,Bridge House Care Home,2392.00, 14-Mar-2017
430,Revenue,CAHD,Bed Purchasing - North,Permanent Residential,Bridge House Care Home,2163.68, 14-Mar-2017
431,Revenue,CAHD,Bed Purchasing - North,Permanent Residential,Bridge House Care Home,2274.48, 14-Mar-2017
432,Revenue,CAHD,NTS Grant - Trainee Social Wor,Training Expenses,Bridget Rothwell,2000.00, 03-Mar-2017
433,Revenue,CAHD,NTS Grant - Trainee Social Wor,Training Expenses,Bridget Rothwell,1500.00, 10-Mar-2017
434,Revenue,CAHD,NTS Grant - Trainee Social Wor,Training Expenses,Bridget Rothwell,1423.38, 10-Mar-2017
435,Revenue,CAHD,NTS Grant - Trainee Social Wor,Training Expenses,Bridget Rothwell,568.98, 10-Mar-2017
436,Revenue,CAHD,Bed Purchasing - North,Permanent Residential,Bridgwater Court,10192.44, 14-Mar-2017
437,Revenue,CAHD,EY- 3 & 4 year old payments to providers,Preventative Assistance,Bright Sparks Pre School Limited,954.00, 13-Mar-2017
438,Revenue,CAHD,Bed Purchasing - South,Permanent Residential,Brightbow,2654.68, 14-Mar-2017
439,Revenue,CAHD,MH Purchasing - Younger,Permanent Residential,Brightbow,2179.12, 14-Mar-2017
440,Revenue,CAHD,Statemented Support Academies,Schools Funding,Bristol & South Gloucestershire UTC,649.97, 29-Mar-2017
441,Revenue,CAHD,NHS Health Checks & Tobacco Control,Other Supplies & Services,Bristol City Council,11700.00, 02-Mar-2017
442,Revenue,CAHD,Transport OLA Special Schools and RB,Client Transport,Bristol City Council,3232.65, 08-Mar-2017
443,Revenue,CAHD,Purchase of RAC places,Other L.A.'s - General,Bristol City Council,4337.80, 17-Mar-2017
444,Revenue,CAHD,Purchase of RAC places,Other L.A.'s - General,Bristol City Council,19841.40, 29-Mar-2017
445,Revenue,CAHD,Leadership and Business Support,Other Small Contracts,Bristol City Council,8389.00, 21-Mar-2017
446,Revenue,CAHD,Sexual Health,Other Small Contracts,Bristol City Council,63259.00, 31-Mar-2017
447,Revenue,CAHD,Leadership and Business Support,Other Small Contracts,Bristol City Council,50901.00, 31-Mar-2017
448,Revenue,CAHD,Purchase of RAC places,Other L.A.'s - General,Bristol City Council,3960.60, 27-Mar-2017
449,Revenue,CAHD,Schools Specific Grant Income,Other Public Bodies,Bristol City Council,500.00, 20-Mar-2017
450,Revenue,CAHD,Schools Specific Grant Income,Other Public Bodies,Bristol City Council - Schools,500.00, 20-Mar-2017
451,Revenue,CAHD,Placements OLA Special Schools and RB,Other L.A.'s - General,Bristol City Council - Schools,2148.00, 02-Mar-2017
452,Revenue,CAHD,Placements OLA Special Schools and RB,Other L.A.'s - General,Bristol City Council - Schools,2148.00, 31-Mar-2017
453,Revenue,CAHD,Placements OLA Special Schools and RB,Other L.A.'s - General,Bristol City Council - Schools,2750.50, 02-Mar-2017
454,Revenue,CAHD,Placements OLA Special Schools and RB,Other L.A.'s - General,Bristol City Council - Schools,2750.50, 31-Mar-2017
455,Revenue,CAHD,Placements OLA Special Schools and RB,Other L.A.'s - General,Bristol City Council - Schools,1444.09, 02-Mar-2017
456,Revenue,CAHD,Placements OLA Special Schools and RB,Other L.A.'s - General,Bristol City Council - Schools,1445.75,[] 31-Mar-2017
457,Revenue,CAHD,Statemented Support Payments to OLAs,Other L.A.'s - General,Bristol City Council - Schools,1374.97, 29-Mar-2017
458,Revenue,CAHD,Schools Specific Grant Income,Other Public Bodies,Bristol City Council - Schools,500.00, 20-Mar-2017
459,Revenue,CAHD,Statemented Support Payments to OLAs,Other L.A.'s - General,Bristol City Council - Schools,1091.64, 29-Mar-2017
460,Revenue,CAHD,Placements OLA Special Schools and RB,Other L.A.'s - General,Bristol City Council - Schools,2750.50, 02-Mar-2017
461,Revenue,CAHD,Placements OLA Special Schools and RB,Other L.A.'s - General,Bristol City Council - Schools,2750.50, 31-Mar-2017
462,Revenue,CAHD,Placements OLA Special Schools and RB,Other L.A.'s - General,Bristol City Council - Schools,1398.00, 02-Mar-2017
463,Revenue,CAHD,Placements OLA Special Schools and RB,Other L.A.'s - General,Bristol City Council - Schools,1398.00, 31-Mar-2017
464,Revenue,CAHD,Placements OLA Special Schools and RB,Other L.A.'s - General,Bristol City Council - Schools,833.33, 02-Mar-2017
465,Revenue,CAHD,Placements OLA Special Schools and RB,Other L.A.'s - General,Bristol City Council - Schools,833.37, 31-Mar-2017
466,Revenue,CAHD,Placements OLA Special Schools and RB,Other L.A.'s - General,Bristol City Council - Schools,1333.33, 02-Mar-2017
467,Revenue,CAHD,Placements OLA Special Schools and RB,Other L.A.'s - General,Bristol City Council - Schools,1333.33, 31-Mar-2017
468,Revenue,CAHD,Placements OLA Special Schools and RB,Other L.A.'s - General,Bristol City Council - Schools,3583.83, 02-Mar-2017
469,Revenue,CAHD,Placements OLA Special Schools and RB,Other L.A.'s - General,Bristol City Council - Schools,3583.83, 31-Mar-2017
470,Revenue,CAHD,Placements OLA Special Schools and RB,Other L.A.'s - General,Bristol City Council - Schools,2750.50, 02-Mar-2017
471,Revenue,CAHD,Placements OLA Special Schools and RB,Other L.A.'s - General,Bristol City Council - Schools,2750.50, 31-Mar-2017
472,Revenue,CAHD,Placements OLA Special Schools and RB,Other L.A.'s - General,Bristol City Council - Schools,2750.50, 02-Mar-2017
473,Revenue,CAHD,Placements OLA Special Schools and RB,Other L.A.'s - General,Bristol City Council - Schools,2750.50, 31-Mar-2017
474,Revenue,CAHD,Placements OLA Special Schools and RB,Other L.A.'s - General,Bristol City Council - Schools,1477.33, 02-Mar-2017
475,Revenue,CAHD,Placements OLA Special Schools and RB,Other L.A.'s - General,Bristol City Council - Schools,1477.33,[] 31-Mar-2017
476,Revenue,CAHD,Placements OLA Special Schools and RB,Other L.A.'s - General,Bristol City Council - Schools,977.33, 02-Mar-2017
477,Revenue,CAHD,Placements OLA Special Schools and RB,Other L.A.'s - General,Bristol City Council - Schools,977.33, 31-Mar-2017
478,Revenue,CAHD,Placements OLA Special Schools and RB,Other L.A.'s - General,Bristol City Council - Schools,1477.33, 02-Mar-2017
479,Revenue,CAHD,Placements OLA Special Schools and RB,Other L.A.'s - General,Bristol City Council - Schools,1477.33, 31-Mar-2017
480,Revenue,CAHD,Placements OLA Special Schools and RB,Other L.A.'s - General,Bristol City Council - Schools,778.84, 31-Mar-2017
481,Revenue,CAHD,Placements OLA Special Schools and RB,Other L.A.'s - General,Bristol City Council - Schools,833.33,[] 02-Mar-2017
482,Revenue,CAHD,Placements OLA Special Schools and RB,Other L.A.'s - General,Bristol City Council - Schools,833.37, 31-Mar-2017
483,Revenue,CAHD,Placements OLA Special Schools and RB,Other L.A.'s - General,Bristol City Council - Schools,2750.50, 02-Mar-2017
484,Revenue,CAHD,Placements OLA Special Schools and RB,Other L.A.'s - General,Bristol City Council - Schools,2750.50, 31-Mar-2017
485,Revenue,CAHD,Statemented Support Payments to OLAs,Other L.A.'s - General,Bristol City Council - Schools,641.64, 29-Mar-2017
486,Revenue,CAHD,Placements OLA Special Schools and RB,Other L.A.'s - General,Bristol City Council - Schools,866.50, 02-Mar-2017
487,Revenue,CAHD,Placements OLA Special Schools and RB,Other L.A.'s - General,Bristol City Council - Schools,866.50, 31-Mar-2017
488,Revenue,CAHD,Placements OLA Special Schools and RB,Other L.A.'s - General,Bristol City Council - Schools,4335.04,[] 02-Mar-2017
489,Revenue,CAHD,Placements OLA Special Schools and RB,Other L.A.'s - General,Bristol City Council - Schools,4335.04, 31-Mar-2017
490,Revenue,CAHD,Placements OLA Special Schools and RB,Other L.A.'s - General,Bristol City Council - Schools,2750.50, 02-Mar-2017
491,Revenue,CAHD,Placements OLA Special Schools and RB,Other L.A.'s - General,Bristol City Council - Schools,2750.50, 31-Mar-2017
492,Revenue,CAHD,Placements OLA Special Schools and RB,Other L.A.'s - General,Bristol City Council - Schools,5314.53, 31-Mar-2017
493,Revenue,CAHD,Placements OLA Special Schools and RB,Other L.A.'s - General,Bristol City Council - Schools,1398.00, 02-Mar-2017
494,Revenue,CAHD,Placements OLA Special Schools and RB,Other L.A.'s - General,Bristol City Council - Schools,1398.00, 31-Mar-2017
495,Revenue,CAHD,Placements OLA Special Schools and RB,Other L.A.'s - General,Bristol City Council - Schools,2750.50, 02-Mar-2017
496,Revenue,CAHD,Placements OLA Special Schools and RB,Other L.A.'s - General,Bristol City Council - Schools,2750.50, 31-Mar-2017
497,Revenue,CAHD,Placements OLA Special Schools and RB,Other L.A.'s - General,Bristol City Council - Schools,2200.40, 02-Mar-2017
498,Revenue,CAHD,Placements OLA Special Schools and RB,Other L.A.'s - General,Bristol City Council - Schools,2200.40, 31-Mar-2017
499,Revenue,CAHD,Placements OLA Special Schools and RB,Other L.A.'s - General,Bristol City Council - Schools,2227.33, 02-Mar-2017
500,Revenue,CAHD,Placements OLA Special Schools and RB,Other L.A.'s - General,Bristol City Council - Schools,2227.33, 31-Mar-2017
501,Revenue,CAHD,Placements OLA Special Schools and RB,Other L.A.'s - General,Bristol City Council - Schools,2750.50, 02-Mar-2017
502,Revenue,CAHD,Placements OLA Special Schools and RB,Other L.A.'s - General,Bristol City Council - Schools,2750.50, 31-Mar-2017
503,Revenue,CAHD,Placements OLA Special Schools and RB,Other L.A.'s - General,Bristol City Council - Schools,3060.67, 02-Mar-2017
504,Revenue,CAHD,Placements OLA Special Schools and RB,Other L.A.'s - General,Bristol City Council - Schools,3060.67, 31-Mar-2017
505,Revenue,CAHD,Placements OLA Special Schools and RB,Other L.A.'s - General,Bristol City Council - Schools,944.92, 02-Mar-2017
506,Revenue,CAHD,Placements OLA Special Schools and RB,Other L.A.'s - General,Bristol City Council - Schools,944.92, 31-Mar-2017
507,Revenue,CAHD,Home Care - Elderly - North,Day Care / Social Activities,Bristol Community Links North,983.52, 14-Mar-2017
508,Revenue,CAHD,Home Care - Elderly - North,Day Care / Social Activities,Bristol Community Links North,2458.80, 14-Mar-2017
509,Revenue,CAHD,Statemented Support Payments to OLAs,Other L.A.'s - General,Bristol Free School,933.30, 29-Mar-2017
510,Revenue,CAHD,Home Care - Elderly - South,Supported Living,Bristol Houses UK Limited,602.49, 09-Mar-2017
511,Revenue,CAHD,Home Care - Elderly - North,Day Care / Social Activities,Bristol Houses UK Limited,1324.68, 06-Mar-2017
512,Revenue,CAHD,Bed and Breakfast,Bed & Breakfast,Bristol Housing & Support Limited,490.00, 08-Mar-2017
513,Revenue,CAHD,Supporting People Programme,Grants to Voluntary Bodies,Bristol Missing Link,1464.83, 01-Mar-2017
514,Revenue,CAHD,Tenancy Start Up Scheme,Other Supplies & Services,Bristol Property Partnership,1880.00, 31-Mar-2017
515,Revenue,CAHD,Virtual School for Looked After Children,Fees - General,Bristol Tuition Limited,602.50, 15-Mar-2017
516,Revenue,CAHD,Alexandra Way,Water Charges,Bristol Wessex Billing Services Limited,593.93, 27-Mar-2017
517,Revenue,CAHD,CSC - Vinney Green Secure Unit,Water Charges,Bristol Wessex Billing Services Limited,859.61, 27-Mar-2017
518,Revenue,CAHD,Grange School Holding Account,Water Charges,Bristol Wessex Billing Services Limited,1012.90, 27-Mar-2017
519,Revenue,CAHD,CSC - Vinney Green Secure Unit,R & M by Departments,Bristolfridge,850.00, 29-Mar-2017
520,Revenue,CAHD,18-25 Year Olds,SU Employment Support,Britannia House,702.96, 14-Mar-2017
521,Revenue,CAHD,Home Care - Elderly - North,Day Care / Social Activities,Britannia House,937.28, 14-Mar-2017
522,Revenue,CAHD,18-25 Year Olds,Day Care / Social Activities,Britannia House,702.96, 14-Mar-2017
523,Revenue,CAHD,Home Care - Elderly - North,Day Care / Social Activities,Britannia House,702.96, 14-Mar-2017
524,Revenue,CAHD,Home Care - Elderly - North,Day Care / Social Activities,Britannia House,937.28, 14-Mar-2017
525,Revenue,CAHD,Home Care - Elderly - South,Day Care / Social Activities,Britannia House,937.28, 14-Mar-2017
526,Revenue,CAHD,Home Care - Elderly - South,Day Care / Social Activities,Britannia House,702.96, 14-Mar-2017
527,Revenue,CAHD,Home Care - Elderly - South,Day Care / Social Activities,Britannia House,702.96, 14-Mar-2017
528,Revenue,CAHD,CSC - Care Leavers Independent Living,Independent Living,Bromford Housing Association,1053.40, 10-Mar-2017
529,Revenue,CAHD,CSC - Care Leavers Independent Living,Independent Living,Bromford Housing Association,789.52, 10-Mar-2017
530,Revenue,CAHD,Supporting People Programme,Grants to Voluntary Bodies,Bromford Housing Group,14395.08, 01-Mar-2017
531,Revenue,CAHD,Pathway 1 - Re-Ablement Home Care,Private & Voluntary Home Care,Brunelcare,24132.35, 06-Mar-2017
532,Revenue,CAHD,Pathway 1 - Re-Ablement Home Care,Private & Voluntary Home Care,Brunelcare,24132.35, 13-Mar-2017
533,Revenue,CAHD,Pathway 1 - Re-Ablement Home Care,Private & Voluntary Home Care,Brunelcare,24132.35, 20-Mar-2017
534,Revenue,CAHD,Pathway 1 - Re-Ablement Home Care,Private & Voluntary Home Care,Brunelcare,24132.35, 27-Mar-2017
535,Revenue,CAHD,Bed Purchasing - North,Permanent Nursing,Brunelcare,2314.84, 14-Mar-2017
536,Revenue,CAHD,Bed purchasing - Elderly S117 - South,Permanent Nursing,Brunelcare,3497.00, 14-Mar-2017
537,Revenue,CAHD,South Glos Users in South Glos Homes,Permanent Nursing,Brunelcare,625.00, 14-Mar-2017
538,Revenue,CAHD,Bed Purchasing - Elderly S117- North,Permanent Nursing,Brunelcare,2872.00, 14-Mar-2017
539,Revenue,CAHD,Bed Purchasing - South,Permanent Nursing,Brunelcare,2340.40, 14-Mar-2017
540,Revenue,CAHD,Bed Purchasing - Elderly S117- North,Permanent Nursing,Brunelcare,2051.43, 14-Mar-2017
541,Revenue,CAHD,South Glos Users in South Glos Homes,Permanent Nursing,Brunelcare,625.00, 14-Mar-2017
542,Revenue,CAHD,Bed Purchasing - Southmead Hospital,Permanent Nursing,Brunelcare,1304.32, 14-Mar-2017
543,Revenue,CAHD,South Glos Users in South Glos Homes,Permanent Nursing,Brunelcare,625.00, 14-Mar-2017
544,Revenue,CAHD,Bed Purchasing - South,Permanent Nursing,Brunelcare,2154.64, 14-Mar-2017
545,Revenue,CAHD,South Glos Users in South Glos Homes,Permanent Nursing,Brunelcare,625.00, 14-Mar-2017
546,Revenue,CAHD,Bed Purchasing - South,Permanent Nursing,Brunelcare,2176.24, 14-Mar-2017
547,Revenue,CAHD,South Glos Users in South Glos Homes,Permanent Nursing,Brunelcare,625.00, 14-Mar-2017
548,Revenue,CAHD,Bed purchasing - Elderly S117 - South,Permanent Nursing,Brunelcare,2872.00, 14-Mar-2017
549,Revenue,CAHD,South Glos Users in South Glos Homes,Permanent Nursing,Brunelcare,625.00, 14-Mar-2017
550,Revenue,CAHD,Bed Purchasing - North,Permanent Nursing,Brunelcare,2284.96, 14-Mar-2017
551,Revenue,CAHD,South Glos Users in South Glos Homes,Permanent Nursing,Brunelcare,625.00, 14-Mar-2017
552,Revenue,CAHD,Bed Purchasing - Southmead Hospital,Permanent Nursing,Brunelcare,2194.92, 14-Mar-2017
553,Revenue,CAHD,South Glos Users in South Glos Homes,Permanent Nursing,Brunelcare,625.00, 14-Mar-2017
554,Revenue,CAHD,Bed Purchasing - North,Permanent Nursing,Brunelcare,2305.68, 14-Mar-2017
555,Revenue,CAHD,South Glos Users in South Glos Homes,Permanent Nursing,Brunelcare,625.00, 14-Mar-2017
556,Revenue,CAHD,Bed Purchasing - North,Permanent Nursing,Brunelcare,2349.20, 14-Mar-2017
557,Revenue,CAHD,South Glos Users in South Glos Homes,Permanent Nursing,Brunelcare,625.00, 14-Mar-2017
558,Revenue,CAHD,Bed Purchasing - Southmead Hospital,Permanent Nursing,Brunelcare,2349.20, 14-Mar-2017
559,Revenue,CAHD,Bed Purchasing - Southmead Hospital,Permanent Nursing,Brunelcare,2349.20, 14-Mar-2017
560,Revenue,CAHD,South Glos Users in South Glos Homes,Permanent Nursing,Brunelcare,625.00, 14-Mar-2017
561,Revenue,CAHD,Bed Purchasing - Elderly S117- North,Permanent Nursing,Brunelcare,2872.00, 14-Mar-2017
562,Revenue,CAHD,Bed Purchasing - North,Respite Planned - Nursing,Brunelcare,624.46, 14-Mar-2017
563,Revenue,CAHD,Bed Purchasing - North,Respite Planned - Nursing,Brunelcare,1025.71, 14-Mar-2017
564,Revenue,CAHD,Bed Purchasing - North,Respite Planned - Nursing,Brunelcare,624.46, 14-Mar-2017
565,Revenue,CAHD,Pathway 2 - (Interim Beds),Permanent Nursing,Brunelcare,51086.88, 17-Mar-2017
566,Revenue,CAHD,Pathway 2 - (Interim Beds),Permanent Nursing,Brunelcare,51086.88, 23-Mar-2017
567,Revenue,CAHD,Pathway 2 - (Interim Beds),Permanent Nursing,Brunelcare,15407.00, 21-Mar-2017
568,Revenue,CAHD,Home Care - Elderly - South,Other Small Contracts,Brunelcare,2086.24, 03-Mar-2017
569,Revenue,CAHD,Home Care - Elderly - North,Other Small Contracts,Brunelcare,1476.28, 03-Mar-2017
570,Revenue,CAHD,Home Care - Elderly - South,Other Small Contracts,Brunelcare,1834.30, 20-Mar-2017
571,Revenue,CAHD,Home Care - Elderly - North,Other Small Contracts,Brunelcare,1507.22, 20-Mar-2017
572,Revenue,CAHD,Home Care - Elderly - South,Other Small Contracts,Brunelcare,1851.98, 20-Mar-2017
573,Revenue,CAHD,Home Care - Elderly - North,Other Small Contracts,Brunelcare,1392.30, 20-Mar-2017
574,Revenue,CAHD,Home Care - Elderly - South,Other Small Contracts,Brunelcare,2006.68, 23-Mar-2017
575,Revenue,CAHD,Home Care - Elderly - North,Other Small Contracts,Brunelcare,1131.52, 23-Mar-2017
576,Revenue,CAHD,Woodleaze,Agency Staff (Admin/Support Staff) Pay,BS Project Services Limited,758.05, 01-Mar-2017
577,Revenue,CAHD,Woodleaze,Agency Staff (Admin/Support Staff) Pay,BS Project Services Limited,786.02, 10-Mar-2017
578,Revenue,CAHD,Woodleaze,Agency Staff (Admin/Support Staff) Pay,BS Project Services Limited,665.20, 23-Mar-2017
579,Revenue,CAHD,CSC - Vinney Green Secure Unit,Catering Equipment,Bunzl Lockhart Catering Equiptment,1149.00, 10-Mar-2017
580,Revenue,CAHD,Bed Purchasing - North,Permanent Nursing,Bupa Care Services  Bridge House,1740.00, 14-Mar-2017
581,Revenue,CAHD,Jointly Funded H&SC Packages,Permanent Nursing,Bupa Care Services  Bridge House,4344.04, 14-Mar-2017
582,Revenue,CAHD,South Glos Users in all other LA Homes,Permanent Nursing,Bupa Care Services  Bridge House,860.16, 14-Mar-2017
583,Revenue,CAHD,Grange School Holding Account,Security Systems,BWS Security Systems Limited,576.00, 02-Mar-2017
584,Revenue,CAHD,Grange School Holding Account,Security Systems,BWS Security Systems Limited,1088.00, 02-Mar-2017
585,Revenue,CAHD,Grange School Holding Account,Security Systems,BWS Security Systems Limited,664.00, 02-Mar-2017
586,Revenue,CAHD,Alexandra Way,Premises Maintenance by Contractor,BWS Security Systems Limited,576.00, 02-Mar-2017
587,Revenue,CAHD,CSC - Vinney Green Secure Unit,Service Contracts (Premises),BWS Security Systems Limited,48952.30, 29-Mar-2017
588,Revenue,CAHD,CSC - Vinney Green Secure Unit,R & M by Departments,BWS Security Systems Limited,600.00, 29-Mar-2017
589,Revenue,CAHD,CSC - Vinney Green Secure Unit,R & M by Departments,BWS Security Systems Limited,2171.00, 31-Mar-2017
590,Revenue,CAHD,Grange School Holding Account,Other Supplies & Services,C P S (Grounds) Limited,1648.77, 21-Mar-2017
591,Revenue,CAHD,Statemented Support Payments to OLAs,Other L.A.'s - General,Cabot Learning Federation,1099.97, 29-Mar-2017
592,Revenue,CAHD,Schools Specific Grant Income,Other Public Bodies,Cabot Learning Federation,500.00, 20-Mar-2017
593,Revenue,CAHD,Schools Specific Grant Income,Other Public Bodies,Cabot Learning Federation,500.00, 20-Mar-2017
594,Revenue,CAHD,Schools Specific Grant Income,Other Public Bodies,Cabot Learning Federation,1000.00, 30-Mar-2017
595,Revenue,CAHD,Statemented Support Academies,Other Public Bodies,Cabot Learning Federation,14000.00, 20-Mar-2017
596,Revenue,CAHD,Academy Resource Base Funding,Other Public Bodies,Cabot Learning Federation,1231.51, 28-Mar-2017
597,Revenue,CAHD,Academy Resource Base Funding,Other Public Bodies,Cabot Learning Federation,1613.70, 28-Mar-2017
598,Revenue,CAHD,Academy Resource Base Funding,Other Public Bodies,Cabot Learning Federation,1613.70, 28-Mar-2017
599,Revenue,CAHD,Academy Resource Base Funding,Other Public Bodies,Cabot Learning Federation,509.59, 28-Mar-2017
600,Revenue,CAHD,Academy Resource Base Funding,Other Public Bodies,Cabot Learning Federation,509.59, 28-Mar-2017
601,Revenue,CAHD,Academy Resource Base Funding,Other Public Bodies,Cabot Learning Federation,509.59, 28-Mar-2017
602,Revenue,CAHD,Academy Resource Base Funding,Other Public Bodies,Cabot Learning Federation,509.59, 28-Mar-2017
603,Revenue,CAHD,Academy Resource Base Funding,Other Public Bodies,Cabot Learning Federation,1783.56, 28-Mar-2017
604,Revenue,CAHD,Academy Resource Base Funding,Other Public Bodies,Cabot Learning Federation,509.59, 28-Mar-2017
605,Revenue,CAHD,Academy Resource Base Funding,Other Public Bodies,Cabot Learning Federation,509.59, 28-Mar-2017
606,Revenue,CAHD,Academy Resource Base Funding,Other Public Bodies,Cabot Learning Federation,1613.70, 28-Mar-2017
607,Revenue,CAHD,Academy Resource Base Funding,Other Public Bodies,Cabot Learning Federation,1613.70, 28-Mar-2017
608,Revenue,CAHD,Academy Resource Base Funding,Other Public Bodies,Cabot Learning Federation,679.45, 28-Mar-2017
609,Revenue,CAHD,Academy Resource Base Funding,Other Public Bodies,Cabot Learning Federation,1613.70, 28-Mar-2017
610,Revenue,CAHD,Academy Resource Base Funding,Other Public Bodies,Cabot Learning Federation,509.59, 28-Mar-2017
611,Revenue,CAHD,Academy Resource Base Funding,Other Public Bodies,Cabot Learning Federation,509.59, 28-Mar-2017
612,Revenue,CAHD,Academy Resource Base Funding,Other Public Bodies,Cabot Learning Federation,1613.70, 28-Mar-2017
613,Revenue,CAHD,Academy Resource Base Funding,Other Public Bodies,Cabot Learning Federation,509.59, 28-Mar-2017
614,Revenue,CAHD,Academy Resource Base Funding,Other Public Bodies,Cabot Learning Federation,509.59, 28-Mar-2017
615,Revenue,CAHD,Academy Resource Base Funding,Other Public Bodies,Cabot Learning Federation,1613.70, 28-Mar-2017
616,Revenue,CAHD,Academy Resource Base Funding,Other Public Bodies,Cabot Learning Federation,509.59, 28-Mar-2017
617,Revenue,CAHD,Academy Resource Base Funding,Other Public Bodies,Cabot Learning Federation,509.59, 28-Mar-2017
618,Revenue,CAHD,Academy Resource Base Funding,Other Public Bodies,Cabot Learning Federation,1231.51, 28-Mar-2017
619,Revenue,CAHD,Schools Specific Grant Income,Other Public Bodies,Cabot Learning Federation,500.00, 20-Mar-2017
620,Revenue,CAHD,Schools Specific Grant Income,Other Public Bodies,Cabot Learning Federation,500.00, 20-Mar-2017
621,Revenue,CAHD,Schools Specific Grant Income,Other Public Bodies,Cabot Learning Federation,1000.00, 30-Mar-2017
622,Revenue,CAHD,Schools Specific Grant Income,Other Public Bodies,Cabot Learning Federation,500.00, 20-Mar-2017
623,Revenue,CAHD,Schools Specific Grant Income,Other Public Bodies,Cabot Learning Federation,500.00, 20-Mar-2017
624,Revenue,CAHD,Schools Specific Grant Income,Other Public Bodies,Cabot Learning Federation,1000.00, 30-Mar-2017
625,Revenue,CAHD,Schools Specific Grant Income,Other Public Bodies,Cabot Learning Federation,500.00, 20-Mar-2017
626,Revenue,CAHD,Schools Specific Grant Income,Other Public Bodies,Cabot Learning Federation,500.00, 20-Mar-2017
627,Revenue,CAHD,Schools Specific Grant Income,Other Public Bodies,Cabot Learning Federation,500.00, 20-Mar-2017
628,Revenue,CAHD,Schools Specific Grant Income,Other Public Bodies,Cabot Learning Federation,500.00, 20-Mar-2017
629,Revenue,CAHD,Schools Specific Grant Income,Other Public Bodies,Cabot Learning Federation,500.00, 20-Mar-2017
630,Revenue,CAHD,Statemented Support Payments to OLAs,Other L.A.'s - General,Cabot Learning Federation,524.97, 29-Mar-2017
631,Revenue,CAHD,Statemented Support Academies,Schools Funding,Cabot Learning Federation,641.64, 29-Mar-2017
632,Revenue,CAHD,Statemented Support Academies,Schools Funding,Cabot Learning Federation,691.64, 29-Mar-2017
633,Revenue,CAHD,Statemented Support Academies,Schools Funding,Cabot Learning Federation,691.64, 29-Mar-2017
634,Revenue,CAHD,Statemented Support Academies,Schools Funding,Cabot Learning Federation,624.97, 29-Mar-2017
635,Revenue,CAHD,Statemented Support Academies,Schools Funding,Cabot Learning Federation,558.30, 29-Mar-2017
636,Revenue,CAHD,Statemented Support Academies,Schools Funding,Cabot Learning Federation,583.30, 29-Mar-2017
637,Revenue,CAHD,Statemented Support Academies,Schools Funding,Cabot Learning Federation,583.30, 29-Mar-2017
638,Revenue,CAHD,Statemented Support Academies,Schools Funding,Cabot Learning Federation,1408.30, 29-Mar-2017
639,Revenue,CAHD,Statemented Support Academies,Schools Funding,Cabot Learning Federation,599.97, 29-Mar-2017
640,Revenue,CAHD,Statemented Support Academies,Schools Funding,Cabot Learning Federation,724.97, 29-Mar-2017
641,Revenue,CAHD,Statemented Support Academies,Schools Funding,Cabot Learning Federation,691.64, 29-Mar-2017
642,Revenue,CAHD,Statemented Support Academies,Schools Funding,Cabot Learning Federation,583.30, 29-Mar-2017
643,Revenue,CAHD,Statemented Support Academies,Schools Funding,Cabot Learning Federation,1316.64, 29-Mar-2017
644,Revenue,CAHD,Statemented Support Academies,Schools Funding,Cabot Learning Federation,624.97, 29-Mar-2017
645,Revenue,CAHD,Statemented Support Academies,Schools Funding,Cabot Learning Federation,899.97, 29-Mar-2017
646,Revenue,CAHD,Statemented Support Academies,Schools Funding,Cabot Learning Federation,683.30, 29-Mar-2017
647,Revenue,CAHD,Statemented Support Academies,Schools Funding,Cabot Learning Federation,958.30, 29-Mar-2017
648,Revenue,CAHD,Statemented Support Academies,Schools Funding,Cabot Learning Federation,749.97, 29-Mar-2017
649,Revenue,CAHD,Statemented Support Academies,Schools Funding,Cabot Learning Federation,933.30, 29-Mar-2017
650,Revenue,CAHD,Statemented Support Academies,Schools Funding,Cabot Learning Federation,549.97, 29-Mar-2017
651,Revenue,CAHD,Statemented Support Payments to OLAs,Other L.A.'s - General,Cabot Learning Federation,583.30, 29-Mar-2017
652,Revenue,CAHD,Statemented Support Academies,Schools Funding,Cabot Learning Federation,841.64, 29-Mar-2017
653,Revenue,CAHD,Statemented Support Academies,Schools Funding,Cabot Learning Federation,1308.30, 29-Mar-2017
654,Revenue,CAHD,CSC - YOT Pooled Budget,Software Support & Maintenance,CACI Limited,7312.70, 14-Mar-2017
655,Revenue,CAHD,Sexual Health,Other Small Contracts,Cadbury Heath Healthcare,1083.98, 03-Mar-2017
656,Revenue,CAHD,Independent Special Placements - Pre 16,Other Private Contractors,Calder House School,5575.00, 31-Mar-2017
657,Revenue,CAHD,Home Care - Elderly - North,Day Care / Social Activities,Camphill Communities Thornbury Limited,1088.72, 03-Mar-2017
658,Revenue,CAHD,Home Care - Elderly - North,Other Small Contracts,Camphill Communities Thornbury Limited,158.04, 03-Mar-2017
659,Revenue,CAHD,Home Care - Elderly - North,Supported Living,Camphill Communities Thornbury Limited,987.75, 03-Mar-2017
660,Revenue,CAHD,Home Care - Elderly - North,Day Care / Social Activities,Camphill Communities Thornbury Limited,987.75, 09-Mar-2017
661,Revenue,CAHD,Home Care - Elderly - North,Supported Living,Camphill Communities Thornbury Limited,961.41, 09-Mar-2017
662,Revenue,CAHD,Home Care - Elderly - North,Day Care / Social Activities,Camphill Communities Thornbury Limited,1220.42, 17-Mar-2017
663,Revenue,CAHD,Home Care - Elderly - North,Other Small Contracts,Camphill Communities Thornbury Limited,52.68, 17-Mar-2017
664,Revenue,CAHD,Home Care - Elderly - North,Supported Living,Camphill Communities Thornbury Limited,847.27, 17-Mar-2017
665,Revenue,CAHD,Home Care - Elderly - North,Day Care / Social Activities,Camphill Communities Thornbury Limited,1224.81, 24-Mar-2017
666,Revenue,CAHD,Home Care - Elderly - North,Other Small Contracts,Camphill Communities Thornbury Limited,158.04, 24-Mar-2017
667,Revenue,CAHD,Home Care - Elderly - North,Supported Living,Camphill Communities Thornbury Limited,377.54, 24-Mar-2017
668,Revenue,CAHD,Home Care - Elderly - North,Day Care / Social Activities,Camphill Communities Thornbury Limited,1040.43, 31-Mar-2017
669,Revenue,CAHD,Home Care - Elderly - North,Other Small Contracts,Camphill Communities Thornbury Limited,158.04, 31-Mar-2017
670,Revenue,CAHD,Home Care - Elderly - North,Supported Living,Camphill Communities Thornbury Limited,921.90, 31-Mar-2017
671,Revenue,CAHD,Bed Purchasing - Elderly S117- North,Permanent Residential,Canjayor,2391.32, 14-Mar-2017
672,Revenue,CAHD,CAH Assistant Directors,Agency Staff (Admin/Support Staff) Pay,Capita Resourcing Limited,11590.00, 03-Mar-2017
673,Revenue,CAHD,CAH Assistant Directors,Agency Staff (Admin/Support Staff) Pay,Capita Resourcing Limited,9150.00, 23-Mar-2017
674,Revenue,CAHD,Home Care - Elderly - South,Other Small Contracts,Care 1st Homecare,4960.54, 20-Mar-2017
675,Revenue,CAHD,Home Care - Elderly - North,Other Small Contracts,Care 1st Homecare,5737.04, 20-Mar-2017
676,Revenue,CAHD,Home Care - Elderly - South,Other Small Contracts,Care 1st Homecare,5121.22, 20-Mar-2017
677,Revenue,CAHD,Home Care - Elderly - North,Other Small Contracts,Care 1st Homecare,4565.86, 20-Mar-2017
678,Revenue,CAHD,Home Care - Elderly - South,Other Small Contracts,Care Horizons Limited,355.68, 08-Mar-2017
679,Revenue,CAHD,Home Care - Elderly - North,Day Care / Social Activities,Care Horizons Limited,538.08, 08-Mar-2017
680,Revenue,CAHD,Home Care - Elderly - North,Other Small Contracts,Care Horizons Limited,784.32, 08-Mar-2017
681,Revenue,CAHD,Home Care - Elderly - South,Other Small Contracts,Care Horizons Limited,437.76, 08-Mar-2017
682,Revenue,CAHD,Home Care - Elderly - North,Day Care / Social Activities,Care Horizons Limited,542.64, 08-Mar-2017
683,Revenue,CAHD,Home Care - Elderly - North,Other Small Contracts,Care Horizons Limited,706.80, 08-Mar-2017
684,Revenue,CAHD,Home Care - Elderly - South,Other Small Contracts,Care Horizons Limited,419.52, 08-Mar-2017
685,Revenue,CAHD,Home Care - Elderly - North,Day Care / Social Activities,Care Horizons Limited,551.76, 08-Mar-2017
686,Revenue,CAHD,Home Care - Elderly - North,Other Small Contracts,Care Horizons Limited,766.08, 08-Mar-2017
687,Revenue,CAHD,Home Care - Elderly - South,Other Small Contracts,Care Horizons Limited,346.56, 08-Mar-2017
688,Revenue,CAHD,Home Care - Elderly - North,Day Care / Social Activities,Care Horizons Limited,547.20, 08-Mar-2017
689,Revenue,CAHD,Home Care - Elderly - North,Other Small Contracts,Care Horizons Limited,784.32, 08-Mar-2017
690,Revenue,CAHD,Home Care - Elderly - South,Other Small Contracts,Care Horizons Limited,373.92, 13-Mar-2017
691,Revenue,CAHD,Home Care - Elderly - North,Day Care / Social Activities,Care Horizons Limited,551.76, 13-Mar-2017
692,Revenue,CAHD,Home Care - Elderly - North,Other Small Contracts,Care Horizons Limited,725.04, 13-Mar-2017
693,Revenue,CAHD,Home Care - Elderly - South,Other Small Contracts,Care Horizons Limited,337.44, 24-Mar-2017
694,Revenue,CAHD,Home Care - Elderly - North,Day Care / Social Activities,Care Horizons Limited,533.52, 24-Mar-2017
695,Revenue,CAHD,Home Care - Elderly - North,Other Small Contracts,Care Horizons Limited,725.04, 24-Mar-2017
696,Revenue,CAHD,Home Care - Elderly - South,Other Small Contracts,Care Horizons Limited,497.04, 28-Mar-2017
697,Revenue,CAHD,Home Care - Elderly - North,Day Care / Social Activities,Care Horizons Limited,538.08, 28-Mar-2017
698,Revenue,CAHD,Home Care - Elderly - North,Other Small Contracts,Care Horizons Limited,684.00, 28-Mar-2017
699,Revenue,CAHD,Home Care - Elderly - South,Other Small Contracts,Care Horizons Limited,469.68, 31-Mar-2017
700,Revenue,CAHD,Home Care - Elderly - North,Day Care / Social Activities,Care Horizons Limited,551.76, 31-Mar-2017
701,Revenue,CAHD,Home Care - Elderly - North,Other Small Contracts,Care Horizons Limited,373.92, 31-Mar-2017
702,Revenue,CAHD,Home Care - Elderly - South,Other Small Contracts,Carers R Us (Bristol) Limited,406.64, 06-Mar-2017
703,Revenue,CAHD,Home Care - Elderly - North,Other Small Contracts,Carers R Us (Bristol) Limited,2190.81, 06-Mar-2017
704,Revenue,CAHD,Home Care - Elderly - South,Other Small Contracts,Carers R Us (Bristol) Limited,689.52, 20-Mar-2017
705,Revenue,CAHD,Home Care - Elderly - North,Other Small Contracts,Carers R Us (Bristol) Limited,2214.54, 20-Mar-2017
706,Revenue,CAHD,Home Care - Elderly - South,Other Small Contracts,Carers R Us (Bristol) Limited,676.26, 23-Mar-2017
707,Revenue,CAHD,Home Care - Elderly - North,Other Small Contracts,Carers R Us (Bristol) Limited,2232.22, 23-Mar-2017
708,Revenue,CAHD,Home Care - Elderly - South,Other Small Contracts,Carers R Us (Bristol) Limited,645.32, 23-Mar-2017
709,Revenue,CAHD,Home Care - Elderly - North,Other Small Contracts,Carers R Us (Bristol) Limited,2205.00, 23-Mar-2017
710,Revenue,CAHD,Home Care - Elderly - South,Other Small Contracts,Carers R Us (Bristol) Limited,645.32, 23-Mar-2017
711,Revenue,CAHD,Home Care - Elderly - North,Other Small Contracts,Carers R Us (Bristol) Limited,2198.72, 23-Mar-2017
712,Revenue,CAHD,Home Care - Elderly - South,Other Small Contracts,Caring Comes 1st Ltd,878.15, 09-Mar-2017
713,Revenue,CAHD,Home Care - Elderly - North,Other Small Contracts,Caring Comes 1st Ltd,701.44, 16-Mar-2017
714,Revenue,CAHD,Home Care - Elderly - North,Other Small Contracts,Caring Comes 1st Ltd,674.04, 06-Mar-2017
715,Revenue,CAHD,Home Care - Elderly - North,Other Small Contracts,Caring Comes 1st Ltd,610.11, 15-Mar-2017
716,Revenue,CAHD,Home Care - Elderly - South,Other Small Contracts,Caring Comes 1st Ltd,1139.84, 09-Mar-2017
717,Revenue,CAHD,Home Care - Elderly - South,Other Small Contracts,Caring Comes 1st Ltd,1866.85, 15-Mar-2017
718,Revenue,CAHD,Tenancy Start Up Scheme,Other Supplies & Services,Individual,1850.00, 13-Mar-2017
719,Revenue,CAHD,CSC - LAT Placements,Preventative Assistance,Carpet Giant,806.55, 22-Mar-2017
720,Revenue,CAHD,Statemented Support Academies,Schools Funding,Castle School Education Trust,949.97, 29-Mar-2017
721,Revenue,CAHD,Statemented Support Academies,Schools Funding,Castle School Education Trust,674.97, 29-Mar-2017
722,Revenue,CAHD,Statemented Support Academies,Schools Funding,Castle School Education Trust,783.30, 29-Mar-2017
723,Revenue,CAHD,Statemented Support Academies,Schools Funding,Castle School Education Trust,583.30, 29-Mar-2017
724,Revenue,CAHD,Statemented Support Academies,Schools Funding,Castle School Education Trust,524.97, 29-Mar-2017
725,Revenue,CAHD,Statemented Support Academies,Schools Funding,Castle School Education Trust,1324.97, 29-Mar-2017
726,Revenue,CAHD,Statemented Support Academies,Schools Funding,Castle School Education Trust,591.64, 29-Mar-2017
727,Revenue,CAHD,Statemented Support Academies,Schools Funding,Castle School Education Trust,1049.97, 29-Mar-2017
728,Revenue,CAHD,Statemented Support Academies,Schools Funding,Castle School Education Trust,1083.30, 29-Mar-2017
729,Revenue,CAHD,Statemented Support Academies,Schools Funding,Castle School Education Trust,649.97, 29-Mar-2017
730,Revenue,CAHD,Statemented Support Academies,Schools Funding,Castle School Education Trust,1474.97, 29-Mar-2017
731,Revenue,CAHD,Statemented Support Academies,Schools Funding,Castle School Education Trust,708.30, 29-Mar-2017
732,Revenue,CAHD,Statemented Support Academies,Schools Funding,Castle School Education Trust,966.64, 29-Mar-2017
733,Revenue,CAHD,Statemented Support Academies,Schools Funding,Castle School Education Trust,766.64, 29-Mar-2017
734,Revenue,CAHD,Statemented Support Academies,Schools Funding,Castle School Education Trust,583.30, 29-Mar-2017
735,Revenue,CAHD,Statemented Support Academies,Schools Funding,Castle School Education Trust,508.30, 29-Mar-2017
736,Revenue,CAHD,Statemented Support Academies,Schools Funding,Castle School Education Trust,874.97, 29-Mar-2017
737,Revenue,CAHD,Statemented Support Academies,Schools Funding,Castle School Education Trust,733.30, 29-Mar-2017
738,Revenue,CAHD,Statemented Support Academies,Schools Funding,Castle School Education Trust,874.97, 29-Mar-2017
739,Revenue,CAHD,Statemented Support Academies,Schools Funding,Castle School Education Trust,883.30, 29-Mar-2017
740,Revenue,CAHD,Statemented Support Academies,Schools Funding,Castle School Education Trust,891.64, 29-Mar-2017
741,Revenue,CAHD,Statemented Support Academies,Schools Funding,Castle School Education Trust,599.97, 29-Mar-2017
742,Revenue,CAHD,Statemented Support Academies,Schools Funding,Castle School Education Trust,1166.64, 29-Mar-2017
743,Revenue,CAHD,Statemented Support Academies,Schools Funding,Castle School Education Trust,658.30, 29-Mar-2017
744,Revenue,CAHD,Statemented Support Academies,Schools Funding,Castle School Education Trust,608.30, 29-Mar-2017
745,Revenue,CAHD,Schools Specific Grant Income,Other Public Bodies,Castle School Education Trust,1000.00, 30-Mar-2017
746,Revenue,CAHD,Schools Specific Grant Income,Other Public Bodies,Castle School Education Trust,500.00, 20-Mar-2017
747,Revenue,CAHD,Schools Specific Grant Income,Other Public Bodies,Castle School Education Trust,500.00, 20-Mar-2017
748,Revenue,CAHD,Schools Specific Grant Income,Other Public Bodies,Castle School Education Trust,500.00, 20-Mar-2017
749,Revenue,CAHD,Schools Specific Grant Income,Other Public Bodies,Castle School Education Trust,500.00, 20-Mar-2017
750,Revenue,CAHD,Schools Specific Grant Income,Other Public Bodies,Castle School Education Trust,550.00, 30-Mar-2017
751,Revenue,CAHD,Schools Specific Grant Income,Other Public Bodies,Castle School Education Trust,500.00, 20-Mar-2017
752,Revenue,CAHD,Schools Specific Grant Income,Other Public Bodies,Castle School Education Trust,500.00, 20-Mar-2017
753,Revenue,CAHD,Statemented Support Academies,Schools Funding,Castle School Education Trust,691.64, 29-Mar-2017
754,Revenue,CAHD,Statemented Support Academies,Schools Funding,Castle School Education Trust,558.30, 29-Mar-2017
755,Revenue,CAHD,Statemented Support Academies,Schools Funding,Castle School Education Trust,1133.30, 29-Mar-2017
756,Revenue,CAHD,Statemented Support Academies,Schools Funding,Castle School Education Trust,1283.30, 29-Mar-2017
757,Revenue,CAHD,Independent Special Placements - Pre 16,Other Private Contractors,Catch 22 Charity Ltd,21563.21, 20-Mar-2017
758,Revenue,CAHD,Social Lettings Agency,Fees - General,Individual,10.53, 01-Mar-2017
759,Revenue,CAHD,Social Lettings Agency,Fees & Charges Income - General,Individual,595.11, 01-Mar-2017
760,Revenue,CAHD,Social Lettings Agency,Fees - General,Individual,10.53, 31-Mar-2017
761,Revenue,CAHD,Social Lettings Agency,Fees & Charges Income - General,Individual,595.11, 31-Mar-2017
762,Revenue,CAHD,CSC - Allowances,Post Adoption,CCS Adoption,550.00, 29-Mar-2017
763,Revenue,CAHD,Bed Purchasing - Elderly S117- North,Permanent Nursing,Cedar Care Homes Limited,4352.00, 14-Mar-2017
764,Revenue,CAHD,Training - Adult Services,Training Expenses,Centre for Action Learning Facilitation,8110.00, 09-Mar-2017
765,Revenue,CAHD,Statemented Support Payments to OLAs,Other L.A.'s - General,Chandag Infants School,1899.91, 29-Mar-2017
766,Revenue,CAHD,Bed Purchasing - North,Permanent Residential,Charlton House,1831.32, 14-Mar-2017
767,Revenue,CAHD,Home Care - Elderly - South,Other Small Contracts,Cherish Able Care Limited,6003.91, 02-Mar-2017
768,Revenue,CAHD,Home Care - Elderly - North,Other Small Contracts,Cherish Able Care Limited,2899.40, 02-Mar-2017
769,Revenue,CAHD,Home Care - Elderly - South,Other Small Contracts,Cherish Able Care Limited,5678.60, 09-Mar-2017
770,Revenue,CAHD,Home Care - Elderly - North,Other Small Contracts,Cherish Able Care Limited,3034.34, 09-Mar-2017
771,Revenue,CAHD,Home Care - Elderly - South,Other Small Contracts,Cherish Able Care Limited,5515.06, 16-Mar-2017
772,Revenue,CAHD,Home Care - Elderly - North,Other Small Contracts,Cherish Able Care Limited,3236.24, 16-Mar-2017
773,Revenue,CAHD,Home Care - Elderly - South,Other Small Contracts,Cherish Able Care Limited,5528.82, 31-Mar-2017
774,Revenue,CAHD,Home Care - Elderly - North,Other Small Contracts,Cherish Able Care Limited,3236.24, 31-Mar-2017
775,Revenue,CAHD,Home Care - Elderly - South,Other Small Contracts,Cherish Able Care Limited,5753.74, 30-Mar-2017
776,Revenue,CAHD,Home Care - Elderly - North,Other Small Contracts,Cherish Able Care Limited,3226.40, 30-Mar-2017
777,Revenue,CAHD,Add cost non-residential care contracts,Other L.A.'s - General,Cherish Able Care Limited,1960.00, 07-Mar-2017
778,Revenue,CAHD,Bed purchasing -S28A  Under 65 - North,Permanent Residential,Chescombe Lodge,9237.72, 14-Mar-2017
779,Revenue,CAHD,CSC - LAT Placements,Other Supplies & Services,Childrens Contact Services Ltd,743.52, 30-Mar-2017
780,Revenue,CAHD,CSC - Care Leavers Support Costs,Personal Needs of Clients,Childrens Contact Services Ltd,8100.50, 20-Mar-2017
781,Revenue,CAHD,CSC - LAT Placements,Other Supplies & Services,Childrens Contact Services Ltd,1120.78, 27-Mar-2017
782,Revenue,CAHD,CSC - LAT Placements,Other Transport Costs,Childrens Contact Services Ltd,557.76, 09-Mar-2017
783,Revenue,CAHD,Home Care - Elderly - South,Supported Living,Choisy Care Limited,925.68, 08-Mar-2017
784,Revenue,CAHD,Home Care - Elderly - South,Supported Living,Choisy Care Limited,957.60, 07-Mar-2017
785,Revenue,CAHD,18-25 Year Olds,Permanent Residential,Chosen Care Ltd  Citibase Watford,7591.04, 14-Mar-2017
786,Revenue,CAHD,Bed Purchasing - Elderly S117- North,Permanent Residential,Chosen Care Ltd  Citibase Watford,4995.72, 14-Mar-2017
787,Revenue,CAHD,Jointly Funded H&SC Packages,Permanent Residential,Chosen Care Ltd  Citibase Watford,4995.68, 14-Mar-2017
788,Revenue,CAHD,18-25 Year Olds,Permanent Residential,Chosen Care Ltd  Citibase Watford,5995.48, 14-Mar-2017
789,Revenue,CAHD,Bed Purchasing - Southmead Hospital,Permanent Nursing,Churchill Property Services,2221.04, 14-Mar-2017
790,Revenue,CAHD,Learning Difficulties,Other Supplies & Services,Circadian Trust,787.20, 03-Mar-2017
791,Revenue,CAHD,CSC - Fostering General,Sporting Expenses,Circadian Trust,547.45, 16-Mar-2017
792,Revenue,CAHD,CSC - Fostering General,Sporting Expenses,Circadian Trust,725.80, 29-Mar-2017
793,Revenue,CAHD,Learning Difficulties,Other Supplies & Services,Circadian Trust,571.50, 22-Mar-2017
794,Revenue,CAHD,CSC - Fostering General,Sporting Expenses,Circadian Trust,540.70, 16-Mar-2017
795,Revenue,CAHD,Bed Purchasing - South,Permanent Residential,Cleeve Lodge,1196.28, 14-Mar-2017
796,Revenue,CAHD,Bed Purchasing - South,Permanent Residential,Cleeve Lodge,2331.28, 14-Mar-2017
797,Revenue,CAHD,Bed Purchasing - South,Permanent Residential,Cleeve Lodge,2493.44, 14-Mar-2017
798,Revenue,CAHD,Bed Purchasing - South,Permanent Residential,Cleeve Lodge,2454.84, 14-Mar-2017
799,Revenue,CAHD,Bed Purchasing - North,Respite Planned - Residential,Cleeve Lodge,2700.00, 14-Mar-2017
800,Revenue,CAHD,Bed Purchasing - South,Permanent Residential,Collingwood Residential Home,2120.40, 14-Mar-2017
801,Revenue,CAHD,Bed Purchasing - Southmead Hospital,Permanent Residential,Collingwood Residential Home,2400.00, 14-Mar-2017
802,Revenue,CAHD,Bed Purchasing - Southmead Hospital,Permanent Residential,Collingwood Residential Home,1457.14, 14-Mar-2017
803,Revenue,CAHD,Bed Purchasing - South,Permanent Residential,Collingwood Residential Home,2300.00, 14-Mar-2017
804,Revenue,CAHD,Bed Purchasing - South,Fees & Charges Income - General,Collingwood Residential Home,4761.21, 14-Mar-2017
805,Revenue,CAHD,Bed Purchasing - Southmead Hospital,Permanent Residential,Collingwood Residential Home,2320.00, 14-Mar-2017
806,Revenue,CAHD,Bed Purchasing - South,Permanent Residential,Collingwood Residential Home,2120.40, 14-Mar-2017
807,Revenue,CAHD,Home Care - Elderly - South,Day Care / Social Activities,Collingwood Residential Home,553.44, 14-Mar-2017
808,Revenue,CAHD,Bed Purchasing - South,Permanent Residential,Collingwood Residential Home,1957.44, 14-Mar-2017
809,Revenue,CAHD,Schools Specific Grant Income,Other Public Bodies,Colston`s Girls School Trust,500.00, 20-Mar-2017
810,Revenue,CAHD,Bed Purchasing - Under 65s PWLD - South,Respite Planned - Residential,Community Homes of Intensive Care and Education Lt,2685.64, 08-Mar-2017
811,Revenue,CAHD,Bed Purchasing - South,Permanent Nursing,Community Integrated Care,1877.56, 14-Mar-2017
812,Revenue,CAHD,Bed and Breakfast,Bed & Breakfast,Connolly & Callaghan Limited,476.00, 01-Mar-2017
813,Revenue,CAHD,Bed and Breakfast,Bed & Breakfast,Connolly & Callaghan Limited,791.00, 01-Mar-2017
814,Revenue,CAHD,Tenancy Start Up Scheme,Other Supplies & Services,Connolly & Callaghan Limited,616.00, 01-Mar-2017
815,Revenue,CAHD,Bed and Breakfast,Bed & Breakfast,Connolly & Callaghan Limited,791.00, 01-Mar-2017
816,Revenue,CAHD,Bed and Breakfast,Bed & Breakfast,Connolly & Callaghan Limited,616.00, 06-Mar-2017
817,Revenue,CAHD,Bed and Breakfast,Bed & Breakfast,Connolly & Callaghan Limited,476.00, 08-Mar-2017
818,Revenue,CAHD,Bed and Breakfast,Bed & Breakfast,Connolly & Callaghan Limited,476.00, 14-Mar-2017
819,Revenue,CAHD,Bed and Breakfast,Bed & Breakfast,Connolly & Callaghan Limited,546.00, 08-Mar-2017
820,Revenue,CAHD,Tenancy Start Up Scheme,Other Supplies & Services,Connolly & Callaghan Limited,616.00, 08-Mar-2017
821,Revenue,CAHD,Bed and Breakfast,Bed & Breakfast,Connolly & Callaghan Limited,511.00, 06-Mar-2017
822,Revenue,CAHD,Bed and Breakfast,Bed & Breakfast,Connolly & Callaghan Limited,616.00, 08-Mar-2017
823,Revenue,CAHD,Bed and Breakfast,Bed & Breakfast,Connolly & Callaghan Limited,476.00, 08-Mar-2017
824,Revenue,CAHD,Bed and Breakfast,Bed & Breakfast,Connolly & Callaghan Limited,791.00, 08-Mar-2017
825,Revenue,CAHD,Bed and Breakfast,Bed & Breakfast,Connolly & Callaghan Limited,616.00, 15-Mar-2017
826,Revenue,CAHD,Bed and Breakfast,Bed & Breakfast,Connolly & Callaghan Limited,476.00, 15-Mar-2017
827,Revenue,CAHD,Bed and Breakfast,Bed & Breakfast,Connolly & Callaghan Limited,546.00, 14-Mar-2017
828,Revenue,CAHD,Tenancy Start Up Scheme,Other Supplies & Services,Connolly & Callaghan Limited,616.00, 14-Mar-2017
829,Revenue,CAHD,Bed and Breakfast,Bed & Breakfast,Connolly & Callaghan Limited,511.00, 15-Mar-2017
830,Revenue,CAHD,Bed and Breakfast,Bed & Breakfast,Connolly & Callaghan Limited,616.00, 14-Mar-2017
831,Revenue,CAHD,Bed and Breakfast,Bed & Breakfast,Connolly & Callaghan Limited,476.00, 15-Mar-2017
832,Revenue,CAHD,Bed and Breakfast,Bed & Breakfast,Connolly & Callaghan Limited,791.00, 14-Mar-2017
833,Revenue,CAHD,Bed and Breakfast,Bed & Breakfast,Connolly & Callaghan Limited,616.00, 24-Mar-2017
834,Revenue,CAHD,Bed and Breakfast,Bed & Breakfast,Connolly & Callaghan Limited,546.00, 24-Mar-2017
835,Revenue,CAHD,Tenancy Start Up Scheme,Other Supplies & Services,Connolly & Callaghan Limited,616.00, 24-Mar-2017
836,Revenue,CAHD,Bed and Breakfast,Bed & Breakfast,Connolly & Callaghan Limited,511.00, 24-Mar-2017
837,Revenue,CAHD,Bed and Breakfast,Bed & Breakfast,Connolly & Callaghan Limited,616.00, 24-Mar-2017
838,Revenue,CAHD,Bed and Breakfast,Bed & Breakfast,Connolly & Callaghan Limited,476.00, 24-Mar-2017
839,Revenue,CAHD,Bed and Breakfast,Bed & Breakfast,Connolly & Callaghan Limited,581.00, 24-Mar-2017
840,Revenue,CAHD,Bed and Breakfast,Bed & Breakfast,Connolly & Callaghan Limited,791.00, 30-Mar-2017
841,Revenue,CAHD,Bed and Breakfast,Bed & Breakfast,Connolly & Callaghan Limited,616.00, 28-Mar-2017
842,Revenue,CAHD,Bed and Breakfast,Bed & Breakfast,Connolly & Callaghan Limited,476.00, 27-Mar-2017
843,Revenue,CAHD,Bed and Breakfast,Bed & Breakfast,Connolly & Callaghan Limited,546.00, 30-Mar-2017
844,Revenue,CAHD,Tenancy Start Up Scheme,Other Supplies & Services,Connolly & Callaghan Limited,616.00, 27-Mar-2017
845,Revenue,CAHD,Bed and Breakfast,Bed & Breakfast,Connolly & Callaghan Limited,616.00, 27-Mar-2017
846,Revenue,CAHD,Bed and Breakfast,Bed & Breakfast,Connolly & Callaghan Limited,476.00, 27-Mar-2017
847,Revenue,CAHD,Bed and Breakfast,Bed & Breakfast,Connolly & Callaghan Limited,581.00, 27-Mar-2017
848,Revenue,CAHD,Bed and Breakfast,Bed & Breakfast,Connolly & Callaghan Limited,791.00, 30-Mar-2017
849,Revenue,CAHD,CSC - Vinney Green Secure Unit,Service Contracts (Premises),Cool-Rite Limited,2088.00, 07-Mar-2017
850,Revenue,CAHD,CSC - Allowances,Membership Fees,CoramBAAF Ltd t/a Coram Academy Ltd,4271.76, 20-Mar-2017
851,Revenue,CAHD,Mental Health and Emotional Wellbeing,Project Funding,CPTPC Ltd,12945.00, 24-Mar-2017
852,Revenue,CAHD,Bed Purchasing - S28A - Over 65- North,Permanent Residential,Cream Ii Ltd  Longrun House,8765.56, 14-Mar-2017
853,Revenue,CAHD,Bed Purchasing - South,Permanent Residential,Cream Ii Ltd  Longrun House,3083.64, 14-Mar-2017
854,Revenue,CAHD,Jointly Funded H&SC Packages,Permanent Residential,Cream Ii Ltd  Longrun House,2683.04, 14-Mar-2017
855,Revenue,CAHD,Bed purchasing -S28A  Under 65 - North,Permanent Residential,Creedy Court,10026.24, 14-Mar-2017
856,Revenue,CAHD,Bed Purchasing - S28A - Over 65- North,Permanent Residential,Creedy Court,8424.52, 14-Mar-2017
857,Revenue,CAHD,Bed Purchasing - North,Permanent Residential,Creedy Court,13295.84, 14-Mar-2017
858,Revenue,CAHD,CSC - Residential Placements,Permanent Residential,Crossways Care Limited,16664.00, 24-Mar-2017
859,Revenue,CAHD,TSG Practice Placements,Training Expenses,Cruidin Training and Consultancy Ltd,1050.51, 01-Mar-2017
860,Revenue,CAHD,TSG Practice Placements,Training Expenses,Cruidin Training and Consultancy Ltd,5251.70, 24-Mar-2017
861,Revenue,CAHD,NTS Grant - Trainee Social Wor,Training Expenses,Cruidin Training and Consultancy Ltd,6393.88, 24-Mar-2017
862,Revenue,CAHD,CSC - LAT Placements,Client Transport,D A & J Roff,1309.50, 17-Mar-2017
863,Revenue,CAHD,Public Health Project Funding - OffSH,Consultants Fees,D Harvey Consulting Limited,1602.40, 08-Mar-2017
864,Revenue,CAHD,Public Health Project Funding - OffSH,Consultants Fees,D Harvey Consulting Limited,1611.00, 30-Mar-2017
865,Revenue,CAHD,Public Health Project Funding - OffSH,Consultants Fees,D Harvey Consulting Limited,1777.80, 08-Mar-2017
866,Revenue,CAHD,Public Health Project Funding - OffSH,Consultants Fees,D Harvey Consulting Limited,1777.40, 08-Mar-2017
867,Revenue,CAHD,Bed Purchasing - South,Permanent Residential,Daneswood,11606.96, 14-Mar-2017
868,Revenue,CAHD,Home Care - Elderly - South,Day Care / Social Activities,Daneswood,1337.28, 14-Mar-2017
869,Revenue,CAHD,Bed Purchasing - North,Permanent Residential,Daneswood,9710.32, 14-Mar-2017
870,Revenue,CAHD,CSC - Vinney Green Secure Unit,Training Expenses,Daniel Wood Associates,1950.00, 03-Mar-2017
871,Revenue,CAHD,Bed Purchasing - Elderly S117- North,Permanent Nursing,Danshell Healthcare Group,10285.72, 14-Mar-2017
872,Revenue,CAHD,Jointly Funded H&SC Packages,Permanent Nursing,Danshell Healthcare Group,1526.28, 14-Mar-2017
873,Revenue,CAHD,Learning Difficulties PSL,Other Supplies & Services,Individual,2105.50, 22-Mar-2017
874,Revenue,CAHD,North Hub Offices,Radio Pager/Mobile Phones,David Tzuriel,582.50, 16-Mar-2017
875,Revenue,CAHD,South Hub Offices,Radio Pager/Mobile Phones,David Tzuriel,582.50, 16-Mar-2017
876,Revenue,CAHD,LSE - Schools Priority Support,Consultants Fees,David Westall M.A Education Consultant,1000.00, 28-Mar-2017
877,Revenue,CAHD,LSE - Schools Priority Support,Consultants Fees,David Westall M.A Education Consultant,1000.00, 28-Mar-2017
878,Revenue,CAHD,LSE - Schools Priority Support,Consultants Fees,David Westall M.A Education Consultant,1000.00, 28-Mar-2017
879,Revenue,CAHD,LSE - Schools Priority Support,Consultants Fees,David Westall M.A Education Consultant,1000.00, 28-Mar-2017
880,Revenue,CAHD,LSE - Schools Priority Support,Consultants Fees,David Westall M.A Education Consultant,1000.00, 28-Mar-2017
881,Revenue,CAHD,LSE - Schools Priority Support,Consultants Fees,David Westall M.A Education Consultant,1000.00, 28-Mar-2017
882,Revenue,CAHD,LSE - Schools Priority Support,Consultants Fees,David Westall M.A Education Consultant,1000.00, 30-Mar-2017
883,Revenue,CAHD,CSC - Adoption Support Fund,Post Adoption,Debbie Cresswell,637.50, 03-Mar-2017
884,Revenue,CAHD,Schools Specific Grant Income,Other Public Bodies,Dene Magna School,2000.00, 27-Mar-2017
885,Revenue,CAHD,Home Care - Elderly - South,Supported Living,Design House,2711.04, 14-Mar-2017
886,Revenue,CAHD,Home Care - Elderly - South,Supported Living,Design House,2898.08, 14-Mar-2017
887,Revenue,CAHD,Home Care - Elderly - South,Supported Living,Design House,2964.08, 14-Mar-2017
888,Revenue,CAHD,Home Care - Elderly - South,Supported Living,Design House,2832.08, 14-Mar-2017
889,Revenue,CAHD,Home Care - Elderly - South,Supported Living,Design House,2496.52, 14-Mar-2017
890,Revenue,CAHD,Home Care - Elderly - South,Supported Living,Design House,2496.52, 14-Mar-2017
891,Revenue,CAHD,Home Care - Elderly - South,Supported Living,Design House,1838.64, 14-Mar-2017
892,Revenue,CAHD,Home Care - Elderly - South,Supported Living,Design House,1794.40, 14-Mar-2017
893,Revenue,CAHD,Home Care - Elderly - South,Supported Living,Design House,2381.04, 14-Mar-2017
894,Revenue,CAHD,Home Care - Elderly - South,Supported Living,Design House,3852.08, 14-Mar-2017
895,Revenue,CAHD,Home Care - Elderly - South,Supported Living,Design House,2889.80, 14-Mar-2017
896,Revenue,CAHD,Home Care - Elderly - South,Supported Living,Design House,2744.04, 14-Mar-2017
897,Revenue,CAHD,Home Care - Elderly - South,Supported Living,Design House,2793.56, 14-Mar-2017
898,Revenue,CAHD,Home Care - Elderly - South,Supported Living,Design House,2135.92, 14-Mar-2017
899,Revenue,CAHD,Home Care - Elderly - South,Supported Living,Design House,1794.40, 14-Mar-2017
900,Revenue,CAHD,Home Care - Elderly - South,Supported Living,Design House,2135.92, 14-Mar-2017
901,Revenue,CAHD,Bed Purchasing - South,Permanent Residential,Devon & Cornwall Autistic Community Trus,9403.80, 14-Mar-2017
902,Revenue,CAHD,Bed Purchasing - South,Permanent Residential,Dimensions  Suite 2,5327.04, 14-Mar-2017
903,Revenue,CAHD,Home Care - Elderly - South,Day Care / Social Activities,DoCare Ltd,71.40, 23-Mar-2017
904,Revenue,CAHD,Home Care - Elderly - South,Other Small Contracts,DoCare Ltd,817.90, 23-Mar-2017
905,Revenue,CAHD,Home Care - Elderly - North,Other Small Contracts,DoCare Ltd,6178.00, 23-Mar-2017
906,Revenue,CAHD,Home Care - Elderly - South,Day Care / Social Activities,DoCare Ltd,61.20, 23-Mar-2017
907,Revenue,CAHD,Home Care - Elderly - South,Other Small Contracts,DoCare Ltd,991.30, 23-Mar-2017
908,Revenue,CAHD,Home Care - Elderly - North,Other Small Contracts,DoCare Ltd,6377.40, 23-Mar-2017
909,Revenue,CAHD,Home Care - Elderly - South,Day Care / Social Activities,DoCare Ltd,71.40, 23-Mar-2017
910,Revenue,CAHD,Home Care - Elderly - South,Other Small Contracts,DoCare Ltd,996.40, 23-Mar-2017
911,Revenue,CAHD,Home Care - Elderly - North,Other Small Contracts,DoCare Ltd,5998.50, 23-Mar-2017
912,Revenue,CAHD,Home Care - Elderly - South,Day Care / Social Activities,DoCare Ltd,71.40, 31-Mar-2017
913,Revenue,CAHD,Home Care - Elderly - South,Other Small Contracts,DoCare Ltd,960.70, 31-Mar-2017
914,Revenue,CAHD,Home Care - Elderly - North,Other Small Contracts,DoCare Ltd,6489.10, 31-Mar-2017
915,Revenue,CAHD,Home Care - Elderly - South,Day Care / Social Activities,DoCare Ltd,71.40, 31-Mar-2017
916,Revenue,CAHD,Home Care - Elderly - South,Other Small Contracts,DoCare Ltd,1058.60, 31-Mar-2017
917,Revenue,CAHD,Home Care - Elderly - North,Other Small Contracts,DoCare Ltd,7255.10, 31-Mar-2017
918,Revenue,CAHD,Add cost non-residential care contracts,Other L.A.'s - General,DoCare Ltd,1190.00, 07-Mar-2017
919,Revenue,CAHD,Statemented Support Academies,Schools Funding,Downend School,583.30, 29-Mar-2017
920,Revenue,CAHD,Statemented Support Academies,Schools Funding,Downend School,983.30, 29-Mar-2017
921,Revenue,CAHD,Statemented Support Academies,Schools Funding,Downend School,574.97, 29-Mar-2017
922,Revenue,CAHD,Statemented Support Academies,Schools Funding,Downend School,591.64, 29-Mar-2017
923,Revenue,CAHD,Statemented Support Academies,Schools Funding,Downend School,1008.30, 29-Mar-2017
924,Revenue,CAHD,Statemented Support Academies,Schools Funding,Downend School,666.64, 29-Mar-2017
925,Revenue,CAHD,Statemented Support Academies,Schools Funding,Downend School,583.30, 29-Mar-2017
926,Revenue,CAHD,Statemented Support Academies,Schools Funding,Downend School,583.30, 29-Mar-2017
927,Revenue,CAHD,Social Lettings Agency,Other Supplies & Services,Individual,605.64, 24-Mar-2017
928,Revenue,CAHD,Bed Purchasing - North,Permanent Nursing,Drakes Court,2259.56, 14-Mar-2017
929,Revenue,CAHD,South Glos Users in South Glos Homes,Permanent Nursing,Drakes Court,625.00, 14-Mar-2017
930,Revenue,CAHD,South Glos Users in South Glos Homes,Permanent Nursing,Drakes Court,625.00, 14-Mar-2017
931,Revenue,CAHD,South Glos Users in South Glos Homes,Permanent Nursing,Drakes Court,625.00, 14-Mar-2017
932,Revenue,CAHD,Bed Purchasing - Southmead Hospital,Fees & Charges Income - General,Drakes Court,531.32, 14-Mar-2017
933,Revenue,CAHD,Bed Purchasing - Southmead Hospital,Permanent Nursing,Drakes Court,1888.64, 14-Mar-2017
934,Revenue,CAHD,South Glos Users in South Glos Homes,Permanent Nursing,Drakes Court,625.00, 14-Mar-2017
935,Revenue,CAHD,Bed Purchasing - Southmead Hospital,Permanent Nursing,Drakes Court,17672.27, 14-Mar-2017
936,Revenue,CAHD,South Glos Users in South Glos Homes,Permanent Nursing,Drakes Court,625.00, 14-Mar-2017
937,Revenue,CAHD,Bed Purchasing - North,Respite Planned - Nursing,Drakes Court,2700.00, 14-Mar-2017
938,Revenue,CAHD,South Glos Users in South Glos Homes,Permanent Nursing,Drakes Court,625.00, 14-Mar-2017
939,Revenue,CAHD,South Glos Users in South Glos Homes,Permanent Nursing,Drakes Court,625.00, 14-Mar-2017
940,Revenue,CAHD,Bed Purchasing - North,Permanent Nursing,Drakes Court,1888.64, 14-Mar-2017
941,Revenue,CAHD,Bed Purchasing - North,Permanent Nursing,Drakes Court,17672.27, 14-Mar-2017
942,Revenue,CAHD,Bed Purchasing - Southmead Hospital,Permanent Nursing,Drakes Court,1888.64, 14-Mar-2017
943,Revenue,CAHD,South Glos Users in South Glos Homes,Permanent Nursing,Drakes Court,625.00, 14-Mar-2017
944,Revenue,CAHD,Bed Purchasing - Southmead Hospital,Permanent Nursing,Drakes Court,17672.27, 14-Mar-2017
945,Revenue,CAHD,Bed Purchasing - North,Permanent Residential,Drakes Court,1831.32, 14-Mar-2017
946,Revenue,CAHD,Bed Purchasing - North,Permanent Nursing,Drakes Court,2254.00, 14-Mar-2017
947,Revenue,CAHD,South Glos Users in South Glos Homes,Permanent Nursing,Drakes Court,625.00, 14-Mar-2017
948,Revenue,CAHD,Bed Purchasing - North,Permanent Nursing,Drakes Court,21091.00, 14-Mar-2017
949,Revenue,CAHD,South Glos Users in South Glos Homes,Permanent Nursing,Drakes Court,625.00, 14-Mar-2017
950,Revenue,CAHD,South Glos Users in South Glos Homes,Permanent Nursing,Drakes Court,625.00, 14-Mar-2017
951,Revenue,CAHD,South Glos Users in South Glos Homes,Permanent Nursing,Drakes Court,625.00, 14-Mar-2017
952,Revenue,CAHD,Schools Specific Grant Income,Other Public Bodies,Dunmore Primary School,500.00, 20-Mar-2017
953,Revenue,CAHD,Schools Specific Grant Income,Other Public Bodies,Dunmore Primary School,500.00, 20-Mar-2017
954,Revenue,CAHD,MH Purchasing - Younger,Permanent Residential,Dunraven House,2243.80, 14-Mar-2017
955,Revenue,CAHD,Bed and Breakfast,Bed & Breakfast,Individual,490.00, 08-Mar-2017
956,Revenue,CAHD,Bed and Breakfast,Bed & Breakfast,Individual,490.00, 14-Mar-2017
957,Revenue,CAHD,Bed and Breakfast,Bed & Breakfast,Individual,558.00, 14-Mar-2017
958,Revenue,CAHD,Bed and Breakfast,Bed & Breakfast,Individual,490.00, 22-Mar-2017
959,Revenue,CAHD,Bed and Breakfast,Bed & Breakfast,Individual,490.00, 28-Mar-2017
960,Revenue,CAHD,Bed Purchasing - North,Permanent Residential,East Court,2614.48, 14-Mar-2017
961,Revenue,CAHD,Minor Adaptations Service,Operational Equipment,Eastman & Co (Timber) Limited,1257.98, 21-Mar-2017
962,Revenue,CAHD,Home Care - Elderly - South,Day Care / Social Activities,Easton Community Centre,533.28, 14-Mar-2017
963,Revenue,CAHD,Home Care - Elderly - South,Day Care / Social Activities,Easton Community Centre,533.28, 14-Mar-2017
964,Revenue,CAHD,Home Care - Elderly - North,Day Care / Social Activities,Easton Community Centre,533.28, 14-Mar-2017
965,Revenue,CAHD,Training - Adult Services,Training Expenses,Edge Training & Consultancy Limited,925.00, 22-Mar-2017
966,Revenue,CAHD,Bed Purchasing - North,Permanent Residential,Edgecumbe Lodge,2260.00, 14-Mar-2017
967,Revenue,CAHD,Bed Purchasing - Southmead Hospital,Permanent Residential,Edgecumbe Lodge,1831.32, 14-Mar-2017
968,Revenue,CAHD,Bed Purchasing - South,Permanent Residential,Edgecumbe Lodge,2101.44, 14-Mar-2017
969,Revenue,CAHD,Bed Purchasing - Southmead Hospital,Permanent Residential,Edgecumbe Lodge,2400.00, 14-Mar-2017
970,Revenue,CAHD,Bed Purchasing - Southmead Hospital,Permanent Residential,Edgecumbe Lodge,600.00, 14-Mar-2017
971,Revenue,CAHD,Bed Purchasing - South,Permanent Residential,Edgecumbe Lodge,2128.56, 14-Mar-2017
972,Revenue,CAHD,Bed Purchasing - North,Permanent Residential,Edgecumbe Lodge,2290.72, 14-Mar-2017
973,Revenue,CAHD,Bed Purchasing - South,Permanent Residential,Edgecumbe Lodge,2128.56, 14-Mar-2017
974,Revenue,CAHD,Bed Purchasing - South,Permanent Residential,Edgecumbe Lodge,9428.57, 14-Mar-2017
975,Revenue,CAHD,Bed Purchasing - South,Permanent Residential,Edgecumbe Lodge,2400.00, 14-Mar-2017
976,Revenue,CAHD,Bed Purchasing - South,Fees & Charges Income - General,Edgecumbe Lodge,2035.19, 14-Mar-2017
977,Revenue,CAHD,Bed Purchasing - Southmead Hospital,Permanent Residential,Edgecumbe Lodge,2400.00, 14-Mar-2017
978,Revenue,CAHD,Bed Purchasing - North,Permanent Residential,Edgecumbe Lodge,2128.56, 14-Mar-2017
979,Revenue,CAHD,Bed Purchasing - South,Permanent Residential,Edgemont House Ltd,2200.00, 14-Mar-2017
980,Revenue,CAHD,Bed Purchasing - Southmead Hospital,Permanent Residential,Edgemont House Ltd,1824.48, 14-Mar-2017
981,Revenue,CAHD,Bed Purchasing - South,Permanent Residential,Edgemont House Ltd,2160.00, 14-Mar-2017
982,Revenue,CAHD,Bed Purchasing - South,Permanent Residential,Edgemont House Ltd,14348.57, 14-Mar-2017
983,Revenue,CAHD,Bed Purchasing - South,Fees & Charges Income - General,Edgemont House Ltd,3844.26, 14-Mar-2017
984,Revenue,CAHD,Bed Purchasing - South,Fees & Charges Income - General,Edgemont House Ltd,1694.66, 14-Mar-2017
985,Revenue,CAHD,Bed Purchasing - South,Permanent Residential,Edgemont House Ltd,1954.68, 14-Mar-2017
986,Revenue,CAHD,South Glos Users in South Glos Homes,Permanent Nursing,Edgemont View Nursing Home,625.00, 14-Mar-2017
987,Revenue,CAHD,South Glos Users in South Glos Homes,Permanent Nursing,Edgemont View Nursing Home,625.00, 14-Mar-2017
988,Revenue,CAHD,South Glos Users in South Glos Homes,Permanent Nursing,Edgemont View Nursing Home,625.00, 14-Mar-2017
989,Revenue,CAHD,South Glos Users in South Glos Homes,Permanent Nursing,Edgemont View Nursing Home,625.00, 14-Mar-2017
990,Revenue,CAHD,Bed Purchasing - South,Permanent Nursing,Edgemont View Nursing Home,2880.00, 14-Mar-2017
991,Revenue,CAHD,South Glos Users in South Glos Homes,Permanent Nursing,Edgemont View Nursing Home,625.00, 14-Mar-2017
992,Revenue,CAHD,South Glos Users in South Glos Homes,Permanent Nursing,Edgemont View Nursing Home,2723.21, 14-Mar-2017
993,Revenue,CAHD,South Glos Users in South Glos Homes,Permanent Nursing,Edgemont View Nursing Home,625.00, 14-Mar-2017
994,Revenue,CAHD,South Glos Users in South Glos Homes,Permanent Nursing,Edgemont View Nursing Home,625.00, 14-Mar-2017
995,Revenue,CAHD,South Glos Users in South Glos Homes,Permanent Nursing,Edgemont View Nursing Home,625.00, 14-Mar-2017
996,Revenue,CAHD,South Glos Users in South Glos Homes,Permanent Nursing,Edgemont View Nursing Home,625.00, 14-Mar-2017
997,Revenue,CAHD,South Glos Users in South Glos Homes,Permanent Nursing,Edgemont View Nursing Home,625.00, 14-Mar-2017
998,Revenue,CAHD,Bed Purchasing - South,Permanent Nursing,Edgemont View Nursing Home,2299.08, 14-Mar-2017
999,Revenue,CAHD,South Glos Users in South Glos Homes,Permanent Nursing,Edgemont View Nursing Home,625.00, 14-Mar-2017
1000,Revenue,CAHD,Bed Purchasing - South,Permanent Nursing,Edgemont View Nursing Home,2182.88, 14-Mar-2017
1001,Revenue,CAHD,South Glos Users in South Glos Homes,Permanent Nursing,Edgemont View Nursing Home,625.00, 14-Mar-2017
1002,Revenue,CAHD,South Glos Users in South Glos Homes,Permanent Nursing,Edgemont View Nursing Home,625.00, 14-Mar-2017
1003,Revenue,CAHD,South Glos Users in South Glos Homes,Permanent Nursing,Edgemont View Nursing Home,625.00, 14-Mar-2017
1004,Revenue,CAHD,South Glos Users in South Glos Homes,Permanent Nursing,Edgemont View Nursing Home,625.00, 14-Mar-2017
1005,Revenue,CAHD,South Glos Users in South Glos Homes,Permanent Nursing,Edgemont View Nursing Home,625.00, 14-Mar-2017
1006,Revenue,CAHD,Bed Purchasing - Southmead Hospital,Permanent Nursing,Edgemont View Nursing Home,2880.00, 14-Mar-2017
1007,Revenue,CAHD,South Glos Users in South Glos Homes,Permanent Nursing,Edgemont View Nursing Home,625.00, 14-Mar-2017
1008,Revenue,CAHD,Planning and Partnerships Procurement,Other Supplies & Services,Eldercare,3021.33, 02-Mar-2017
1009,Revenue,CAHD,Supporting People Programme,Grants to Voluntary Bodies,Elim Housing Association Limited,5139.16, 01-Mar-2017
1010,Revenue,CAHD,Home Care - Elderly - South,Day Care / Social Activities,Elite Home Care Ltd,188.16, 08-Mar-2017
1011,Revenue,CAHD,Home Care - Elderly - South,Other Small Contracts,Elite Home Care Ltd,7848.79, 08-Mar-2017
1012,Revenue,CAHD,Home Care - Elderly - North,Other Small Contracts,Elite Home Care Ltd,103.04, 08-Mar-2017
1013,Revenue,CAHD,Home Care - Elderly - South,Day Care / Social Activities,Elite Home Care Ltd,188.16, 08-Mar-2017
1014,Revenue,CAHD,Home Care - Elderly - South,Other Small Contracts,Elite Home Care Ltd,7675.85, 08-Mar-2017
1015,Revenue,CAHD,Home Care - Elderly - North,Other Small Contracts,Elite Home Care Ltd,107.52, 08-Mar-2017
1016,Revenue,CAHD,Home Care - Elderly - South,Day Care / Social Activities,Elite Home Care Ltd,188.16, 13-Mar-2017
1017,Revenue,CAHD,Home Care - Elderly - South,Other Small Contracts,Elite Home Care Ltd,7469.49, 13-Mar-2017
1018,Revenue,CAHD,Home Care - Elderly - North,Other Small Contracts,Elite Home Care Ltd,112.00, 13-Mar-2017
1019,Revenue,CAHD,Home Care - Elderly - South,Day Care / Social Activities,Elite Home Care Ltd,188.16, 16-Mar-2017
1020,Revenue,CAHD,Home Care - Elderly - South,Other Small Contracts,Elite Home Care Ltd,7522.48, 16-Mar-2017
1021,Revenue,CAHD,Home Care - Elderly - North,Other Small Contracts,Elite Home Care Ltd,103.04, 16-Mar-2017
1022,Revenue,CAHD,Home Care - Elderly - South,Day Care / Social Activities,Elite Home Care Ltd,188.16, 23-Mar-2017
1023,Revenue,CAHD,Home Care - Elderly - South,Other Small Contracts,Elite Home Care Ltd,7546.38, 23-Mar-2017
1024,Revenue,CAHD,Home Care - Elderly - North,Other Small Contracts,Elite Home Care Ltd,107.52, 23-Mar-2017
1025,Revenue,CAHD,Home Care - Elderly - South,Day Care / Social Activities,Elite Home Care Ltd,192.64, 28-Mar-2017
1026,Revenue,CAHD,Home Care - Elderly - South,Other Small Contracts,Elite Home Care Ltd,7875.67, 28-Mar-2017
1027,Revenue,CAHD,Home Care - Elderly - North,Other Small Contracts,Elite Home Care Ltd,107.52, 28-Mar-2017
1028,Revenue,CAHD,Home Care - Elderly - South,Other Small Contracts,Elite Home Care Ltd,2055.39, 10-Mar-2017
1029,Revenue,CAHD,Add cost non-residential care contracts,Other L.A.'s - General,Elite Home Care Ltd,2730.00, 07-Mar-2017
1030,Revenue,CAHD,Bed Purchasing - North,Permanent Residential,Ellen House,5864.00, 14-Mar-2017
1031,Revenue,CAHD,CSC - Agency Fostering,Foster Parent Allowances,Enhanced Foster Care Ltd,4650.00, 16-Mar-2017
1032,Revenue,CAHD,0-25  Service Staffing Team,Agency Staff (Admin/Support Staff) Pay,Enid Noctor,4246.40, 17-Mar-2017
1033,Revenue,CAHD,Bed Purchasing - North,Permanent Residential,Epworth House,2762.20, 14-Mar-2017
1034,Revenue,CAHD,Home Care - Elderly - South,Other Small Contracts,Everycare (Bristol) Ltd,2497.30, 08-Mar-2017
1035,Revenue,CAHD,Home Care - Elderly - North,Other Small Contracts,Everycare (Bristol) Ltd,1975.74, 08-Mar-2017
1036,Revenue,CAHD,Home Care - Elderly - South,Other Small Contracts,Everycare (Bristol) Ltd,2470.78, 08-Mar-2017
1037,Revenue,CAHD,Home Care - Elderly - North,Other Small Contracts,Everycare (Bristol) Ltd,1958.06, 08-Mar-2017
1038,Revenue,CAHD,Home Care - Elderly - South,Other Small Contracts,Everycare (Bristol) Ltd,2488.46, 08-Mar-2017
1039,Revenue,CAHD,Home Care - Elderly - North,Other Small Contracts,Everycare (Bristol) Ltd,1812.20, 08-Mar-2017
1040,Revenue,CAHD,Home Care - Elderly - South,Other Small Contracts,Everycare (Bristol) Ltd,2506.14, 08-Mar-2017
1041,Revenue,CAHD,Home Care - Elderly - North,Other Small Contracts,Everycare (Bristol) Ltd,2024.36, 08-Mar-2017
1042,Revenue,CAHD,Home Care - Elderly - South,Other Small Contracts,Everycare (Bristol) Ltd,2519.40, 23-Mar-2017
1043,Revenue,CAHD,Home Care - Elderly - North,Other Small Contracts,Everycare (Bristol) Ltd,1962.48, 23-Mar-2017
1044,Revenue,CAHD,Home Care - Elderly - South,Other Small Contracts,Everycare (Bristol) Ltd,2563.60, 24-Mar-2017
1045,Revenue,CAHD,Home Care - Elderly - North,Other Small Contracts,Everycare (Bristol) Ltd,1931.54, 24-Mar-2017
1046,Revenue,CAHD,Home Care - Elderly - South,Other Small Contracts,Everycare (Bristol) Ltd,2550.34, 28-Mar-2017
1047,Revenue,CAHD,Home Care - Elderly - North,Other Small Contracts,Everycare (Bristol) Ltd,2028.78, 28-Mar-2017
1048,Revenue,CAHD,Homeless - Private Sector Leasing,Prop.Serv. General Repairs,Express Property Services Limited,2092.45, 22-Mar-2017
1049,Revenue,CAHD,South Glos Users in South Glos Homes,Permanent Nursing,Fairview Court,625.00, 14-Mar-2017
1050,Revenue,CAHD,South Glos Users in South Glos Homes,Permanent Nursing,Fairview Court,1830.36, 14-Mar-2017
1051,Revenue,CAHD,South Glos Users in South Glos Homes,Permanent Nursing,Fairview Court,625.00, 14-Mar-2017
1052,Revenue,CAHD,South Glos Users in South Glos Homes,Permanent Nursing,Fairview Court,625.00, 14-Mar-2017
1053,Revenue,CAHD,Bed Purchasing - South,Permanent Nursing,Fairview Court,2992.16, 14-Mar-2017
1054,Revenue,CAHD,South Glos Users in South Glos Homes,Permanent Nursing,Fairview Court,625.00, 14-Mar-2017
1055,Revenue,CAHD,Bed Purchasing - Southmead Hospital,Permanent Nursing,Fairview Court,2824.08, 14-Mar-2017
1056,Revenue,CAHD,South Glos Users in South Glos Homes,Permanent Nursing,Fairview Court,625.00, 14-Mar-2017
1057,Revenue,CAHD,Bed Purchasing - Southmead Hospital,Permanent Nursing,Fairview Court,3200.00, 14-Mar-2017
1058,Revenue,CAHD,South Glos Users in South Glos Homes,Permanent Nursing,Fairview Court,625.00, 14-Mar-2017
1059,Revenue,CAHD,South Glos Users in South Glos Homes,Permanent Nursing,Fairview Court,625.00, 14-Mar-2017
1060,Revenue,CAHD,South Glos Users in South Glos Homes,Permanent Nursing,Fairview Court,625.00, 14-Mar-2017
1061,Revenue,CAHD,Bed Purchasing - Southmead Hospital,Permanent Nursing,Fairview Court,2992.16, 14-Mar-2017
1062,Revenue,CAHD,South Glos Users in South Glos Homes,Permanent Nursing,Fairview Court,625.00, 14-Mar-2017
1063,Revenue,CAHD,Bed Purchasing - South,Permanent Nursing,Fairview Court,2417.68, 14-Mar-2017
1064,Revenue,CAHD,South Glos Users in South Glos Homes,Permanent Nursing,Fairview Court,625.00, 14-Mar-2017
1065,Revenue,CAHD,South Glos Users in South Glos Homes,Permanent Nursing,Fairview Court,2723.21, 14-Mar-2017
1066,Revenue,CAHD,South Glos Users in South Glos Homes,Permanent Nursing,Fairview Court,625.00, 14-Mar-2017
1067,Revenue,CAHD,Bed purchasing - Elderly S117 - South,Permanent Nursing,Fairview Court,2947.08, 14-Mar-2017
1068,Revenue,CAHD,South Glos Users in South Glos Homes,Permanent Nursing,Fairview Court,625.00, 14-Mar-2017
1069,Revenue,CAHD,Bed Purchasing - South,Permanent Nursing,Fairview Court,2417.68, 14-Mar-2017
1070,Revenue,CAHD,South Glos Users in South Glos Homes,Permanent Nursing,Fairview Court,625.00, 14-Mar-2017
1071,Revenue,CAHD,South Glos Users in South Glos Homes,Permanent Nursing,Fairview Court,625.00, 14-Mar-2017
1072,Revenue,CAHD,Bed Purchasing - South,Permanent Nursing,Fairview Court,3200.00, 14-Mar-2017
1073,Revenue,CAHD,South Glos Users in South Glos Homes,Permanent Nursing,Fairview Court,625.00, 14-Mar-2017
1074,Revenue,CAHD,South Glos Users in South Glos Homes,Permanent Nursing,Fairview Court,625.00, 14-Mar-2017
1075,Revenue,CAHD,South Glos Users in South Glos Homes,Permanent Nursing,Fairview Court,625.00, 14-Mar-2017
1076,Revenue,CAHD,Bed Purchasing - South,Permanent Nursing,Fairview Court,2992.16, 14-Mar-2017
1077,Revenue,CAHD,South Glos Users in South Glos Homes,Permanent Nursing,Fairview Court,625.00, 14-Mar-2017
1078,Revenue,CAHD,Bed Purchasing - Southmead Hospital,Permanent Nursing,Fairview Court,3200.00, 14-Mar-2017
1079,Revenue,CAHD,South Glos Users in South Glos Homes,Permanent Nursing,Fairview Court,625.00, 14-Mar-2017
1080,Revenue,CAHD,South Glos Users in South Glos Homes,Permanent Nursing,Fairview Court,714.29, 14-Mar-2017
1081,Revenue,CAHD,South Glos Users in South Glos Homes,Permanent Nursing,Fairview Court,625.00, 14-Mar-2017
1082,Revenue,CAHD,South Glos Users in South Glos Homes,Permanent Nursing,Fairview Court,625.00, 14-Mar-2017
1083,Revenue,CAHD,South Glos Users in South Glos Homes,Permanent Nursing,Fairview Court,625.00, 14-Mar-2017
1084,Revenue,CAHD,Bed Purchasing - Southmead Hospital,Permanent Nursing,Fairview Court,3200.00, 14-Mar-2017
1085,Revenue,CAHD,Bed Purchasing - Southmead Hospital,Permanent Nursing,Fairview Court,2400.00, 14-Mar-2017
1086,Revenue,CAHD,Bed Purchasing - Southmead Hospital,Permanent Nursing,Fairview Court,11085.71, 14-Mar-2017
1087,Revenue,CAHD,Bed Purchasing - Southmead Hospital,Permanent Nursing,Fairview Court,3200.00, 14-Mar-2017
1088,Revenue,CAHD,Bed Purchasing - Southmead Hospital,Permanent Nursing,Fairview Court,1600.00, 14-Mar-2017
1089,Revenue,CAHD,Bed Purchasing - Southmead Hospital,Fees & Charges Income - General,Fairview Court,728.26, 14-Mar-2017
1090,Revenue,CAHD,Bed Purchasing - Southmead Hospital,Fees & Charges Income - General,Fairview Court,829.08, 14-Mar-2017
1091,Revenue,CAHD,Bed Purchasing - Southmead Hospital,Fees & Charges Income - General,Fairview Court,4369.56, 14-Mar-2017
1092,Revenue,CAHD,South Glos Users in South Glos Homes,Permanent Nursing,Fairview Court,625.00, 14-Mar-2017
1093,Revenue,CAHD,South Glos Users in South Glos Homes,Permanent Nursing,Fairview Court,625.00, 14-Mar-2017
1094,Revenue,CAHD,Bed Purchasing - South,Permanent Nursing,Fairview Court,2417.68, 14-Mar-2017
1095,Revenue,CAHD,South Glos Users in South Glos Homes,Permanent Nursing,Fairview Court,625.00, 14-Mar-2017
1096,Revenue,CAHD,Bed Purchasing - Southmead Hospital,Permanent Nursing,Fairview Court,3052.00, 14-Mar-2017
1097,Revenue,CAHD,South Glos Users in South Glos Homes,Permanent Nursing,Fairview Court,625.00, 14-Mar-2017
1098,Revenue,CAHD,Bed Purchasing - South,Permanent Nursing,Fairview Court,2574.32, 14-Mar-2017
1099,Revenue,CAHD,South Glos Users in South Glos Homes,Permanent Nursing,Fairview Court,625.00, 14-Mar-2017
1100,Revenue,CAHD,Bed purchasing - Elderly S117 - South,Permanent Residential,Fairview House,1998.08, 14-Mar-2017
1101,Revenue,CAHD,Bed Purchasing - Southmead Hospital,Permanent Residential,Fairview House,1831.32, 14-Mar-2017
1102,Revenue,CAHD,Bed Purchasing - South,Permanent Residential,Fairview House,2067.76, 14-Mar-2017
1103,Revenue,CAHD,Bed Purchasing - South,Permanent Residential,Fairview House,1831.32, 14-Mar-2017
1104,Revenue,CAHD,Bed Purchasing - South,Permanent Residential,Fairview House,1831.32, 14-Mar-2017
1105,Revenue,CAHD,Bed Purchasing - South,Permanent Residential,Fairview House,1831.32, 14-Mar-2017
1106,Revenue,CAHD,Bed Purchasing - South,Permanent Residential,Fairview House,1831.32, 14-Mar-2017
1107,Revenue,CAHD,Bed Purchasing - South,Permanent Residential,Fairview House,1959.36, 14-Mar-2017
1108,Revenue,CAHD,Bed Purchasing - South,Permanent Residential,Fairview House,1861.52, 14-Mar-2017
1109,Revenue,CAHD,Bed Purchasing - South,Permanent Residential,Fairview House,2090.08, 14-Mar-2017
1110,Revenue,CAHD,Bed Purchasing - Southmead Hospital,Permanent Residential,Faith House,1980.52, 14-Mar-2017
1111,Revenue,CAHD,Post 16 High Needs Placements,Other Private Contractors,Farleigh FEC-Frome Priory,21718.58, 20-Mar-2017
1112,Revenue,CAHD,Bed Purchasing - Southmead Hospital,Permanent Nursing,Field House Care Home,3220.00, 14-Mar-2017
1113,Revenue,CAHD,Bed Purchasing - Southmead Hospital,Permanent Nursing,Field House Care Home,1840.00, 14-Mar-2017
1114,Revenue,CAHD,Bed Purchasing - Southmead Hospital,Permanent Nursing,Field House Care Home,2995.00, 14-Mar-2017
1115,Revenue,CAHD,Bed Purchasing - Southmead Hospital,Fees & Charges Income - General,Field House Care Home,541.47, 14-Mar-2017
1116,Revenue,CAHD,Bed Purchasing - South,Permanent Nursing,Field House Care Home,3100.00, 14-Mar-2017
1117,Revenue,CAHD,Bed Purchasing - South,Permanent Nursing,Field House Care Home,1882.14, 14-Mar-2017
1118,Revenue,CAHD,Bed Purchasing - Southmead Hospital,Permanent Nursing,Field House Care Home,3215.12, 14-Mar-2017
1119,Revenue,CAHD,Bed Purchasing - North,Respite Emergency - Residential,Fieldview,3400.00, 14-Mar-2017
1120,Revenue,CAHD,MH Purchasing - Younger,Permanent Nursing,Fieldview,5200.00, 14-Mar-2017
1121,Revenue,CAHD,Bed Purchasing - South,Permanent Residential,Fig House,2800.00, 14-Mar-2017
1122,Revenue,CAHD,Bed Purchasing - South,Fees & Charges Income - General,Fig House,2019.91, 14-Mar-2017
1123,Revenue,CAHD,Bed Purchasing - South,Fees & Charges Income - General,Fig House,1605.74, 14-Mar-2017
1124,Revenue,CAHD,Bed Purchasing - South,Fees & Charges Income - General,Fig House,614.29, 14-Mar-2017
1125,Revenue,CAHD,Statemented Support Payments to OLAs,Other L.A.'s - General,Filton Avenue Primary School,691.64, 29-Mar-2017
1126,Revenue,CAHD,Home Care - Elderly - South,Other Small Contracts,Firstpoint Homecare Ltd,820.26, 08-Mar-2017
1127,Revenue,CAHD,Home Care - Elderly - North,Day Care / Social Activities,Firstpoint Homecare Ltd,130.20, 08-Mar-2017
1128,Revenue,CAHD,Home Care - Elderly - North,Other Small Contracts,Firstpoint Homecare Ltd,355.88, 08-Mar-2017
1129,Revenue,CAHD,Home Care - Elderly - South,Other Small Contracts,Firstpoint Homecare Ltd,854.98, 08-Mar-2017
1130,Revenue,CAHD,Home Care - Elderly - North,Day Care / Social Activities,Firstpoint Homecare Ltd,130.20, 08-Mar-2017
1131,Revenue,CAHD,Home Care - Elderly - North,Other Small Contracts,Firstpoint Homecare Ltd,43.40, 08-Mar-2017
1132,Revenue,CAHD,Home Care - Elderly - South,Other Small Contracts,Firstpoint Homecare Ltd,907.06, 08-Mar-2017
1133,Revenue,CAHD,Home Care - Elderly - North,Day Care / Social Activities,Firstpoint Homecare Ltd,121.52, 08-Mar-2017
1134,Revenue,CAHD,Home Care - Elderly - North,Other Small Contracts,Firstpoint Homecare Ltd,52.08, 08-Mar-2017
1135,Revenue,CAHD,Home Care - Elderly - South,Other Small Contracts,Firstpoint Homecare Ltd,946.12, 08-Mar-2017
1136,Revenue,CAHD,Home Care - Elderly - North,Day Care / Social Activities,Firstpoint Homecare Ltd,130.20, 08-Mar-2017
1137,Revenue,CAHD,Home Care - Elderly - North,Other Small Contracts,Firstpoint Homecare Ltd,34.72, 08-Mar-2017
1138,Revenue,CAHD,Home Care - Elderly - South,Other Small Contracts,Firstpoint Homecare Ltd,837.62, 13-Mar-2017
1139,Revenue,CAHD,Home Care - Elderly - North,Day Care / Social Activities,Firstpoint Homecare Ltd,130.20, 13-Mar-2017
1140,Revenue,CAHD,Home Care - Elderly - North,Other Small Contracts,Firstpoint Homecare Ltd,52.08, 13-Mar-2017
1141,Revenue,CAHD,Home Care - Elderly - South,Other Small Contracts,Firstpoint Homecare Ltd,863.66, 23-Mar-2017
1142,Revenue,CAHD,Home Care - Elderly - North,Day Care / Social Activities,Firstpoint Homecare Ltd,130.20, 23-Mar-2017
1143,Revenue,CAHD,Home Care - Elderly - North,Other Small Contracts,Firstpoint Homecare Ltd,52.08, 23-Mar-2017
1144,Revenue,CAHD,Home Care - Elderly - South,Other Small Contracts,Firstpoint Homecare Ltd,941.78, 24-Mar-2017
1145,Revenue,CAHD,Home Care - Elderly - North,Day Care / Social Activities,Firstpoint Homecare Ltd,125.86, 24-Mar-2017
1146,Revenue,CAHD,Home Care - Elderly - North,Other Small Contracts,Firstpoint Homecare Ltd,52.08, 24-Mar-2017
1147,Revenue,CAHD,Home Care - Elderly - South,Other Small Contracts,Firstpoint Homecare Ltd,928.76, 31-Mar-2017
1148,Revenue,CAHD,Home Care - Elderly - North,Day Care / Social Activities,Firstpoint Homecare Ltd,125.86, 31-Mar-2017
1149,Revenue,CAHD,Home Care - Elderly - North,Other Small Contracts,Firstpoint Homecare Ltd,52.08, 31-Mar-2017
1150,Revenue,CAHD,CSC - Agency Fostering,Foster Parent Allowances,Five Rivers Child Care Limited,3447.82, 31-Mar-2017
1151,Revenue,CAHD,CSC - Agency Fostering,Foster Parent Allowances,Foster Care Associates Limited,544.00, 02-Mar-2017
1152,Revenue,CAHD,Home Care - Elderly - South,Day Care / Social Activities,Fourways Care Limited,134.96, 08-Mar-2017
1153,Revenue,CAHD,Home Care - Elderly - South,Other Small Contracts,Fourways Care Limited,6704.14, 08-Mar-2017
1154,Revenue,CAHD,Home Care - Elderly - North,Other Small Contracts,Fourways Care Limited,5558.58, 08-Mar-2017
1155,Revenue,CAHD,Younger MH non-res purchasing,Other Small Contracts,Fourways Care Limited,81.94, 08-Mar-2017
1156,Revenue,CAHD,Home Care - Elderly - South,Day Care / Social Activities,Fourways Care Limited,115.68, 08-Mar-2017
1157,Revenue,CAHD,Home Care - Elderly - South,Other Small Contracts,Fourways Care Limited,6516.96, 08-Mar-2017
1158,Revenue,CAHD,Home Care - Elderly - North,Other Small Contracts,Fourways Care Limited,5395.38, 08-Mar-2017
1159,Revenue,CAHD,Younger MH non-res purchasing,Other Small Contracts,Fourways Care Limited,356.68, 08-Mar-2017
1160,Revenue,CAHD,Home Care - Elderly - South,Day Care / Social Activities,Fourways Care Limited,77.12, 08-Mar-2017
1161,Revenue,CAHD,Home Care - Elderly - South,Other Small Contracts,Fourways Care Limited,6455.60, 08-Mar-2017
1162,Revenue,CAHD,Home Care - Elderly - North,Other Small Contracts,Fourways Care Limited,5799.58, 08-Mar-2017
1163,Revenue,CAHD,Younger MH non-res purchasing,Other Small Contracts,Fourways Care Limited,371.14, 08-Mar-2017
1164,Revenue,CAHD,Home Care - Elderly - South,Day Care / Social Activities,Fourways Care Limited,130.14, 14-Mar-2017
1165,Revenue,CAHD,Home Care - Elderly - South,Other Small Contracts,Fourways Care Limited,6703.40, 14-Mar-2017
1166,Revenue,CAHD,Home Care - Elderly - North,Other Small Contracts,Fourways Care Limited,5829.18, 14-Mar-2017
1167,Revenue,CAHD,Younger MH non-res purchasing,Other Small Contracts,Fourways Care Limited,506.10, 14-Mar-2017
1168,Revenue,CAHD,Home Care - Elderly - South,Day Care / Social Activities,Fourways Care Limited,38.56, 23-Mar-2017
1169,Revenue,CAHD,Home Care - Elderly - South,Other Small Contracts,Fourways Care Limited,6830.82, 23-Mar-2017
1170,Revenue,CAHD,Home Care - Elderly - North,Other Small Contracts,Fourways Care Limited,5610.24, 23-Mar-2017
1171,Revenue,CAHD,Younger MH non-res purchasing,Other Small Contracts,Fourways Care Limited,366.32, 23-Mar-2017
1172,Revenue,CAHD,Home Care - Elderly - South,Day Care / Social Activities,Fourways Care Limited,38.56, 24-Mar-2017
1173,Revenue,CAHD,Home Care - Elderly - South,Other Small Contracts,Fourways Care Limited,6722.06, 24-Mar-2017
1174,Revenue,CAHD,Home Care - Elderly - North,Other Small Contracts,Fourways Care Limited,5323.88, 24-Mar-2017
1175,Revenue,CAHD,Younger MH non-res purchasing,Other Small Contracts,Fourways Care Limited,375.96, 24-Mar-2017
1176,Revenue,CAHD,Home Care - Elderly - South,Day Care / Social Activities,Fourways Care Limited,38.56, 31-Mar-2017
1177,Revenue,CAHD,Home Care - Elderly - South,Other Small Contracts,Fourways Care Limited,6695.12, 31-Mar-2017
1178,Revenue,CAHD,Home Care - Elderly - North,Other Small Contracts,Fourways Care Limited,5058.78, 31-Mar-2017
1179,Revenue,CAHD,Younger MH non-res purchasing,Other Small Contracts,Fourways Care Limited,337.40, 31-Mar-2017
1180,Revenue,CAHD,Supporting People Programme,Grants to Voluntary Bodies,Freeways Trust Limited,7530.70, 01-Mar-2017
1181,Revenue,CAHD,Freeways,Permanent Residential,Freeways Trust Limited,3627.12, 29-Mar-2017
1182,Revenue,CAHD,Freeways,Permanent Residential,Freeways Trust Limited,2331.13, 29-Mar-2017
1183,Revenue,CAHD,Freeways,Permanent Residential,Freeways Trust Limited,2331.13, 29-Mar-2017
1184,Revenue,CAHD,Freeways,Permanent Residential,Freeways Trust Limited,3393.81, 29-Mar-2017
1185,Revenue,CAHD,Freeways,Permanent Residential,Freeways Trust Limited,2331.13, 29-Mar-2017
1186,Revenue,CAHD,Freeways,Permanent Residential,Freeways Trust Limited,3454.92, 29-Mar-2017
1187,Revenue,CAHD,Freeways,Permanent Residential,Freeways Trust Limited,2603.48, 29-Mar-2017
1188,Revenue,CAHD,Freeways,Permanent Residential,Freeways Trust Limited,3614.51, 29-Mar-2017
1189,Revenue,CAHD,Freeways,Permanent Residential,Freeways Trust Limited,2208.93, 29-Mar-2017
1190,Revenue,CAHD,Freeways,Permanent Residential,Freeways Trust Limited,2749.17, 29-Mar-2017
1191,Revenue,CAHD,Freeways,Permanent Residential,Freeways Trust Limited,3508.85, 29-Mar-2017
1192,Revenue,CAHD,Freeways,Permanent Residential,Freeways Trust Limited,3079.53, 29-Mar-2017
1193,Revenue,CAHD,Freeways,Permanent Residential,Freeways Trust Limited,2331.13, 29-Mar-2017
1194,Revenue,CAHD,Freeways,Permanent Residential,Freeways Trust Limited,7455.24, 29-Mar-2017
1195,Revenue,CAHD,Home Care - Elderly - South,Day Care / Social Activities,Freeways Trust Limited,1175.76, 10-Mar-2017
1196,Revenue,CAHD,Home Care - Elderly - South,Day Care / Social Activities,Freeways Trust Limited,887.76, 14-Mar-2017
1197,Revenue,CAHD,Home Care - Elderly - North,Other Small Contracts,Freeways Trust Limited,624.72, 14-Mar-2017
1198,Revenue,CAHD,Home Care - Elderly - South,Day Care / Social Activities,Freeways Trust Limited,1046.32, 14-Mar-2017
1199,Revenue,CAHD,Home Care - Elderly - North,Other Small Contracts,Freeways Trust Limited,514.14, 23-Mar-2017
1200,Revenue,CAHD,Home Care - Elderly - North,Other Small Contracts,Freeways Trust Limited,811.80, 14-Mar-2017
1201,Revenue,CAHD,Home Care - Elderly - North,Supported Living,Freeways Trust Ltd,800.00, 14-Mar-2017
1202,Revenue,CAHD,Bed purchasing - S28A Under 65 - South,Permanent Residential,Freeways Trust Ltd,3546.28, 14-Mar-2017
1203,Revenue,CAHD,Bed Purchasing - North,Permanent Residential,Freeways Trust Ltd,3560.40, 14-Mar-2017
1204,Revenue,CAHD,Bed Purchasing - South,Permanent Residential,Freeways Trust Ltd,3776.08, 14-Mar-2017
1205,Revenue,CAHD,Bed Purchasing - North,Permanent Residential,Freeways Trust Ltd,2851.24, 14-Mar-2017
1206,Revenue,CAHD,Bed Purchasing - South,Permanent Residential,Freeways Trust Ltd,3004.60, 14-Mar-2017
1207,Revenue,CAHD,Bed Purchasing - North,Permanent Residential,Freeways Trust Ltd,3149.08, 14-Mar-2017
1208,Revenue,CAHD,Bed Purchasing - North,Permanent Residential,Freeways Trust Ltd,3769.20, 14-Mar-2017
1209,Revenue,CAHD,18-25 Year Olds,Permanent Residential,Freeways Trust Ltd,3481.92, 14-Mar-2017
1210,Revenue,CAHD,Bed Purchasing - North,Permanent Residential,Freeways Trust Ltd,4357.16, 14-Mar-2017
1211,Revenue,CAHD,Pathway 3 - (Complex Beds),Permanent Nursing,Frenchay House,3162.00, 01-Mar-2017
1212,Revenue,CAHD,Pathway 3 - (Complex Beds),Permanent Nursing,Frenchay House,3162.00, 27-Mar-2017
1213,Revenue,CAHD,Bed Purchasing - Southmead Hospital,Respite Planned - Nursing,Frenchay Park Nursing Home,5600.00, 14-Mar-2017
1214,Revenue,CAHD,Bed Purchasing - South,Permanent Nursing,Fshc  1St Floor,2587.52, 14-Mar-2017
1215,Revenue,CAHD,South Glos Users in South Glos Homes,Permanent Nursing,Fshc  1St Floor,625.00, 14-Mar-2017
1216,Revenue,CAHD,Bed Purchasing - South,Permanent Nursing,Fshc  1St Floor,2038.72, 14-Mar-2017
1217,Revenue,CAHD,Bed Purchasing - Southmead Hospital,Permanent Nursing,Fshc  1St Floor,2252.00, 14-Mar-2017
1218,Revenue,CAHD,Bed Purchasing - South,Permanent Nursing,Fshc  1St Floor,2038.72, 14-Mar-2017
1219,Revenue,CAHD,South Glos Users in South Glos Homes,Permanent Nursing,Fshc  1St Floor,625.00, 14-Mar-2017
1220,Revenue,CAHD,Bed Purchasing - Southmead Hospital,Permanent Nursing,Fshc  1St Floor,2040.00, 14-Mar-2017
1221,Revenue,CAHD,South Glos Users in South Glos Homes,Permanent Nursing,Fshc  1St Floor,892.86, 14-Mar-2017
1222,Revenue,CAHD,South Glos Users in South Glos Homes,Permanent Nursing,Fshc  1St Floor,625.00, 14-Mar-2017
1223,Revenue,CAHD,Bed Purchasing - Southmead Hospital,Permanent Nursing,Fshc  1St Floor,2038.72, 14-Mar-2017
1224,Revenue,CAHD,South Glos Users in South Glos Homes,Permanent Nursing,Fshc  1St Floor,625.00, 14-Mar-2017
1225,Revenue,CAHD,South Glos Users in South Glos Homes,Permanent Nursing,Fshc  1St Floor,625.00, 14-Mar-2017
1226,Revenue,CAHD,South Glos Users in South Glos Homes,Permanent Nursing,Fshc  1St Floor,625.00, 14-Mar-2017
1227,Revenue,CAHD,Bed Purchasing - Southmead Hospital,Permanent Nursing,Fshc  1St Floor,2252.00, 14-Mar-2017
1228,Revenue,CAHD,Bed Purchasing - Southmead Hospital,Permanent Nursing,Fshc  1St Floor,2548.00, 14-Mar-2017
1229,Revenue,CAHD,South Glos Users in South Glos Homes,Permanent Nursing,Fshc  1St Floor,625.00, 14-Mar-2017
1230,Revenue,CAHD,Bed Purchasing - Southmead Hospital,Permanent Nursing,Fshc  1St Floor,2038.72, 14-Mar-2017
1231,Revenue,CAHD,South Glos Users in South Glos Homes,Permanent Nursing,Fshc  1St Floor,625.00, 14-Mar-2017
1232,Revenue,CAHD,Bed Purchasing - Southmead Hospital,Permanent Nursing,Fshc  1St Floor,2038.72, 14-Mar-2017
1233,Revenue,CAHD,South Glos Users in South Glos Homes,Permanent Nursing,Fshc  1St Floor,625.00, 14-Mar-2017
1234,Revenue,CAHD,Bed Purchasing - South,Permanent Nursing,Fshc  1St Floor,2282.64, 14-Mar-2017
1235,Revenue,CAHD,Bed Purchasing - Southmead Hospital,Permanent Nursing,Fshc  1St Floor,2282.64, 14-Mar-2017
1236,Revenue,CAHD,South Glos Users in South Glos Homes,Permanent Nursing,Fshc  1St Floor,1383.93, 14-Mar-2017
1237,Revenue,CAHD,Bed Purchasing - South,Permanent Nursing,Fshc  1St Floor,2252.00, 14-Mar-2017
1238,Revenue,CAHD,South Glos Users in South Glos Homes,Permanent Nursing,Fshc  1St Floor,625.00, 14-Mar-2017
1239,Revenue,CAHD,Bed Purchasing - Southmead Hospital,Permanent Nursing,Fshc  1St Floor,2038.72, 14-Mar-2017
1240,Revenue,CAHD,South Glos Users in South Glos Homes,Permanent Nursing,Fshc  1St Floor,625.00, 14-Mar-2017
1241,Revenue,CAHD,Bed Purchasing - Southmead Hospital,Permanent Nursing,Fshc  1St Floor,2252.00, 14-Mar-2017
1242,Revenue,CAHD,South Glos Users in South Glos Homes,Permanent Nursing,Fshc  1St Floor,625.00, 14-Mar-2017
1243,Revenue,CAHD,Bed Purchasing - South,Fees & Charges Income - General,Fshc  1St Floor,1338.86, 14-Mar-2017
1244,Revenue,CAHD,Bed Purchasing - Southmead Hospital,Permanent Nursing,Fshc  1St Floor,2038.72, 14-Mar-2017
1245,Revenue,CAHD,South Glos Users in South Glos Homes,Permanent Nursing,Fshc  1St Floor,625.00, 14-Mar-2017
1246,Revenue,CAHD,Bed Purchasing - Southmead Hospital,Permanent Residential,Fshc  1St Floor,1901.52, 14-Mar-2017
1247,Revenue,CAHD,Bed Purchasing - South,Permanent Nursing,Fshc  1St Floor,2038.72, 14-Mar-2017
1248,Revenue,CAHD,Bed Purchasing - North,Permanent Nursing,Fshc  1St Floor,2038.72, 14-Mar-2017
1249,Revenue,CAHD,South Glos Users in South Glos Homes,Permanent Nursing,Fshc  1St Floor,625.00, 14-Mar-2017
1250,Revenue,CAHD,Bed Purchasing - South,Permanent Nursing,Fshc  1St Floor,2252.00, 14-Mar-2017
1251,Revenue,CAHD,South Glos Users in South Glos Homes,Permanent Nursing,Fshc  1St Floor,625.00, 14-Mar-2017
1252,Revenue,CAHD,South Glos Users in South Glos Homes,Permanent Nursing,Fshc  1St Floor,625.00, 14-Mar-2017
1253,Revenue,CAHD,Bed Purchasing - Southmead Hospital,Respite Emergency - Residential,Fshc  1St Floor,1229.50, 14-Mar-2017
1254,Revenue,CAHD,South Glos Users in South Glos Homes,Permanent Nursing,Fshc  1St Floor,625.00, 14-Mar-2017
1255,Revenue,CAHD,Bed Purchasing - North,Permanent Nursing,Fshc  1St Floor,2282.64, 14-Mar-2017
1256,Revenue,CAHD,South Glos Users in South Glos Homes,Permanent Nursing,Fshc  1St Floor,625.00, 14-Mar-2017
1257,Revenue,CAHD,Bed Purchasing - Southmead Hospital,Permanent Nursing,Fshc  1St Floor,2038.72, 14-Mar-2017
1258,Revenue,CAHD,South Glos Users in South Glos Homes,Permanent Nursing,Fshc  1St Floor,625.00, 14-Mar-2017
1259,Revenue,CAHD,Bed Purchasing - Southmead Hospital,Permanent Nursing,Fshc  1St Floor,3829.50, 14-Mar-2017
1260,Revenue,CAHD,Bed Purchasing - Southmead Hospital,Permanent Nursing,Fshc  1St Floor,2382.80, 14-Mar-2017
1261,Revenue,CAHD,Bed Purchasing - Southmead Hospital,Permanent Nursing,Fshc  1St Floor,630.00, 14-Mar-2017
1262,Revenue,CAHD,South Glos Users in South Glos Homes,Permanent Nursing,Fshc  1St Floor,625.00, 14-Mar-2017
1263,Revenue,CAHD,Bed Purchasing - North,Permanent Nursing,Fshc  1St Floor,4150.25, 14-Mar-2017
1264,Revenue,CAHD,Bed Purchasing - North,Fees & Charges Income - General,Fshc  1St Floor,1668.72, 14-Mar-2017
1265,Revenue,CAHD,Bed Purchasing - North,Fees & Charges Income - General,Fshc  1St Floor,3600.91, 14-Mar-2017
1266,Revenue,CAHD,Bed Purchasing - North,Permanent Nursing,Fshc  1St Floor,2068.86, 14-Mar-2017
1267,Revenue,CAHD,Bed Purchasing - Southmead Hospital,Permanent Residential,Fshc  1St Floor,2148.43, 14-Mar-2017
1268,Revenue,CAHD,Bed Purchasing - Southmead Hospital,Permanent Residential,Fshc  1St Floor,2228.00, 14-Mar-2017
1269,Revenue,CAHD,Bed Purchasing - Southmead Hospital,Fees & Charges Income - General,Fshc  1St Floor,504.13, 14-Mar-2017
1270,Revenue,CAHD,Bed Purchasing - South,Permanent Nursing,Fshc  1St Floor,2228.00, 14-Mar-2017
1271,Revenue,CAHD,South Glos Users in South Glos Homes,Permanent Nursing,Fshc  1St Floor,625.00, 14-Mar-2017
1272,Revenue,CAHD,Bed Purchasing - South,Permanent Nursing,Fshc  1St Floor,1383.42, 14-Mar-2017
1273,Revenue,CAHD,Bed Purchasing - Southmead Hospital,Permanent Nursing,Fshc  1St Floor,2038.72, 14-Mar-2017
1274,Revenue,CAHD,South Glos Users in South Glos Homes,Permanent Nursing,Fshc  1St Floor,625.00, 14-Mar-2017
1275,Revenue,CAHD,Bed Purchasing - Southmead Hospital,Permanent Nursing,Fshc  1St Floor,4150.25, 14-Mar-2017
1276,Revenue,CAHD,Bed Purchasing - Southmead Hospital,Permanent Nursing,Fshc  1St Floor,2227.20, 14-Mar-2017
1277,Revenue,CAHD,South Glos Users in South Glos Homes,Permanent Nursing,Fshc  1St Floor,625.00, 14-Mar-2017
1278,Revenue,CAHD,Bed Purchasing - Southmead Hospital,Permanent Nursing,Fshc  1St Floor,4533.94, 14-Mar-2017
1279,Revenue,CAHD,Bed Purchasing - North,Permanent Nursing,Fshc  1St Floor,2188.00, 14-Mar-2017
1280,Revenue,CAHD,South Glos Users in South Glos Homes,Permanent Nursing,Fshc  1St Floor,625.00, 14-Mar-2017
1281,Revenue,CAHD,Bed Purchasing - North,Permanent Nursing,Fshc  1St Floor,4454.14, 14-Mar-2017
1282,Revenue,CAHD,South Glos Users in South Glos Homes,Permanent Nursing,Fshc  1St Floor,625.00, 14-Mar-2017
1283,Revenue,CAHD,Bed Purchasing - Southmead Hospital,Permanent Nursing,Fshc  1St Floor,2038.72, 14-Mar-2017
1284,Revenue,CAHD,South Glos Users in South Glos Homes,Permanent Nursing,Fshc  1St Floor,625.00, 14-Mar-2017
1285,Revenue,CAHD,Bed Purchasing - Southmead Hospital,Permanent Nursing,Fshc  1St Floor,4150.25, 14-Mar-2017
1286,Revenue,CAHD,Bed Purchasing - Southmead Hospital,Permanent Residential,Fshc  1St Floor,1901.52, 14-Mar-2017
1287,Revenue,CAHD,Bed Purchasing - Southmead Hospital,Respite Emergency - Nursing,Fshc  1St Floor,2164.00, 14-Mar-2017
1288,Revenue,CAHD,South Glos Users in South Glos Homes,Permanent Nursing,Fshc  1St Floor,625.00, 14-Mar-2017
1289,Revenue,CAHD,South Glos Users in South Glos Homes,Permanent Nursing,Fshc  1St Floor,625.00, 14-Mar-2017
1290,Revenue,CAHD,Bed Purchasing - Southmead Hospital,Permanent Nursing,Fshc  1St Floor,2038.72, 14-Mar-2017
1291,Revenue,CAHD,South Glos Users in South Glos Homes,Permanent Nursing,Fshc  1St Floor,625.00, 14-Mar-2017
1292,Revenue,CAHD,Bed Purchasing - Southmead Hospital,Permanent Nursing,Fshc  1St Floor,4150.25, 14-Mar-2017
1293,Revenue,CAHD,Bed Purchasing - Southmead Hospital,Permanent Nursing,Fshc  1St Floor,2038.72, 14-Mar-2017
1294,Revenue,CAHD,South Glos Users in South Glos Homes,Permanent Nursing,Fshc  1St Floor,625.00, 14-Mar-2017
1295,Revenue,CAHD,Bed Purchasing - Southmead Hospital,Permanent Nursing,Fshc  1St Floor,4150.25, 14-Mar-2017
1296,Revenue,CAHD,South Glos Users in South Glos Homes,Permanent Nursing,Fshc  1St Floor,1071.43, 14-Mar-2017
1297,Revenue,CAHD,South Glos Users in South Glos Homes,Permanent Nursing,Fshc  1St Floor,625.00, 14-Mar-2017
1298,Revenue,CAHD,South Glos Users in South Glos Homes,Permanent Nursing,Fshc  1St Floor,625.00, 14-Mar-2017
1299,Revenue,CAHD,Bed Purchasing - North,Permanent Nursing,Fshc  1St Floor,2193.44, 14-Mar-2017
1300,Revenue,CAHD,Bed Purchasing - North,Fees & Charges Income - General,Fshc  1St Floor,4465.22, 14-Mar-2017
1301,Revenue,CAHD,Bed Purchasing - North,Permanent Nursing,Fshc  1St Floor,4465.22, 14-Mar-2017
1302,Revenue,CAHD,Bed Purchasing - Southmead Hospital,Permanent Nursing,Fshc  1St Floor,1237.79, 14-Mar-2017
1303,Revenue,CAHD,Bed Purchasing - North,Permanent Nursing,Fshc  1St Floor,2038.72, 14-Mar-2017
1304,Revenue,CAHD,South Glos Users in South Glos Homes,Permanent Nursing,Fshc  1St Floor,625.00, 14-Mar-2017
1305,Revenue,CAHD,Bed Purchasing - North,Permanent Nursing,Fshc  1St Floor,4150.25, 14-Mar-2017
1306,Revenue,CAHD,South Glos Users in South Glos Homes,Permanent Nursing,Fshc  1St Floor,1294.64, 14-Mar-2017
1307,Revenue,CAHD,South Glos Users in South Glos Homes,Permanent Nursing,Fshc  1St Floor,625.00, 14-Mar-2017
1308,Revenue,CAHD,Bed Purchasing - North,Permanent Nursing,Fshc  1St Floor,2228.00, 14-Mar-2017
1309,Revenue,CAHD,South Glos Users in South Glos Homes,Permanent Nursing,Fshc  1St Floor,625.00, 14-Mar-2017
1310,Revenue,CAHD,Bed Purchasing - North,Permanent Nursing,Fshc  1St Floor,4535.57, 14-Mar-2017
1311,Revenue,CAHD,South Glos Users in South Glos Homes,Permanent Nursing,Fshc  1St Floor,625.00, 14-Mar-2017
1312,Revenue,CAHD,Bed Purchasing - Southmead Hospital,Respite Planned - Residential,Fshc  1St Floor,2164.00, 14-Mar-2017
1313,Revenue,CAHD,Bed Purchasing - Southmead Hospital,Respite Planned - Residential,Fshc  1St Floor,1623.00, 14-Mar-2017
1314,Revenue,CAHD,Bed Purchasing - Southmead Hospital,Permanent Nursing,Fshc  1St Floor,3800.00, 14-Mar-2017
1315,Revenue,CAHD,Bed Purchasing - Southmead Hospital,Permanent Nursing,Fshc  1St Floor,7735.71, 14-Mar-2017
1316,Revenue,CAHD,South Glos Users in South Glos Homes,Permanent Nursing,Fshc  1St Floor,625.00, 14-Mar-2017
1317,Revenue,CAHD,Bed Purchasing - Southmead Hospital,Permanent Nursing,Fshc  1St Floor,4533.94, 14-Mar-2017
1318,Revenue,CAHD,Bed Purchasing - North,Permanent Nursing,Fshc  1St Floor,2038.72, 14-Mar-2017
1319,Revenue,CAHD,South Glos Users in South Glos Homes,Permanent Nursing,Fshc  1St Floor,625.00, 14-Mar-2017
1320,Revenue,CAHD,Bed Purchasing - North,Permanent Nursing,Fshc  1St Floor,4150.25, 14-Mar-2017
1321,Revenue,CAHD,Bed Purchasing - Southmead Hospital,Permanent Residential,Fshc  1St Floor,1901.52, 14-Mar-2017
1322,Revenue,CAHD,Bed Purchasing - North,Permanent Nursing,Fshc  1St Floor,2038.72, 14-Mar-2017
1323,Revenue,CAHD,South Glos Users in South Glos Homes,Permanent Nursing,Fshc  1St Floor,625.00, 14-Mar-2017
1324,Revenue,CAHD,Bed Purchasing - North,Permanent Nursing,Fshc  1St Floor,4150.25, 14-Mar-2017
1325,Revenue,CAHD,Bed Purchasing - North,Permanent Nursing,Fshc  1St Floor,2038.72, 14-Mar-2017
1326,Revenue,CAHD,South Glos Users in South Glos Homes,Permanent Nursing,Fshc  1St Floor,625.00, 14-Mar-2017
1327,Revenue,CAHD,Bed Purchasing - North,Permanent Nursing,Fshc  1St Floor,4150.25, 14-Mar-2017
1328,Revenue,CAHD,Bed Purchasing - Southmead Hospital,Permanent Nursing,Fshc  1St Floor,4405.29, 14-Mar-2017
1329,Revenue,CAHD,Bed Purchasing - Southmead Hospital,Permanent Nursing,Fshc  1St Floor,2164.00, 14-Mar-2017
1330,Revenue,CAHD,Bed Purchasing - Southmead Hospital,Permanent Nursing,Fshc  1St Floor,2086.71, 14-Mar-2017
1331,Revenue,CAHD,South Glos Users in South Glos Homes,Permanent Nursing,Fshc  1St Floor,625.00, 14-Mar-2017
1332,Revenue,CAHD,Bed Purchasing - North,Permanent Nursing,Fshc  1St Floor,2038.72, 14-Mar-2017
1333,Revenue,CAHD,South Glos Users in South Glos Homes,Permanent Nursing,Fshc  1St Floor,625.00, 14-Mar-2017
1334,Revenue,CAHD,Bed Purchasing - North,Permanent Nursing,Fshc  1St Floor,4150.25, 14-Mar-2017
1335,Revenue,CAHD,Bed Purchasing - North,Permanent Nursing,Fshc  1St Floor,2038.72, 14-Mar-2017
1336,Revenue,CAHD,South Glos Users in South Glos Homes,Permanent Nursing,Fshc  1St Floor,625.00, 14-Mar-2017
1337,Revenue,CAHD,Bed Purchasing - North,Permanent Nursing,Fshc  1St Floor,4150.25, 14-Mar-2017
1338,Revenue,CAHD,Bed Purchasing - North,Permanent Residential,Fshc  1St Floor,2228.00, 14-Mar-2017
1339,Revenue,CAHD,South Glos Users in South Glos Homes,Permanent Nursing,Fshc  1St Floor,625.00, 14-Mar-2017
1340,Revenue,CAHD,Bed Purchasing - North,Permanent Nursing,Fshc  1St Floor,2038.72, 14-Mar-2017
1341,Revenue,CAHD,South Glos Users in South Glos Homes,Permanent Nursing,Fshc  1St Floor,625.00, 14-Mar-2017
1342,Revenue,CAHD,Bed Purchasing - North,Permanent Nursing,Fshc  1St Floor,4150.25, 14-Mar-2017
1343,Revenue,CAHD,Bed Purchasing - Southmead Hospital,Permanent Nursing,Fshc  1St Floor,2228.00, 14-Mar-2017
1344,Revenue,CAHD,Bed Purchasing - Southmead Hospital,Permanent Nursing,Fshc  1St Floor,2164.00, 14-Mar-2017
1345,Revenue,CAHD,South Glos Users in South Glos Homes,Permanent Nursing,Fshc  1St Floor,625.00, 14-Mar-2017
1346,Revenue,CAHD,Bed Purchasing - Southmead Hospital,Permanent Nursing,Fshc  1St Floor,4405.29, 14-Mar-2017
1347,Revenue,CAHD,Bed Purchasing - North,Permanent Nursing,Fshc  1St Floor,2038.72, 14-Mar-2017
1348,Revenue,CAHD,South Glos Users in South Glos Homes,Permanent Nursing,Fshc  1St Floor,625.00, 14-Mar-2017
1349,Revenue,CAHD,Bed Purchasing - North,Permanent Nursing,Fshc  1St Floor,4150.25, 14-Mar-2017
1350,Revenue,CAHD,Bed Purchasing - North,Permanent Nursing,Fshc  1St Floor,2164.00, 14-Mar-2017
1351,Revenue,CAHD,Bed Purchasing - North,Permanent Nursing,Fshc  1St Floor,2009.43, 14-Mar-2017
1352,Revenue,CAHD,South Glos Users in South Glos Homes,Permanent Nursing,Fshc  1St Floor,625.00, 14-Mar-2017
1353,Revenue,CAHD,Bed Purchasing - North,Permanent Nursing,Fshc  1St Floor,2038.72, 14-Mar-2017
1354,Revenue,CAHD,South Glos Users in South Glos Homes,Permanent Nursing,Fshc  1St Floor,625.00, 14-Mar-2017
1355,Revenue,CAHD,Bed Purchasing - North,Permanent Nursing,Fshc  1St Floor,4150.25, 14-Mar-2017
1356,Revenue,CAHD,Bed Purchasing - North,Permanent Nursing,Fshc  1St Floor,2108.28, 14-Mar-2017
1357,Revenue,CAHD,South Glos Users in South Glos Homes,Permanent Nursing,Fshc  1St Floor,625.00, 14-Mar-2017
1358,Revenue,CAHD,Bed Purchasing - North,Permanent Nursing,Fshc  1St Floor,4291.86, 14-Mar-2017
1359,Revenue,CAHD,Bed Purchasing - Southmead Hospital,Permanent Nursing,Fshc  1St Floor,2352.00, 14-Mar-2017
1360,Revenue,CAHD,South Glos Users in South Glos Homes,Permanent Nursing,Fshc  1St Floor,625.00, 14-Mar-2017
1361,Revenue,CAHD,Bed Purchasing - North,Permanent Nursing,Fshc  1St Floor,2038.72, 14-Mar-2017
1362,Revenue,CAHD,South Glos Users in South Glos Homes,Permanent Nursing,Fshc  1St Floor,625.00, 14-Mar-2017
1363,Revenue,CAHD,South Glos Users in South Glos Homes,Permanent Nursing,Fshc  1St Floor,625.00, 14-Mar-2017
1364,Revenue,CAHD,South Glos Users in South Glos Homes,Permanent Nursing,Fshc  1St Floor,625.00, 14-Mar-2017
1365,Revenue,CAHD,South Glos Users in South Glos Homes,Permanent Nursing,Fshc  1St Floor,625.00, 14-Mar-2017
1366,Revenue,CAHD,Bed Purchasing - South,Permanent Nursing,Fshc  1St Floor,2121.43, 14-Mar-2017
1367,Revenue,CAHD,Bed Purchasing - South,Permanent Nursing,Fshc  1St Floor,2209.82, 14-Mar-2017
1368,Revenue,CAHD,South Glos Users in South Glos Homes,Permanent Nursing,Fshc  1St Floor,7410.71, 14-Mar-2017
1369,Revenue,CAHD,South Glos Users in South Glos Homes,Permanent Nursing,Fshc  1St Floor,625.00, 14-Mar-2017
1370,Revenue,CAHD,Bed Purchasing - North,Permanent Nursing,Fshc  1St Floor,2038.72, 14-Mar-2017
1371,Revenue,CAHD,South Glos Users in South Glos Homes,Permanent Nursing,Fshc  1St Floor,625.00, 14-Mar-2017
1372,Revenue,CAHD,South Glos Users in South Glos Homes,Permanent Nursing,Fshc  1St Floor,625.00, 14-Mar-2017
1373,Revenue,CAHD,Bed Purchasing - Southmead Hospital,Permanent Residential,Fshc  1St Floor,1901.52, 14-Mar-2017
1374,Revenue,CAHD,Bed Purchasing - Southmead Hospital,Respite Planned - Nursing,Fshc  1St Floor,2475.00, 14-Mar-2017
1375,Revenue,CAHD,South Glos Users in South Glos Homes,Permanent Nursing,Fshc  1St Floor,625.00, 14-Mar-2017
1376,Revenue,CAHD,South Glos Users in South Glos Homes,Permanent Nursing,Fshc  1St Floor,625.00, 14-Mar-2017
1377,Revenue,CAHD,Bed Purchasing - Southmead Hospital,Permanent Nursing,Fshc  1St Floor,2121.43, 14-Mar-2017
1378,Revenue,CAHD,South Glos Users in South Glos Homes,Permanent Nursing,Fshc  1St Floor,1183.04, 14-Mar-2017
1379,Revenue,CAHD,South Glos Users in South Glos Homes,Permanent Nursing,Fshc  1St Floor,625.00, 14-Mar-2017
1380,Revenue,CAHD,South Glos Users in South Glos Homes,Permanent Nursing,Fshc  1St Floor,625.00, 14-Mar-2017
1381,Revenue,CAHD,South Glos Users in South Glos Homes,Permanent Nursing,Fshc  1St Floor,3526.79, 14-Mar-2017
1382,Revenue,CAHD,Bed Purchasing - Southmead Hospital,Permanent Nursing,Fshc  1St Floor,2205.36, 14-Mar-2017
1383,Revenue,CAHD,South Glos Users in South Glos Homes,Permanent Nursing,Fshc  1St Floor,625.00, 14-Mar-2017
1384,Revenue,CAHD,South Glos Users in South Glos Homes,Permanent Nursing,Fshc  1St Floor,1071.43, 14-Mar-2017
1385,Revenue,CAHD,South Glos Users in South Glos Homes,Permanent Nursing,Fshc  1St Floor,625.00, 14-Mar-2017
1386,Revenue,CAHD,South Glos Users in South Glos Homes,Permanent Nursing,Fshc  1St Floor,1517.86, 14-Mar-2017
1387,Revenue,CAHD,South Glos Users in South Glos Homes,Permanent Nursing,Fshc  1St Floor,625.00, 14-Mar-2017
1388,Revenue,CAHD,Bed Purchasing - Southmead Hospital,Fees & Charges Income - General,Fshc  1St Floor,1379.53, 14-Mar-2017
1389,Revenue,CAHD,Bed Purchasing - Southmead Hospital,Respite Emergency - Nursing,Fshc  1St Floor,4063.39, 14-Mar-2017
1390,Revenue,CAHD,Bed Purchasing - North,Permanent Nursing,Fshc  1St Floor,2298.21, 14-Mar-2017
1391,Revenue,CAHD,Bed Purchasing - Southmead Hospital,Permanent Nursing,Fshc  1St Floor,2475.00, 14-Mar-2017
1392,Revenue,CAHD,South Glos Users in South Glos Homes,Permanent Nursing,Fshc  1St Floor,625.00, 14-Mar-2017
1393,Revenue,CAHD,Bed Purchasing - North,Permanent Nursing,Fshc  1St Floor,2038.72, 14-Mar-2017
1394,Revenue,CAHD,South Glos Users in South Glos Homes,Permanent Nursing,Fshc  1St Floor,625.00, 14-Mar-2017
1395,Revenue,CAHD,South Glos Users in South Glos Homes,Permanent Nursing,Fshc  1St Floor,625.00, 14-Mar-2017
1396,Revenue,CAHD,Bed Purchasing - Southmead Hospital,Permanent Nursing,Fshc  1St Floor,2038.72, 14-Mar-2017
1397,Revenue,CAHD,South Glos Users in South Glos Homes,Permanent Nursing,Fshc  1St Floor,625.00, 14-Mar-2017
1398,Revenue,CAHD,Bed Purchasing - Southmead Hospital,Respite Planned - Nursing,Fshc  1St Floor,13600.00, 14-Mar-2017
1399,Revenue,CAHD,Bed Purchasing - North,Permanent Nursing,Fshc  1St Floor,2038.72, 14-Mar-2017
1400,Revenue,CAHD,South Glos Users in South Glos Homes,Permanent Nursing,Fshc  1St Floor,625.00, 14-Mar-2017
1401,Revenue,CAHD,Bed Purchasing - South,Permanent Nursing,Fshc  1St Floor,3206.27, 14-Mar-2017
1402,Revenue,CAHD,South Glos Users in South Glos Homes,Permanent Nursing,Fshc  1St Floor,2321.43, 14-Mar-2017
1403,Revenue,CAHD,Bed Purchasing - South,Permanent Nursing,Fshc  1St Floor,2475.00, 14-Mar-2017
1404,Revenue,CAHD,South Glos Users in South Glos Homes,Permanent Nursing,Fshc  1St Floor,625.00, 14-Mar-2017
1405,Revenue,CAHD,Bed Purchasing - Southmead Hospital,Permanent Nursing,Fshc  1St Floor,2038.72, 14-Mar-2017
1406,Revenue,CAHD,South Glos Users in South Glos Homes,Permanent Nursing,Fshc  1St Floor,625.00, 14-Mar-2017
1407,Revenue,CAHD,Bed Purchasing - South,Permanent Residential,Fshc  1St Floor,2200.00, 14-Mar-2017
1408,Revenue,CAHD,Bed Purchasing - South,Permanent Nursing,Fshc  1St Floor,2400.00, 14-Mar-2017
1409,Revenue,CAHD,South Glos Users in South Glos Homes,Permanent Nursing,Fshc  1St Floor,625.00, 14-Mar-2017
1410,Revenue,CAHD,Bed Purchasing - South,Permanent Nursing,Fshc  1St Floor,2038.72, 14-Mar-2017
1411,Revenue,CAHD,South Glos Users in South Glos Homes,Permanent Nursing,Fshc  1St Floor,625.00, 14-Mar-2017
1412,Revenue,CAHD,Bed Purchasing - Southmead Hospital,Fees & Charges Income - General,Fshc  1St Floor,597.49, 14-Mar-2017
1413,Revenue,CAHD,Bed Purchasing - Southmead Hospital,Permanent Nursing,Fshc  1St Floor,2038.72, 14-Mar-2017
1414,Revenue,CAHD,South Glos Users in South Glos Homes,Permanent Nursing,Fshc  1St Floor,625.00, 14-Mar-2017
1415,Revenue,CAHD,Bed Purchasing - North,Fees & Charges Income - General,Fshc  1St Floor,1140.21, 14-Mar-2017
1416,Revenue,CAHD,Bed Purchasing - Southmead Hospital,Permanent Residential,Fshc  1St Floor,2111.52, 14-Mar-2017
1417,Revenue,CAHD,South Glos Users in South Glos Homes,Permanent Nursing,Fshc  1St Floor,625.00, 14-Mar-2017
1418,Revenue,CAHD,South Glos Users in South Glos Homes,Permanent Nursing,Fshc  1St Floor,625.00, 14-Mar-2017
1419,Revenue,CAHD,Bed Purchasing - South,Permanent Residential,Fshc  1St Floor,2154.36, 14-Mar-2017
1420,Revenue,CAHD,Bed Purchasing - North,Permanent Nursing,Fshc  1St Floor,2038.72, 14-Mar-2017
1421,Revenue,CAHD,South Glos Users in South Glos Homes,Permanent Nursing,Fshc  1St Floor,625.00, 14-Mar-2017
1422,Revenue,CAHD,Bed Purchasing - Southmead Hospital,Permanent Nursing,Fshc  1St Floor,2038.72, 14-Mar-2017
1423,Revenue,CAHD,South Glos Users in South Glos Homes,Permanent Nursing,Fshc  1St Floor,625.00, 14-Mar-2017
1424,Revenue,CAHD,Bed Purchasing - South,Permanent Nursing,Fshc  1St Floor,2145.80, 14-Mar-2017
1425,Revenue,CAHD,South Glos Users in South Glos Homes,Permanent Nursing,Fshc  1St Floor,625.00, 14-Mar-2017
1426,Revenue,CAHD,South Glos Users in South Glos Homes,Permanent Nursing,Fshc  1St Floor,625.00, 14-Mar-2017
1427,Revenue,CAHD,Bed Purchasing - Southmead Hospital,Permanent Nursing,Fshc  1St Floor,2038.72, 14-Mar-2017
1428,Revenue,CAHD,South Glos Users in South Glos Homes,Permanent Nursing,Fshc  1St Floor,625.00, 14-Mar-2017
1429,Revenue,CAHD,Bed Purchasing - Southmead Hospital,Permanent Nursing,Fshc  1St Floor,2229.92, 14-Mar-2017
1430,Revenue,CAHD,South Glos Users in South Glos Homes,Permanent Nursing,Fshc  1St Floor,625.00, 14-Mar-2017
1431,Revenue,CAHD,Bed Purchasing - South,Respite Emergency - Residential,Fshc  1St Floor,5021.43, 14-Mar-2017
1432,Revenue,CAHD,South Glos Users in South Glos Homes,Permanent Nursing,Fshc  1St Floor,625.00, 14-Mar-2017
1433,Revenue,CAHD,South Glos Users in South Glos Homes,Permanent Nursing,Fshc  1St Floor,625.00, 14-Mar-2017
1434,Revenue,CAHD,Bed Purchasing - North,Respite Planned - Residential,Fshc  1St Floor,2000.00, 14-Mar-2017
1435,Revenue,CAHD,Bed Purchasing - South,Fees & Charges Income - General,Fshc  1St Floor,5700.00, 14-Mar-2017
1436,Revenue,CAHD,Bed Purchasing - South,Permanent Residential,Fshc  1St Floor,882.14, 14-Mar-2017
1437,Revenue,CAHD,Bed Purchasing - South,Fees & Charges Income - General,Fshc  1St Floor,2072.40, 14-Mar-2017
1438,Revenue,CAHD,Bed Purchasing - South,Permanent Residential,Fshc  1St Floor,8957.14, 14-Mar-2017
1439,Revenue,CAHD,Bed Purchasing - South,Fees & Charges Income - General,Fshc  1St Floor,2445.96, 14-Mar-2017
1440,Revenue,CAHD,Bed Purchasing - North,Respite Emergency - Residential,Fshc  1St Floor,550.00, 14-Mar-2017
1441,Revenue,CAHD,Bed Purchasing - South,Permanent Residential,Fshc  1St Floor,1901.52, 14-Mar-2017
1442,Revenue,CAHD,Bed Purchasing - Southmead Hospital,Permanent Nursing,Fshc  1St Floor,2038.72, 14-Mar-2017
1443,Revenue,CAHD,South Glos Users in South Glos Homes,Permanent Nursing,Fshc  1St Floor,625.00, 14-Mar-2017
1444,Revenue,CAHD,Bed Purchasing - South,Permanent Nursing,Fshc  1St Floor,2800.00, 14-Mar-2017
1445,Revenue,CAHD,Bed Purchasing - Southmead Hospital,Permanent Nursing,Fshc  1St Floor,2038.72, 14-Mar-2017
1446,Revenue,CAHD,South Glos Users in South Glos Homes,Permanent Nursing,Fshc  1St Floor,625.00, 14-Mar-2017
1447,Revenue,CAHD,Bed Purchasing - Southmead Hospital,Permanent Nursing,Fshc  1St Floor,2038.72, 14-Mar-2017
1448,Revenue,CAHD,South Glos Users in South Glos Homes,Permanent Nursing,Fshc  1St Floor,625.00, 14-Mar-2017
1449,Revenue,CAHD,South Glos Users in South Glos Homes,Permanent Nursing,Fshc  1St Floor,625.00, 14-Mar-2017
1450,Revenue,CAHD,Bed Purchasing - North,Permanent Residential,Fshc  1St Floor,2400.00, 14-Mar-2017
1451,Revenue,CAHD,Bed Purchasing - North,Permanent Residential,Fshc  1St Floor,3000.00, 14-Mar-2017
1452,Revenue,CAHD,Bed Purchasing - South,Permanent Nursing,Fshc  1St Floor,2600.00, 14-Mar-2017
1453,Revenue,CAHD,Bed Purchasing - South,Permanent Nursing,Fshc  1St Floor,1952.00, 14-Mar-2017
1454,Revenue,CAHD,Bed Purchasing - South,Permanent Nursing,Fshc  1St Floor,2038.72, 14-Mar-2017
1455,Revenue,CAHD,South Glos Users in South Glos Homes,Permanent Nursing,Fshc  1St Floor,625.00, 14-Mar-2017
1456,Revenue,CAHD,Bed Purchasing - South,Permanent Nursing,Fshc  1St Floor,2324.08, 14-Mar-2017
1457,Revenue,CAHD,South Glos Users in South Glos Homes,Permanent Nursing,Fshc  1St Floor,625.00, 14-Mar-2017
1458,Revenue,CAHD,Bed Purchasing - South,Permanent Nursing,Fshc  1St Floor,2111.52, 14-Mar-2017
1459,Revenue,CAHD,South Glos Users in South Glos Homes,Permanent Nursing,Fshc  1St Floor,625.00, 14-Mar-2017
1460,Revenue,CAHD,Bed Purchasing - South,Permanent Residential,Fshc  1St Floor,2154.36, 14-Mar-2017
1461,Revenue,CAHD,Bed Purchasing - South,Permanent Nursing,Fshc  1St Floor,1929.88, 14-Mar-2017
1462,Revenue,CAHD,Bed Purchasing - Southmead Hospital,Permanent Nursing,Fshc  1St Floor,2838.08, 14-Mar-2017
1463,Revenue,CAHD,Bed purchasing - Elderly S117 - South,Permanent Nursing,Fshc  1St Floor,1929.88, 14-Mar-2017
1464,Revenue,CAHD,Bed Purchasing - South,Permanent Nursing,Fshc  1St Floor,3400.00, 14-Mar-2017
1465,Revenue,CAHD,Bed Purchasing - South,Permanent Nursing,Fshc  1St Floor,2600.00, 14-Mar-2017
1466,Revenue,CAHD,Bed Purchasing - Southmead Hospital,Permanent Nursing,Fshc  1St Floor,1929.88, 14-Mar-2017
1467,Revenue,CAHD,Bed Purchasing - Southmead Hospital,Permanent Nursing,Fshc  1St Floor,1929.88, 14-Mar-2017
1468,Revenue,CAHD,Bed Purchasing - Southmead Hospital,Permanent Nursing,Fshc  1St Floor,1929.88, 14-Mar-2017
1469,Revenue,CAHD,Bed Purchasing - South,Permanent Nursing,Fshc  1St Floor,1929.88, 14-Mar-2017
1470,Revenue,CAHD,Bed Purchasing - South,Permanent Residential,Fshc  1St Floor,3542.08, 14-Mar-2017
1471,Revenue,CAHD,Bed Purchasing - Southmead Hospital,Permanent Residential,Fshc  1St Floor,1946.08, 14-Mar-2017
1472,Revenue,CAHD,Bed Purchasing - North,Permanent Nursing,Fshc  1St Floor,2189.40, 14-Mar-2017
1473,Revenue,CAHD,Bed Purchasing - Southmead Hospital,Respite Planned - Nursing,Fshc  1St Floor,2189.40, 14-Mar-2017
1474,Revenue,CAHD,Bed Purchasing - North,Permanent Nursing,Fshc  1St Floor,1988.44, 14-Mar-2017
1475,Revenue,CAHD,South Glos Users in South Glos Homes,Permanent Nursing,Fshc  1St Floor,625.00, 14-Mar-2017
1476,Revenue,CAHD,Bed Purchasing - North,Permanent Nursing,Fshc  1St Floor,2189.40, 14-Mar-2017
1477,Revenue,CAHD,Bed Purchasing - North,Permanent Nursing,Fshc  1St Floor,2189.40, 14-Mar-2017
1478,Revenue,CAHD,Bed Purchasing - Southmead Hospital,Fees & Charges Income - General,Fshc  1St Floor,1059.88, 14-Mar-2017
1479,Revenue,CAHD,Bed Purchasing - Southmead Hospital,Permanent Nursing,Fshc  1St Floor,2189.40, 14-Mar-2017
1480,Revenue,CAHD,South Glos Users in South Glos Homes,Permanent Nursing,Fshc  1St Floor,1294.64, 14-Mar-2017
1481,Revenue,CAHD,Bed Purchasing - North,Permanent Nursing,Fshc  1St Floor,1929.88, 14-Mar-2017
1482,Revenue,CAHD,Bed Purchasing - Southmead Hospital,Permanent Nursing,Fshc  1St Floor,2600.00, 14-Mar-2017
1483,Revenue,CAHD,Bed Purchasing - Southmead Hospital,Permanent Nursing,Fshc  1St Floor,928.57, 14-Mar-2017
1484,Revenue,CAHD,Bed Purchasing - South,Permanent Residential,Fshc  1St Floor,2200.00, 14-Mar-2017
1485,Revenue,CAHD,Bed Purchasing - North,Permanent Residential,Fshc  1St Floor,1831.32, 14-Mar-2017
1486,Revenue,CAHD,Breakthrough and Inclusion Work,Project Funding,Genius Within,960.00, 03-Mar-2017
1487,Revenue,CAHD,Bed Purchasing - South,Permanent Residential,Gladstone House,5676.16, 14-Mar-2017
1488,Revenue,CAHD,Bed Purchasing - North,Permanent Residential,Glan Y Felin,9194.86, 14-Mar-2017
1489,Revenue,CAHD,Bed Purchasing - South,Permanent Residential,Glasallt Fawr,5056.12, 14-Mar-2017
1490,Revenue,CAHD,South Glos Users in South Glos Homes,Permanent Nursing,Glebe House Nursing Home,625.00, 14-Mar-2017
1491,Revenue,CAHD,South Glos Users in South Glos Homes,Permanent Nursing,Glebe House Nursing Home,625.00, 14-Mar-2017
1492,Revenue,CAHD,South Glos Users in South Glos Homes,Permanent Nursing,Glebe House Nursing Home,625.00, 14-Mar-2017
1493,Revenue,CAHD,South Glos Users in South Glos Homes,Permanent Nursing,Glebe House Nursing Home,625.00, 14-Mar-2017
1494,Revenue,CAHD,Bed Purchasing - North,Permanent Nursing,Glebe House Nursing Home,3113.76, 14-Mar-2017
1495,Revenue,CAHD,South Glos Users in South Glos Homes,Permanent Nursing,Glebe House Nursing Home,625.00, 14-Mar-2017
1496,Revenue,CAHD,South Glos Users in South Glos Homes,Permanent Nursing,Glebe House Nursing Home,625.00, 14-Mar-2017
1497,Revenue,CAHD,South Glos Users in South Glos Homes,Permanent Nursing,Glebe House Nursing Home,625.00, 14-Mar-2017
1498,Revenue,CAHD,Bed Purchasing - North,Permanent Residential,Glebe House Nursing Home,3030.88, 14-Mar-2017
1499,Revenue,CAHD,South Glos Users in South Glos Homes,Permanent Nursing,Glebe House Nursing Home,625.00, 14-Mar-2017
1500,Revenue,CAHD,South Glos Users in South Glos Homes,Permanent Nursing,Glebe House Nursing Home,625.00, 14-Mar-2017
1501,Revenue,CAHD,Bed Purchasing - North,Permanent Nursing,Glebe House Nursing Home,3004.32, 14-Mar-2017
1502,Revenue,CAHD,South Glos Users in South Glos Homes,Permanent Nursing,Glebe House Nursing Home,625.00, 14-Mar-2017
1503,Revenue,CAHD,South Glos Users in South Glos Homes,Permanent Nursing,Glebe House Nursing Home,625.00, 14-Mar-2017
1504,Revenue,CAHD,South Glos Users in South Glos Homes,Permanent Nursing,Glebe House Nursing Home,625.00, 14-Mar-2017
1505,Revenue,CAHD,South Glos Users in South Glos Homes,Permanent Nursing,Glebe House Nursing Home,625.00, 14-Mar-2017
1506,Revenue,CAHD,South Glos Users in South Glos Homes,Permanent Nursing,Glebe House Nursing Home,625.00, 14-Mar-2017
1507,Revenue,CAHD,South Glos Users in South Glos Homes,Permanent Nursing,Glebe House Nursing Home,625.00, 14-Mar-2017
1508,Revenue,CAHD,South Glos Users in South Glos Homes,Permanent Nursing,Glebe House Nursing Home,625.00, 14-Mar-2017
1509,Revenue,CAHD,Bed Purchasing - South,Permanent Residential,Glebe House Nursing Home,3300.00, 14-Mar-2017
1510,Revenue,CAHD,South Glos Users in South Glos Homes,Permanent Nursing,Glebe House Nursing Home,625.00, 14-Mar-2017
1511,Revenue,CAHD,Bed Purchasing - North,Permanent Nursing,Glebe House Nursing Home,2702.48, 14-Mar-2017
1512,Revenue,CAHD,South Glos Users in South Glos Homes,Permanent Nursing,Glebe House Nursing Home,625.00, 14-Mar-2017
1513,Revenue,CAHD,South Glos Users in South Glos Homes,Permanent Nursing,Glebe House Nursing Home,625.00, 14-Mar-2017
1514,Revenue,CAHD,South Glos Users in South Glos Homes,Permanent Nursing,Glebe House Nursing Home,625.00, 14-Mar-2017
1515,Revenue,CAHD,Bed Purchasing - North,Permanent Nursing,Glebe House Nursing Home,3175.00, 14-Mar-2017
1516,Revenue,CAHD,South Glos Users in South Glos Homes,Permanent Nursing,Glebe House Nursing Home,625.00, 14-Mar-2017
1517,Revenue,CAHD,South Glos Users in South Glos Homes,Permanent Nursing,Glebe House Nursing Home,625.00, 14-Mar-2017
1518,Revenue,CAHD,South Glos Users in South Glos Homes,Permanent Nursing,Glebe House Nursing Home,625.00, 14-Mar-2017
1519,Revenue,CAHD,South Glos Users in South Glos Homes,Permanent Nursing,Glebe House Nursing Home,625.00, 14-Mar-2017
1520,Revenue,CAHD,South Glos Users in South Glos Homes,Permanent Nursing,Glebe House Nursing Home,1227.68, 14-Mar-2017
1521,Revenue,CAHD,South Glos Users in South Glos Homes,Permanent Nursing,Glebe House Nursing Home,625.00, 14-Mar-2017
1522,Revenue,CAHD,Schools Specific Grant Income,Other Public Bodies,Gloucestershire County Council,500.00, 20-Mar-2017
1523,Revenue,CAHD,Bed Purchasing - South,Permanent Residential,Goldcare House,2941.04, 14-Mar-2017
1524,Revenue,CAHD,Alexandra Way,Prop.Serv. General Repairs,Goldstandard Contractors Limited,775.00, 29-Mar-2017
1525,Revenue,CAHD,Bed Purchasing - South,Permanent Residential,Gordena Care Home,2511.44, 14-Mar-2017
1526,Revenue,CAHD,Bed Purchasing - South,Permanent Residential,Gordena Care Home,3575.56, 14-Mar-2017
1527,Revenue,CAHD,Bed Purchasing - South,Permanent Residential,Gordena Care Home,2507.36, 14-Mar-2017
1528,Revenue,CAHD,Bed Purchasing - South,Permanent Residential,Gordena Care Home,4168.80, 14-Mar-2017
1529,Revenue,CAHD,Bed Purchasing - South,Permanent Residential,Gordena Care Home,3586.44, 14-Mar-2017
1530,Revenue,CAHD,Bed Purchasing - South,Permanent Residential,Gordena Care Limited,4686.28, 14-Mar-2017
1531,Revenue,CAHD,Bed Purchasing - South,Permanent Residential,Gordena Care Limited,4647.04, 14-Mar-2017
1532,Revenue,CAHD,Bed purchasing - S28A Under 65 - South,Permanent Residential,Gordena Care Limited,4557.68, 14-Mar-2017
1533,Revenue,CAHD,Bed Purchasing - North,Permanent Residential,Gordena Care Limited,4750.12, 14-Mar-2017
1534,Revenue,CAHD,Bed Purchasing - South,Permanent Nursing,Gracefields Nursing Home,2454.60, 14-Mar-2017
1535,Revenue,CAHD,South Glos Users in South Glos Homes,Permanent Nursing,Gracefields Nursing Home,625.00, 14-Mar-2017
1536,Revenue,CAHD,South Glos Users in South Glos Homes,Permanent Nursing,Gracefields Nursing Home,625.00, 14-Mar-2017
1537,Revenue,CAHD,Bed Purchasing - Southmead Hospital,Permanent Nursing,Gracefields Nursing Home,2414.28, 14-Mar-2017
1538,Revenue,CAHD,South Glos Users in South Glos Homes,Permanent Nursing,Gracefields Nursing Home,625.00, 14-Mar-2017
1539,Revenue,CAHD,Bed Purchasing - South,Permanent Nursing,Gracefields Nursing Home,2651.07, 14-Mar-2017
1540,Revenue,CAHD,Bed Purchasing - South,Permanent Nursing,Gracefields Nursing Home,611.79, 14-Mar-2017
1541,Revenue,CAHD,South Glos Users in South Glos Homes,Permanent Nursing,Gracefields Nursing Home,625.00, 14-Mar-2017
1542,Revenue,CAHD,Bed purchasing - Elderly S117 - South,Permanent Nursing,Gracefields Nursing Home,2414.28, 14-Mar-2017
1543,Revenue,CAHD,South Glos Users in South Glos Homes,Permanent Nursing,Gracefields Nursing Home,625.00, 14-Mar-2017
1544,Revenue,CAHD,South Glos Users in South Glos Homes,Permanent Nursing,Gracefields Nursing Home,625.00, 14-Mar-2017
1545,Revenue,CAHD,Bed Purchasing - South,Permanent Nursing,Gracefields Nursing Home,4501.71, 14-Mar-2017
1546,Revenue,CAHD,Bed Purchasing - South,Permanent Nursing,Gracefields Nursing Home,3232.00, 14-Mar-2017
1547,Revenue,CAHD,South Glos Users in South Glos Homes,Permanent Nursing,Gracefields Nursing Home,625.00, 14-Mar-2017
1548,Revenue,CAHD,Bed Purchasing - South,Permanent Nursing,Gracefields Nursing Home,3055.00, 14-Mar-2017
1549,Revenue,CAHD,South Glos Users in South Glos Homes,Permanent Nursing,Gracefields Nursing Home,625.00, 14-Mar-2017
1550,Revenue,CAHD,South Glos Users in South Glos Homes,Permanent Nursing,Gracefields Nursing Home,625.00, 14-Mar-2017
1551,Revenue,CAHD,South Glos Users in South Glos Homes,Permanent Nursing,Gracefields Nursing Home,2723.21, 14-Mar-2017
1552,Revenue,CAHD,South Glos Users in South Glos Homes,Permanent Nursing,Gracefields Nursing Home,625.00, 14-Mar-2017
1553,Revenue,CAHD,South Glos Users in South Glos Homes,Permanent Nursing,Gracefields Nursing Home,625.00, 14-Mar-2017
1554,Revenue,CAHD,South Glos Users in South Glos Homes,Permanent Nursing,Gracefields Nursing Home,625.00, 14-Mar-2017
1555,Revenue,CAHD,South Glos Users in South Glos Homes,Permanent Nursing,Gracefields Nursing Home,625.00, 14-Mar-2017
1556,Revenue,CAHD,South Glos Users in South Glos Homes,Permanent Nursing,Gracefields Nursing Home,625.00, 14-Mar-2017
1557,Revenue,CAHD,South Glos Users in South Glos Homes,Permanent Nursing,Gracefields Nursing Home,625.00, 14-Mar-2017
1558,Revenue,CAHD,South Glos Users in South Glos Homes,Permanent Nursing,Gracefields Nursing Home,625.00, 14-Mar-2017
1559,Revenue,CAHD,South Glos Users in South Glos Homes,Permanent Nursing,Gracefields Nursing Home,625.00, 14-Mar-2017
1560,Revenue,CAHD,South Glos Users in South Glos Homes,Permanent Nursing,Gracefields Nursing Home,625.00, 14-Mar-2017
1561,Revenue,CAHD,South Glos Users in South Glos Homes,Permanent Nursing,Gracefields Nursing Home,2477.68, 14-Mar-2017
1562,Revenue,CAHD,Bed Purchasing - Southmead Hospital,Permanent Nursing,Gracefields Nursing Home,2755.00, 14-Mar-2017
1563,Revenue,CAHD,South Glos Users in South Glos Homes,Permanent Nursing,Gracefields Nursing Home,625.00, 14-Mar-2017
1564,Revenue,CAHD,Bed Purchasing - Southmead Hospital,Permanent Nursing,Gracefields Nursing Home,3055.00, 14-Mar-2017
1565,Revenue,CAHD,South Glos Users in South Glos Homes,Permanent Nursing,Gracefields Nursing Home,625.00, 14-Mar-2017
1566,Revenue,CAHD,South Glos Users in South Glos Homes,Permanent Nursing,Gracefields Nursing Home,625.00, 14-Mar-2017
1567,Revenue,CAHD,Bed Purchasing - South,Permanent Nursing,Gracefields Nursing Home,2932.00, 14-Mar-2017
1568,Revenue,CAHD,South Glos Users in South Glos Homes,Permanent Nursing,Gracefields Nursing Home,625.00, 14-Mar-2017
1569,Revenue,CAHD,South Glos Users in South Glos Homes,Permanent Nursing,Gracefields Nursing Home,625.00, 14-Mar-2017
1570,Revenue,CAHD,South Glos Users in South Glos Homes,Permanent Nursing,Gracefields Nursing Home,625.00, 14-Mar-2017
1571,Revenue,CAHD,South Glos Users in South Glos Homes,Permanent Nursing,Gracefields Nursing Home,625.00, 14-Mar-2017
1572,Revenue,CAHD,South Glos Users in South Glos Homes,Permanent Nursing,Gracefields Nursing Home,625.00, 14-Mar-2017
1573,Revenue,CAHD,Bed Purchasing - South,Permanent Nursing,Gracefields Nursing Home,2414.28, 14-Mar-2017
1574,Revenue,CAHD,South Glos Users in South Glos Homes,Permanent Nursing,Gracefields Nursing Home,625.00, 14-Mar-2017
1575,Revenue,CAHD,South Glos Users in South Glos Homes,Permanent Nursing,Gracefields Nursing Home,625.00, 14-Mar-2017
1576,Revenue,CAHD,Bed Purchasing - South,Permanent Nursing,Gracefields Nursing Home,11631.43, 14-Mar-2017
1577,Revenue,CAHD,Bed Purchasing - South,Permanent Nursing,Gracefields Nursing Home,2832.00, 14-Mar-2017
1578,Revenue,CAHD,Bed Purchasing - South,Fees & Charges Income - General,Gracefields Nursing Home,3839.56, 14-Mar-2017
1579,Revenue,CAHD,South Glos Users in South Glos Homes,Permanent Nursing,Gracefields Nursing Home,625.00, 14-Mar-2017
1580,Revenue,CAHD,Bed Purchasing - South,Fees & Charges Income - General,Gracefields Nursing Home,2128.54, 14-Mar-2017
1581,Revenue,CAHD,Bed Purchasing - Southmead Hospital,Permanent Nursing,Gracefields Nursing Home,3055.00, 14-Mar-2017
1582,Revenue,CAHD,South Glos Users in South Glos Homes,Permanent Nursing,Gracefields Nursing Home,625.00, 14-Mar-2017
1583,Revenue,CAHD,Bed Purchasing - Southmead Hospital,Permanent Nursing,Gracefields Nursing Home,2414.28, 14-Mar-2017
1584,Revenue,CAHD,South Glos Users in South Glos Homes,Permanent Nursing,Gracefields Nursing Home,625.00, 14-Mar-2017
1585,Revenue,CAHD,Bed Purchasing - Southmead Hospital,Permanent Nursing,Gracefields Nursing Home,3232.00, 14-Mar-2017
1586,Revenue,CAHD,Bed Purchasing - Southmead Hospital,Permanent Nursing,Gracefields Nursing Home,692.57, 14-Mar-2017
1587,Revenue,CAHD,Tenancy Start Up Scheme,Other Supplies & Services,Individual,1550.00, 17-Mar-2017
1588,Revenue,CAHD,Bed Purchasing - Southmead Hospital,Permanent Residential,Granada House Residential Home,1831.32, 14-Mar-2017
1589,Revenue,CAHD,North Hub Offices,Educational Materials,Granada Learning Limited,250.93, 22-Mar-2017
1590,Revenue,CAHD,South Hub Offices,Educational Materials,Granada Learning Limited,250.93, 22-Mar-2017
1591,Revenue,CAHD,CSC - Residential Placements,Permanent Residential,Greenfields Adolecent Development Limited,23960.00, 30-Mar-2017
1592,Revenue,CAHD,CSC - Residential Placements,Permanent Residential,Greenfields Adolecent Development Limited,8550.00, 01-Mar-2017
1593,Revenue,CAHD,CSC - Residential Placements,Permanent Residential,Greenfields Adolecent Development Limited,28487.13, 01-Mar-2017
1594,Revenue,CAHD,CSC - Residential Placements,Permanent Residential,Greenfields Adolecent Development Limited,26527.14, 02-Mar-2017
1595,Revenue,CAHD,Bed Purchasing - North,Permanent Residential,Greensleeves,2010.60, 14-Mar-2017
1596,Revenue,CAHD,Tenancy Start Up Scheme,Other Supplies & Services,Greenwoods Property Centre Limited,1875.00, 30-Mar-2017
1597,Revenue,CAHD,Bed Purchasing - Southmead Hospital,Respite Planned - Residential,Grove Care,1600.00, 14-Mar-2017
1598,Revenue,CAHD,Bed Purchasing - South,Respite Emergency - Residential,Grove Care,3000.00, 14-Mar-2017
1599,Revenue,CAHD,Bed Purchasing - South,Respite Emergency - Residential,Grove Care,1392.86, 14-Mar-2017
1600,Revenue,CAHD,Bed Purchasing - South,Respite Emergency - Residential,Grove Care,857.14, 14-Mar-2017
1601,Revenue,CAHD,Bed Purchasing - South,Permanent Residential,Gwendoline House,2209.64, 14-Mar-2017
1602,Revenue,CAHD,Bed Purchasing - Southmead Hospital,Permanent Residential,Gwendoline House,2205.60, 14-Mar-2017
1603,Revenue,CAHD,Bed Purchasing - South,Permanent Residential,Gwendoline House,2209.64, 14-Mar-2017
1604,Revenue,CAHD,Bed Purchasing - South,Permanent Residential,Gwendoline House,1959.68, 14-Mar-2017
1605,Revenue,CAHD,Bed Purchasing - Southmead Hospital,Permanent Residential,Gwendoline House,2008.00, 14-Mar-2017
1606,Revenue,CAHD,Supporting People Programme,Grants to Voluntary Bodies,Habinteg Housing Association,666.00, 01-Mar-2017
1607,Revenue,CAHD,Social Lettings Agency,Fees - General,Individual,16.46, 27-Mar-2017
1608,Revenue,CAHD,Social Lettings Agency,Other Supplies & Services,Individual,559.60, 27-Mar-2017
1609,Revenue,CAHD,CSC - Through & Leaving Care Team,Agency Staff (Admin/Support Staff) Pay,Hampton`s Resourcing,1593.00, 07-Mar-2017
1610,Revenue,CAHD,CSC - Through & Leaving Care Team,Agency Staff (Admin/Support Staff) Pay,Hampton`s Resourcing,1836.00, 14-Mar-2017
1611,Revenue,CAHD,CSC - Through & Leaving Care Team,Agency Staff (Admin/Support Staff) Pay,Hampton`s Resourcing,1863.00, 21-Mar-2017
1612,Revenue,CAHD,CSC - Through & Leaving Care Team,Agency Staff (Admin/Support Staff) Pay,Hampton`s Resourcing,1593.00, 28-Mar-2017
1613,Revenue,CAHD,CSC - Family Placement Team,Computer Equipment - Purchase,Hands Free Computing Ltd,482.00, 15-Mar-2017
1614,Revenue,CAHD,Supporting People Programme,Grants to Voluntary Bodies,Hanover Housing Association,996.16, 01-Mar-2017
1615,Revenue,CAHD,Home Care - Elderly - North,Other Supplies & Services,Hanover Housing Association,1114.59, 16-Mar-2017
1616,Revenue,CAHD,Bed Purchasing - South,Permanent Residential,Harefield Hall,761.10, 14-Mar-2017
1617,Revenue,CAHD,Bed Purchasing - South,Permanent Residential,Harefield Hall,2351.36, 14-Mar-2017
1618,Revenue,CAHD,Bed Purchasing - South,Permanent Residential,Harefield Hall,2635.36, 14-Mar-2017
1619,Revenue,CAHD,Bed Purchasing - South,Permanent Residential,Harefield Hall,2224.04, 14-Mar-2017
1620,Revenue,CAHD,Bed Purchasing - South,Permanent Residential,Harefield Hall,2412.12, 14-Mar-2017
1621,Revenue,CAHD,Bed Purchasing - South,Permanent Residential,Harefield Hall,2561.36, 14-Mar-2017
1622,Revenue,CAHD,Bed Purchasing - Southmead Hospital,Permanent Nursing,Hazelwood Gardens Nursing Home,2217.04, 14-Mar-2017
1623,Revenue,CAHD,Bed Purchasing - Southmead Hospital,Permanent Nursing,Hc-One Ltd,2182.88, 14-Mar-2017
1624,Revenue,CAHD,Bed Purchasing - Southmead Hospital,Permanent Nursing,Hc-One Ltd,2107.84, 14-Mar-2017
1625,Revenue,CAHD,Bed Purchasing - North,Permanent Nursing,Hc-One Ltd,2103.28, 14-Mar-2017
1626,Revenue,CAHD,Bed Purchasing - North,Permanent Nursing,Hc-One Ltd,2089.20, 14-Mar-2017
1627,Revenue,CAHD,Bed Purchasing - Southmead Hospital,Permanent Nursing,Hc-One Ltd,2103.28, 14-Mar-2017
1628,Revenue,CAHD,Bed Purchasing - South,Permanent Residential,Hc-One Ltd,2112.00, 14-Mar-2017
1629,Revenue,CAHD,Bed Purchasing - Southmead Hospital,Permanent Nursing,Hc-One Ltd,2728.28, 14-Mar-2017
1630,Revenue,CAHD,Bed Purchasing - North,Permanent Nursing,Hc-One Ltd,1953.05, 14-Mar-2017
1631,Revenue,CAHD,Bed Purchasing - Southmead Hospital,Respite Emergency - Nursing,Hc-One Ltd,676.05, 14-Mar-2017
1632,Revenue,CAHD,Bed Purchasing - North,Permanent Residential,Hc-One Ltd,1988.29, 14-Mar-2017
1633,Revenue,CAHD,Bed Purchasing - Southmead Hospital,Permanent Nursing,Hc-One Ltd,2728.28, 14-Mar-2017
1634,Revenue,CAHD,Bed Purchasing - Southmead Hospital,Permanent Nursing,Hc-One Ltd,2527.92, 14-Mar-2017
1635,Revenue,CAHD,Home Care - Elderly - South,Day Care / Social Activities,Headway Bristol,852.80, 07-Mar-2017
1636,Revenue,CAHD,Home Care - Elderly - South,Other Small Contracts,Headway Bristol,527.67, 07-Mar-2017
1637,Revenue,CAHD,Home Care - Elderly - North,Day Care / Social Activities,Headway Bristol,772.85, 07-Mar-2017
1638,Revenue,CAHD,Home Care - Elderly - North,Other Small Contracts,Headway Bristol,181.22, 07-Mar-2017
1639,Revenue,CAHD,Home Care - Elderly - South,Day Care / Social Activities,Headway Bristol,954.07, 13-Mar-2017
1640,Revenue,CAHD,Home Care - Elderly - South,Other Small Contracts,Headway Bristol,426.40, 13-Mar-2017
1641,Revenue,CAHD,Home Care - Elderly - North,Day Care / Social Activities,Headway Bristol,692.90, 13-Mar-2017
1642,Revenue,CAHD,Home Care - Elderly - North,Other Small Contracts,Headway Bristol,138.58, 13-Mar-2017
1643,Revenue,CAHD,Home Care - Elderly - South,Day Care / Social Activities,Headway Bristol,938.08, 20-Mar-2017
1644,Revenue,CAHD,Home Care - Elderly - South,Other Small Contracts,Headway Bristol,362.44, 20-Mar-2017
1645,Revenue,CAHD,Home Care - Elderly - North,Day Care / Social Activities,Headway Bristol,788.84, 20-Mar-2017
1646,Revenue,CAHD,Home Care - Elderly - South,Day Care / Social Activities,Headway Bristol,863.46, 27-Mar-2017
1647,Revenue,CAHD,Home Care - Elderly - South,Other Small Contracts,Headway Bristol,426.40, 27-Mar-2017
1648,Revenue,CAHD,Home Care - Elderly - North,Day Care / Social Activities,Headway Bristol,682.24, 27-Mar-2017
1649,Revenue,CAHD,Home Care - Elderly - North,Other Small Contracts,Headway Bristol,197.21, 27-Mar-2017
1650,Revenue,CAHD,Home Care - Elderly - South,Other Small Contracts,Helping Hands Homecare,901.68, 09-Mar-2017
1651,Revenue,CAHD,Home Care - Elderly - North,Day Care / Social Activities,Helping Hands Homecare,176.80, 09-Mar-2017
1652,Revenue,CAHD,Home Care - Elderly - North,Other Small Contracts,Helping Hands Homecare,2826.64, 09-Mar-2017
1653,Revenue,CAHD,Home Care - Elderly - South,Other Small Contracts,Helping Hands Homecare,923.78, 09-Mar-2017
1654,Revenue,CAHD,Home Care - Elderly - North,Day Care / Social Activities,Helping Hands Homecare,225.42, 09-Mar-2017
1655,Revenue,CAHD,Home Care - Elderly - North,Other Small Contracts,Helping Hands Homecare,4239.16, 09-Mar-2017
1656,Revenue,CAHD,Younger MH non-res purchasing,Other Small Contracts,Helping Hands Homecare,66.00, 09-Mar-2017
1657,Revenue,CAHD,Home Care - Elderly - South,Other Small Contracts,Helping Hands Homecare,800.02, 01-Mar-2017
1658,Revenue,CAHD,Home Care - Elderly - North,Day Care / Social Activities,Helping Hands Homecare,229.84, 01-Mar-2017
1659,Revenue,CAHD,Home Care - Elderly - North,Other Small Contracts,Helping Hands Homecare,4563.96, 01-Mar-2017
1660,Revenue,CAHD,Younger MH non-res purchasing,Other Small Contracts,Helping Hands Homecare,66.00, 01-Mar-2017
1661,Revenue,CAHD,Home Care - Elderly - South,Other Small Contracts,Helping Hands Homecare,1091.74, 03-Mar-2017
1662,Revenue,CAHD,Home Care - Elderly - North,Day Care / Social Activities,Helping Hands Homecare,229.84, 03-Mar-2017
1663,Revenue,CAHD,Home Care - Elderly - North,Other Small Contracts,Helping Hands Homecare,4783.18, 03-Mar-2017
1664,Revenue,CAHD,Younger MH non-res purchasing,Other Small Contracts,Helping Hands Homecare,66.00, 03-Mar-2017
1665,Revenue,CAHD,Home Care - Elderly - South,Other Small Contracts,Helping Hands Homecare,1003.34, 08-Mar-2017
1666,Revenue,CAHD,Home Care - Elderly - North,Day Care / Social Activities,Helping Hands Homecare,229.84, 08-Mar-2017
1667,Revenue,CAHD,Home Care - Elderly - North,Other Small Contracts,Helping Hands Homecare,4430.76, 08-Mar-2017
1668,Revenue,CAHD,Younger MH non-res purchasing,Other Small Contracts,Helping Hands Homecare,66.00, 08-Mar-2017
1669,Revenue,CAHD,Home Care - Elderly - South,Other Small Contracts,Helping Hands Homecare,1100.58, 31-Mar-2017
1670,Revenue,CAHD,Home Care - Elderly - North,Day Care / Social Activities,Helping Hands Homecare,229.84, 31-Mar-2017
1671,Revenue,CAHD,Home Care - Elderly - North,Other Small Contracts,Helping Hands Homecare,4811.16, 31-Mar-2017
1672,Revenue,CAHD,Younger MH non-res purchasing,Other Small Contracts,Helping Hands Homecare,66.00, 31-Mar-2017
1673,Revenue,CAHD,Home Care - Elderly - South,Other Small Contracts,Helping Hands Homecare,981.24, 31-Mar-2017
1674,Revenue,CAHD,Home Care - Elderly - North,Day Care / Social Activities,Helping Hands Homecare,181.22, 31-Mar-2017
1675,Revenue,CAHD,Home Care - Elderly - North,Other Small Contracts,Helping Hands Homecare,4955.62, 31-Mar-2017
1676,Revenue,CAHD,Younger MH non-res purchasing,Other Small Contracts,Helping Hands Homecare,66.00, 31-Mar-2017
1677,Revenue,CAHD,Home Care - Elderly - South,Other Small Contracts,Helping Hands Homecare,1012.18, 31-Mar-2017
1678,Revenue,CAHD,Home Care - Elderly - North,Day Care / Social Activities,Helping Hands Homecare,216.58, 31-Mar-2017
1679,Revenue,CAHD,Home Care - Elderly - North,Other Small Contracts,Helping Hands Homecare,5376.78, 31-Mar-2017
1680,Revenue,CAHD,Younger MH non-res purchasing,Other Small Contracts,Helping Hands Homecare,66.00, 31-Mar-2017
1681,Revenue,CAHD,Placements OLA Special Schools and RB,Other L.A.'s - General,Henbury Court Primary Academy,833.33, 02-Mar-2017
1682,Revenue,CAHD,Placements OLA Special Schools and RB,Other L.A.'s - General,Henbury Court Primary Academy,833.33, 31-Mar-2017
1683,Revenue,CAHD,CSC - LAT Placements,Preventative Assistance,Henrietta Coker,1000.00, 16-Mar-2017
1684,Revenue,CAHD,CSC - LAT Placements,Preventative Assistance,Henrietta Coker,1000.00, 16-Mar-2017
1685,Revenue,CAHD,CSC - LAT Placements,Preventative Assistance,Henrietta Coker,325.00, 21-Mar-2017
1686,Revenue,CAHD,CSC - LAT Placements,Preventative Assistance,Henrietta Coker,325.00, 21-Mar-2017
1687,Revenue,CAHD,CSC - Legal Fees,Legal Fees,Henriques Griffiths Solicitors,1023.47, 10-Mar-2017
1688,Revenue,CAHD,S117 Placements PCT,Permanent Residential,Hesley Hall,18656.52, 14-Mar-2017
1689,Revenue,CAHD,Bed Purchasing - North,Permanent Residential,High Border Lodge,1976.00, 14-Mar-2017
1690,Revenue,CAHD,Schools Specific Grant Income,Other Public Bodies,High School For Girls,500.00, 20-Mar-2017
1691,Revenue,CAHD,Bed Purchasing - Southmead Hospital,Permanent Residential,Highfield House,2121.00, 14-Mar-2017
1692,Revenue,CAHD,EY- 3 & 4 year old payments to providers,Preventative Assistance,Hillsides Secret Garden Day Nursery,763.20, 13-Mar-2017
1693,Revenue,CAHD,Bed Purchasing - North,Permanent Residential,Holmleigh Care Homes Ltd,4520.36, 14-Mar-2017
1694,Revenue,CAHD,Bed Purchasing - South,Permanent Residential,Holmleigh Care Homes Ltd,4318.00, 14-Mar-2017
1695,Revenue,CAHD,Jointly Funded H&SC Packages,Permanent Residential,Holmleigh Care Homes Ltd,1237.08, 14-Mar-2017
1696,Revenue,CAHD,Bed Purchasing - North,Permanent Residential,Home Farm Trust Ltd  5-6 Brook Office Pa,3273.68, 14-Mar-2017
1697,Revenue,CAHD,Bed Purchasing - North,Permanent Residential,Home Farm Trust Ltd  5-6 Brook Office Pa,3802.88, 14-Mar-2017
1698,Revenue,CAHD,Home Care - Elderly - South,Supported Living,Home Farm Trust Ltd  5-6 Brook Office Pa,30020.76, 14-Mar-2017
1699,Revenue,CAHD,18-25 Year Olds,Permanent Residential,Home From Home Care Ltd,9615.76, 14-Mar-2017
1700,Revenue,CAHD,Home Care - Elderly - South,Other Small Contracts,Homecare 4U,198.90, 08-Mar-2017
1701,Revenue,CAHD,Home Care - Elderly - North,Other Small Contracts,Homecare 4U,419.90, 08-Mar-2017
1702,Revenue,CAHD,Home Care - Elderly - South,Other Small Contracts,Homecare 4U,198.90, 08-Mar-2017
1703,Revenue,CAHD,Home Care - Elderly - North,Other Small Contracts,Homecare 4U,424.32, 08-Mar-2017
1704,Revenue,CAHD,Home Care - Elderly - South,Other Small Contracts,Homecare 4U,198.90, 08-Mar-2017
1705,Revenue,CAHD,Home Care - Elderly - North,Other Small Contracts,Homecare 4U,419.90, 08-Mar-2017
1706,Revenue,CAHD,Home Care - Elderly - South,Other Small Contracts,Homecare 4U,198.90, 13-Mar-2017
1707,Revenue,CAHD,Home Care - Elderly - North,Other Small Contracts,Homecare 4U,428.74, 13-Mar-2017
1708,Revenue,CAHD,Home Care - Elderly - South,Other Small Contracts,Homecare 4U,194.48, 23-Mar-2017
1709,Revenue,CAHD,Home Care - Elderly - North,Other Small Contracts,Homecare 4U,437.58, 23-Mar-2017
1710,Revenue,CAHD,Home Care - Elderly - South,Other Small Contracts,Homecare 4U,198.90, 24-Mar-2017
1711,Revenue,CAHD,Home Care - Elderly - North,Other Small Contracts,Homecare 4U,446.42, 24-Mar-2017
1712,Revenue,CAHD,Bed Purchasing - North,Permanent Residential,Homes Caring For Autism Ltd  Churchill H,8071.00, 14-Mar-2017
1713,Revenue,CAHD,Jointly Funded H&SC Packages,Permanent Residential,Homes Caring For Autism Ltd  Churchill H,2438.64, 14-Mar-2017
1714,Revenue,CAHD,18-25 Year Olds,Permanent Residential,Homes Caring For Autism Ltd  Churchill H,5691.32, 14-Mar-2017
1715,Revenue,CAHD,Jointly Funded H&SC Packages,Permanent Residential,Homes Caring For Autism Ltd  Churchill H,7936.08, 14-Mar-2017
1716,Revenue,CAHD,Bed Purchasing - Southmead Hospital,Permanent Nursing,Horfield Care Limited,1349.20, 03-Mar-2017
1717,Revenue,CAHD,Bed Purchasing - Southmead Hospital,Permanent Nursing,Horfield Care Limited,1695.40, 03-Mar-2017
1718,Revenue,CAHD,Bed Purchasing - Southmead Hospital,Permanent Nursing,Horfield Care Limited,1247.88, 03-Mar-2017
1719,Revenue,CAHD,Bed Purchasing - South,Permanent Nursing,Horfield Care Limited,1245.88, 03-Mar-2017
1720,Revenue,CAHD,Bed Purchasing - South,Respite Emergency - Nursing,Horfield Care Limited,1265.44, 03-Mar-2017
1721,Revenue,CAHD,Supporting People Programme,Grants to Voluntary Bodies,Housing 21,631.50, 01-Mar-2017
1722,Revenue,CAHD,Supporting People Programme,Grants to Voluntary Bodies,Housing 21,957.66, 01-Mar-2017
1723,Revenue,CAHD,Extra Care Housing,Private & Voluntary Home Care,Housing 21,40614.39, 10-Mar-2017
1724,Revenue,CAHD,Extra Care Housing,Private & Voluntary Home Care,Housing 21,26103.55, 01-Mar-2017
1725,Revenue,CAHD,Extra Care Housing,Private & Voluntary Home Care,Housing 21,26103.55, 31-Mar-2017
1726,Revenue,CAHD,SEN High Needs - Not at School Base,Other Private Contractors,Impact Mentoring,2250.00, 16-Mar-2017
1727,Revenue,CAHD,Schools Specific Grant Income,Other Public Bodies,Inspirational Futures Trust,500.00, 20-Mar-2017
1728,Revenue,CAHD,"Physical Activity, Nutrition & Obesity",Other Supplies & Services,Inspire4Change Consulting Ltd,900.00, 31-Mar-2017
1729,Revenue,CAHD,CSC - Vinney Green Secure Unit,Premises Maintenance by Contractor,Integral UK Limited,4300.00, 15-Mar-2017
1730,Revenue,CAHD,CSC - Adoption Support Fund,Post Adoption,Intramosaic Counselling and Psychotherapy Limited,821.55, 03-Mar-2017
1731,Revenue,CAHD,CSC - Adoption Support Fund,Post Adoption,Intramosaic Counselling and Psychotherapy Limited,1519.65, 03-Mar-2017
1732,Revenue,CAHD,CSC - Adoption Support Fund,Post Adoption,Intramosaic Counselling and Psychotherapy Limited,970.45, 03-Mar-2017
1733,Revenue,CAHD,Care Management Team - South,Agency Staff (Operational)/PCT Pay,IPE,2206.79, 09-Mar-2017
1734,Revenue,CAHD,Alexandra Way,Office Supplies & Equipment,ITEC,495.04, 28-Mar-2017
1735,Revenue,CAHD,Early Years Development,Conference Expenses,Jan White,1292.79, 28-Mar-2017
1736,Revenue,CAHD,Social Lettings Agency,Fees - General,Individual,10.53, 01-Mar-2017
1737,Revenue,CAHD,Social Lettings Agency,Other Supplies & Services,Individual,595.11, 01-Mar-2017
1738,Revenue,CAHD,Social Lettings Agency,Fees - General,Individual,10.53, 31-Mar-2017
1739,Revenue,CAHD,Social Lettings Agency,Other Supplies & Services,Individual,595.11, 31-Mar-2017
1740,Revenue,CAHD,Training - Adult Services,Training Expenses,JK Training,700.00, 15-Mar-2017
1741,Revenue,CAHD,Training - Adult Services,Training Expenses,Jo Williams,758.00, 07-Mar-2017
1742,Revenue,CAHD,Implementation of Education Commission,Consultants Fees,John Dunford Consulting,4400.00, 30-Mar-2017
1743,Revenue,CAHD,Bed Purchasing - South,Permanent Residential,Jonen House,4026.92, 14-Mar-2017
1744,Revenue,CAHD,CSC - Section 17 Long Term Support,"Provisions (Food, etc)",Joyce Soyemi,650.00, 31-Mar-2017
1745,Revenue,CAHD,Virtual School for Looked After Children,Consultants Fees,Judith Mee Education,800.00, 10-Mar-2017
1746,Revenue,CAHD,Virtual School for Looked After Children,Consultants Fees,Judith Mee Education,2000.00, 24-Mar-2017
1747,Revenue,CAHD,Virtual School for Looked After Children,Consultants Fees,Judith Mee Education,2000.00, 10-Mar-2017
1748,Revenue,CAHD,Virtual School for Looked After Children,Consultants Fees,Judith Mee Education,2800.00, 30-Mar-2017
1749,Revenue,CAHD,Home Care - Elderly - South,Supported Living,Julia Simone- Supp. Ind.,1194.40, 14-Mar-2017
1750,Revenue,CAHD,Younger MH non-res purchasing,Supported Living,Julia Simone- Supp. Ind.,1194.40, 14-Mar-2017
1751,Revenue,CAHD,Younger MH non-res purchasing,Supported Living,Julia Simone- Supp. Ind.,1194.40, 14-Mar-2017
1752,Revenue,CAHD,Home Care - Elderly - North,Supported Living,Julia Simone- Supp. Ind.,1228.80, 14-Mar-2017
1753,Revenue,CAHD,Younger MH non-res purchasing,Supported Living,Julia Simone- Supp. Ind.,1194.24, 14-Mar-2017
1754,Revenue,CAHD,Section 117 Placements MH Younger,Supported Living,Julia Simone- Supp. Ind.,1178.36, 14-Mar-2017
1755,Revenue,CAHD,Younger MH non-res purchasing,Supported Living,Julia Simone- Supp. Ind.,1194.36, 14-Mar-2017
1756,Revenue,CAHD,Bed Purchasing - South,Permanent Residential,Julia Simone- Supp. Ind.,4417.88, 14-Mar-2017
1757,Revenue,CAHD,Bed purchasing -S28A  Under 65 - North,Permanent Residential,Julia Simone- Supp. Ind.,3936.88, 14-Mar-2017
1758,Revenue,CAHD,Bed purchasing -S28A  Under 65 - North,Fees & Charges Income - General,Julia Simone- Supp. Ind.,1482.58, 14-Mar-2017
1759,Revenue,CAHD,CSC - Social Work Team - NORTH,Interpreting & Translation,K International Plc,488.00, 24-Mar-2017
1760,Revenue,CAHD,Statemented Support Payments to OLAs,Other L.A.'s - General,Katharine Lady Berkeley School,533.30, 29-Mar-2017
1761,Revenue,CAHD,Schools Specific Grant Income,Other Public Bodies,Katharine Lady Berkeley School,1000.00, 30-Mar-2017
1762,Revenue,CAHD,Schools Specific Grant Income,Other Public Bodies,Katharine Lady Berkeley School,500.00, 20-Mar-2017
1763,Revenue,CAHD,Community Support - South,Preventative Assistance,KCC Cleaning Services Limited,600.00, 31-Mar-2017
1764,Revenue,CAHD,Community Support - North,Preventative Assistance,KCC Cleaning Services Limited,1509.00, 10-Mar-2017
1765,Revenue,CAHD,Community Support - North,Preventative Assistance,KCC Cleaning Services Limited,1566.00, 17-Mar-2017
1766,Revenue,CAHD,Community Support - South,Preventative Assistance,KCC Cleaning Services Limited,1884.50, 24-Mar-2017
1767,Revenue,CAHD,Community Support - North,Preventative Assistance,KCC Cleaning Services Limited,563.50, 31-Mar-2017
1768,Revenue,CAHD,Community Support - North,Preventative Assistance,KCC Cleaning Services Limited,910.86, 31-Mar-2017
1769,Revenue,CAHD,CSC - Adoption Support Fund,Post Adoption,Keith Baker,783.00, 27-Mar-2017
1770,Revenue,CAHD,CSC - Adoption Support Fund,Post Adoption,Keith Baker,1662.00, 27-Mar-2017
1771,Revenue,CAHD,Home Care - Elderly - South,Other Small Contracts,Kensington Community Care,2895.10, 03-Mar-2017
1772,Revenue,CAHD,Home Care - Elderly - North,Other Small Contracts,Kensington Community Care,5874.18, 03-Mar-2017
1773,Revenue,CAHD,Home Care - Elderly - South,Other Small Contracts,Kensington Community Care,2629.90, 08-Mar-2017
1774,Revenue,CAHD,Home Care - Elderly - North,Other Small Contracts,Kensington Community Care,5719.48, 08-Mar-2017
1775,Revenue,CAHD,Home Care - Elderly - South,Other Small Contracts,Kensington Community Care,2594.54, 06-Mar-2017
1776,Revenue,CAHD,Home Care - Elderly - North,Other Small Contracts,Kensington Community Care,5768.10, 06-Mar-2017
1777,Revenue,CAHD,Home Care - Elderly - South,Other Small Contracts,Kensington Community Care,2572.44, 08-Mar-2017
1778,Revenue,CAHD,Home Care - Elderly - North,Other Small Contracts,Kensington Community Care,5396.82, 08-Mar-2017
1779,Revenue,CAHD,Home Care - Elderly - South,Other Small Contracts,Kensington Community Care,2603.38, 13-Mar-2017
1780,Revenue,CAHD,Home Care - Elderly - North,Other Small Contracts,Kensington Community Care,5737.16, 13-Mar-2017
1781,Revenue,CAHD,Home Care - Elderly - South,Other Small Contracts,Kensington Community Care,2307.24, 13-Mar-2017
1782,Revenue,CAHD,Home Care - Elderly - North,Other Small Contracts,Kensington Community Care,5803.46, 13-Mar-2017
1783,Revenue,CAHD,Home Care - Elderly - South,Other Small Contracts,Kensington Community Care,2055.30, 14-Mar-2017
1784,Revenue,CAHD,Home Care - Elderly - North,Other Small Contracts,Kensington Community Care,5728.32, 14-Mar-2017
1785,Revenue,CAHD,Home Care - Elderly - South,Other Small Contracts,Kensington Community Care,2179.06, 23-Mar-2017
1786,Revenue,CAHD,Home Care - Elderly - North,Other Small Contracts,Kensington Community Care,5662.02, 23-Mar-2017
1787,Revenue,CAHD,Home Care - Elderly - South,Other Small Contracts,Kensington Community Care,2174.64, 28-Mar-2017
1788,Revenue,CAHD,Home Care - Elderly - North,Other Small Contracts,Kensington Community Care,5529.42, 28-Mar-2017
1789,Revenue,CAHD,Bed Purchasing - Southmead Hospital,Permanent Residential,Kenver House Residential Home,2220.08, 14-Mar-2017
1790,Revenue,CAHD,Bed Purchasing - Southmead Hospital,Permanent Residential,Kenver House Residential Home,2220.08, 14-Mar-2017
1791,Revenue,CAHD,Bed Purchasing - South,Permanent Residential,Kenver House Residential Home,2223.12, 14-Mar-2017
1792,Revenue,CAHD,Bed Purchasing - South,Permanent Residential,Kenver House Residential Home,2220.08, 14-Mar-2017
1793,Revenue,CAHD,Bed Purchasing - North,Permanent Residential,Kenver House Residential Home,2220.08, 14-Mar-2017
1794,Revenue,CAHD,Bed Purchasing - Southmead Hospital,Permanent Residential,Kenver House Residential Home,2286.28, 14-Mar-2017
1795,Revenue,CAHD,Bed Purchasing - South,Permanent Residential,Kenver House Residential Home,2431.48, 14-Mar-2017
1796,Revenue,CAHD,Bed purchasing - Elderly S117 - South,Permanent Residential,Kenver House Residential Home,2431.48, 14-Mar-2017
1797,Revenue,CAHD,Bed Purchasing - South,Permanent Residential,Kenver House Residential Home,2487.86, 14-Mar-2017
1798,Revenue,CAHD,Bed Purchasing - South,Permanent Residential,Kenver House Residential Home,2431.48, 14-Mar-2017
1799,Revenue,CAHD,Bed Purchasing - South,Permanent Residential,Kenver House Residential Home,2431.48, 14-Mar-2017
1800,Revenue,CAHD,Bed Purchasing - North,Respite Emergency - Residential,Kenver House Residential Home,2395.71, 14-Mar-2017
1801,Revenue,CAHD,Bed Purchasing - South,Permanent Residential,Kenver House Residential Home,2431.48, 14-Mar-2017
1802,Revenue,CAHD,Bed Purchasing - South,Permanent Residential,Kenver House Residential Home,2431.48, 14-Mar-2017
1803,Revenue,CAHD,Bed Purchasing - South,Permanent Residential,Kenver House Residential Home,2220.08, 14-Mar-2017
1804,Revenue,CAHD,CSC - Care Leavers Independent Living,Adults - Family Support,Key2 Futures Limited,4888.08, 07-Mar-2017
1805,Revenue,CAHD,CSC - Care Leavers Independent Living,Adults - Family Support,Key2 Futures Limited,947.05, 02-Mar-2017
1806,Revenue,CAHD,CSC - Care Leavers Independent Living,Adults - Family Support,Key2 Futures Limited,2430.40, 02-Mar-2017
1807,Revenue,CAHD,CSC - Care Leavers Independent Living,Adults - Family Support,Key2 Futures Limited,2967.01, 02-Mar-2017
1808,Revenue,CAHD,CSC - Care Leavers Independent Living,Adults - Family Support,Key2 Futures Limited,2430.40, 02-Mar-2017
1809,Revenue,CAHD,CSC - Care Leavers Independent Living,Adults - Family Support,Key2 Futures Limited,1818.49, 02-Mar-2017
1810,Revenue,CAHD,Supporting People Programme,Grants to Voluntary Bodies,Keyring Living Support Networks,2988.58, 01-Mar-2017
